Service Area,Service Division,Expense Type,Expense Code,Detailed Expense Type,Payment Date,Transaction Number,Amount Exc Vat,Supplier Name
Children and Adult Services,Commissioning inc Supporting People,Third Party Payments,440051,Other Third Party Payments,01-Jul-2015,2921392,"11,825.00",DERIC YOUTH BUS PROJECT.
Neighbourhood Services,Culture & Sport,Supplies and Services,304259,Equipment and Materials,01-Jul-2015,240508-S1291,"2,319.00",BUSINESS ON BIKES.
Children and Adult Services,Education,Supplies and Services,352001,Conference Expenses,01-Jul-2015,240509-0194,500.00,CHAPTER HOUSE CHILDCARE ASSOCIATES LTD.
Regeneration & Economic Development,Transport and Contracted Services,Supplies and Services,344016,Telephones,01-Jul-2015,240518-01190637148,814.00,EE LTD.
Neighbourhood Services,Direct Services,Transport,230005,Contract Hire,01-Jul-2015,240522-073139,922.50,FIVEWAYS MUNICIPAL VEHICLE HIRE LTD.
Neighbourhood Services,Direct Services,Transport,230005,Contract Hire,01-Jul-2015,240522-073244,922.50,FIVEWAYS MUNICIPAL VEHICLE HIRE LTD.
Neighbourhood Services,Direct Services,Transport,230005,Contract Hire,01-Jul-2015,240522-073287,922.50,FIVEWAYS MUNICIPAL VEHICLE HIRE LTD.
Neighbourhood Services,Direct Services,Supplies and Services,304221,Equipment and Materials,01-Jul-2015,240532-11307,"1,379.72",LAMINFORM LTD.
Resources,Corporate Finance,Supplies and Services,372009,Subscriptions,01-Jul-2015,240590-112006091,"136,185.00",NORTH EAST PROCUREMENT ORGANISATION.
Children and Adult Services,Head of Adults,Supplies and Services,304252,Equipment and Materials,01-Jul-2015,240616-555306,"1,030.00",REDACTED - PAYMENT TO INDIVIDUAL
Neighbourhood Services,Technical Services,Third Party Payments,410037,Rendered by Other Local Authorities,01-Jul-2015,2921298-001446,"1,558.20",A PARRY MOBILE WELDING & FABRICATION.
Children and Adult Services,Childrens Services,Transport,235073,Public Transport,01-Jul-2015,2921299-SSS-31/05/2015,579.45,AA & C CHESTER TAXIS.
Children and Adult Services,Childrens Services,Third Party Payments,425040,Rendered by Voluntary Organisations,01-Jul-2015,2921301-R31INV/00015471,"3,128.40",ACTION FOR CHILDREN.
Children and Adult Services,Childrens Services,Third Party Payments,425040,Rendered by Voluntary Organisations,01-Jul-2015,2921301-R31INV/00015472,"4,200.00",ACTION FOR CHILDREN.
Neighbourhood Services,Technical Services,Supplies and Services,304221,Equipment and Materials,01-Jul-2015,2921305-21555741,"1,355.64",AGGREGATE INDUSTRIES UK LTD.
Neighbourhood Services,Technical Services,Supplies and Services,304221,Equipment and Materials,01-Jul-2015,2921305-21555849,"1,261.52",AGGREGATE INDUSTRIES UK LTD.
Neighbourhood Services,Technical Services,Supplies and Services,304221,Equipment and Materials,01-Jul-2015,2921305-21555850,"1,125.79",AGGREGATE INDUSTRIES UK LTD.
Neighbourhood Services,Technical Services,Supplies and Services,304221,Equipment and Materials,01-Jul-2015,2921305-21555851,"2,202.80",AGGREGATE INDUSTRIES UK LTD.
Neighbourhood Services,Technical Services,Stock,926900,Stock in hand-Inventory system,01-Jul-2015,2921318-924823532,"2,818.68",ARCO LTD.
Children and Adult Services,Childrens Services,Transport,230710,Contract Hire,01-Jul-2015,2921320-L01149151,"3,108.00",ARNOLD CLARK FINANCE LTD.
Regeneration & Economic Development,Transport and Contracted Services,Third Party Payments,430106,Rendered by Private Contractors,01-Jul-2015,2921321-109096,"39,840.34",ARRIVA NORTH EAST LTD.
Neighbourhood Services,Projects and Business services,Fees,901002,Professional fees,01-Jul-2015,2921324-15007735,"5,528.00",ATKINS GLOBAL.
Children and Adult Services,Childrens Services,Third Party Payments,425040,Rendered by Voluntary Organisations,01-Jul-2015,2921329-146506440,973.07,BARNARDO SERVICES LTD.
Neighbourhood Services,Technical Services,Supplies and Services,304221,Equipment and Materials,01-Jul-2015,2921345-INV165991,"1,208.00",BROXAP LTD.
Regeneration & Economic Development,Transport and Contracted Services,Construction Work,908105,Construction work,01-Jul-2015,2921347-22395,"2,542.78",BUS SHELTERS LTD.
Regeneration & Economic Development,Transport and Contracted Services,Construction Work,908105,Construction work,01-Jul-2015,2921347-22396,"2,622.78",BUS SHELTERS LTD.
Neighbourhood Services,Direct Services,Transport,210057,Repair and Maintenance of Vehicles,01-Jul-2015,2921355-201806,826.73,CARRS BILLINGTON AGRICULTURE.
Children and Adult Services,Head of Adults,Supplies and Services,338099,Services,01-Jul-2015,2921374-28/01-11/03/2015,667.00,COW CLOSE FARM.
Children and Adult Services,Education,Transport,230007,Contract Hire,01-Jul-2015,2921376-5288,978.18,CROFT BUSINESS SERVICES (UK) LTD T/A CROFT TAXIS.
Children and Adult Services,Education,Transport,230007,Contract Hire,01-Jul-2015,2921376-5347,"1,048.05",CROFT BUSINESS SERVICES (UK) LTD T/A CROFT TAXIS.
Children and Adult Services,Planning & Service Strategy,Supplies and Services,342225,Computers and Communications,01-Jul-2015,2921387-7402212571,809.96,DELL COMPUTER CORPORATION LTD.
Children and Adult Services,Childrens Services,Supplies and Services,384199,Miscellaneous Expenses,01-Jul-2015,2921390-2925926,"1,620.22",DEPARTMENT FOR WORK & PENSIONS.
Resources,Legal & Democratic Services,Supplies and Services,338042,Services,01-Jul-2015,2921391-314464/INVJS8,660.00,DERE STREET BARRISTERS.
Resources,I.C.T. Services,Supplies and Services,332029,Printing Stationery and Gen Off Exps,01-Jul-2015,2921393-8879,"2,680.00",DESIGN X PRESS LTD.
Children and Adult Services,Education,Transport,230007,Contract Hire,01-Jul-2015,2921399-7351,"16,253.60",DURHAM CITY COACHES.
Children and Adult Services,Education,Transport,230008,Contract Hire,01-Jul-2015,2921404-35334653,"2,360.40",EAST RIDING OF YORKSHIRE COUNCIL.
Neighbourhood Services,Culture & Sport,Supplies and Services,338047,Services,01-Jul-2015,2921421-5046,730.00,FLYING BY FOY LTD.
Neighbourhood Services,Direct Services,Stock,926004,Stock,01-Jul-2015,2921423-216323638,"1,199.00",FUCHS LUBRICANTS (UK) PLC.
Neighbourhood Services,Technical Services,Supplies and Services,304252,Equipment and Materials,01-Jul-2015,2921424-007049298,950.00,GAP GROUP LTD.
Neighbourhood Services,Technical Services,Supplies and Services,304358,Equipment and Materials,01-Jul-2015,2921429-10087,580.00,GEORGE VARDY HAULAGE.
Neighbourhood Services,Technical Services,Supplies and Services,304358,Equipment and Materials,01-Jul-2015,2921429-10088,896.00,GEORGE VARDY HAULAGE.
Neighbourhood Services,Technical Services,Supplies and Services,304358,Equipment and Materials,01-Jul-2015,2921429-10111,"1,100.00",GEORGE VARDY HAULAGE.
Neighbourhood Services,Technical Services,Third Party Payments,430100,Rendered by Private Contractors,01-Jul-2015,2921434-29665,640.00,GRAB & DELIVER LTD.
Neighbourhood Services,Direct Services,Premises,145023,Cleaning and Domestic Supplies,01-Jul-2015,2921436-06/559535,"2,354.88",GREENHAM TRADING LTD.
Neighbourhood Services,Direct Services,Premises,145023,Cleaning and Domestic Supplies,01-Jul-2015,2921436-06/559541,972.60,GREENHAM TRADING LTD.
Children and Adult Services,Childrens Services,Supplies and Services,304259,Equipment and Materials,01-Jul-2015,2921440-INV0158561,504.00,GV MULTI MEDIA LTD.
Neighbourhood Services,Technical Services,Stock,926900,Stock in hand-Inventory system,01-Jul-2015,2921445-538100,"16,876.54",HARVEST ENERGY LTD.
Neighbourhood Services,Direct Services,Transport,215005,Running Costs of Vehicles,01-Jul-2015,2921445-538106,"16,878.76",HARVEST ENERGY LTD.
Neighbourhood Services,Projects and Business services,Transport,215022,Running Costs of Vehicles,01-Jul-2015,2921445-538107,"1,442.70",HARVEST ENERGY LTD.
Neighbourhood Services,Technical Services,Supplies and Services,304221,Equipment and Materials,01-Jul-2015,2921449-IN034754,"1,571.00",HILL & SMITH LTD.
Children and Adult Services,Childrens Services,Supplies and Services,384302,Miscellaneous Expenses,01-Jul-2015,2921452-CAS-06-2015-119,840.00,HOME ON THE RANGE LTD.
Children and Adult Services,Education,Transport,230007,Contract Hire,01-Jul-2015,2921454-INV80,600.00,HORNDALE TAXIS LTD.
Children and Adult Services,Education,Transfer Payments,510026,School Children,01-Jul-2015,2921455-18533,910.00,HOUSE OF EDEN CHILDRENS NURSERY.
Regeneration & Economic Development,Economic Development and Housing,Supplies and Services,384700,Miscellaneous Expenses,01-Jul-2015,2921456-RED-06-2015-247,585.00,HP DENT.
Neighbourhood Services,Technical Services,Stock,926900,Stock in hand-Inventory system,01-Jul-2015,2921463-491178,"2,424.80",INSTARMAC GROUP PLC.
Neighbourhood Services,Technical Services,Employees,040149,Recruitment Instruction and Training,01-Jul-2015,2921464-W12906,"1,275.00",INSTITUTION OF LIGHTING PROFESSIONALS (ILP).
Regeneration & Economic Development,Transport and Contracted Services,Third Party Payments,430106,Rendered by Private Contractors,01-Jul-2015,2921470-DCC6/15,"1,662.62",JOHN JAMES BRUNSKILL.
Neighbourhood Services,Technical Services,Supplies and Services,304221,Equipment and Materials,01-Jul-2015,2921474-BII164001,802.95,JT DOVE LTD.
Neighbourhood Services,Technical Services,Supplies and Services,304221,Equipment and Materials,01-Jul-2015,2921474-BII164176,872.85,JT DOVE LTD.
Neighbourhood Services,Technical Services,Stock,926900,Stock in hand-Inventory system,01-Jul-2015,2921474-STI420936,554.50,JT DOVE LTD.
Neighbourhood Services,Technical Services,Stock,926900,Stock in hand-Inventory system,01-Jul-2015,2921474-STI420938,939.40,JT DOVE LTD.
Neighbourhood Services,Direct Services,Third Party Payments,430100,Rendered by Private Contractors,01-Jul-2015,2921475-579,"40,430.00",KARLIN TIMBER FRAME (NE) LTD.
Children and Adult Services,Childrens Services,Supplies and Services,338045,Services,01-Jul-2015,2921476-CAS-06-2015-113,536.10,REDACTED - PAYMENT TO INDIVIDUAL
Neighbourhood Services,Technical Services,Supplies and Services,304221,Equipment and Materials,01-Jul-2015,2921479-9032771367,"1,413.60",TARMAC TRADING LTD.
Neighbourhood Services,Technical Services,Supplies and Services,304221,Equipment and Materials,01-Jul-2015,2921479-9032778013,975.00,TARMAC TRADING LTD.
Neighbourhood Services,Technical Services,Supplies and Services,304221,Equipment and Materials,01-Jul-2015,2921479-9032788522,804.80,TARMAC TRADING LTD.
Children and Adult Services,Public Health,Third Party Payments,460803,Contract Payments,01-Jul-2015,2921481-0000006627,"75,000.00",LIFELINE PROJECT LTD.
Children and Adult Services,Head of Adults,Third Party Payments,478111,Purchase of Care,01-Jul-2015,2921494-2147653,"1,501.20",MENCAP.
Regeneration & Economic Development,Spatial Policy Planning Assets & Environment,Supplies and Services,338066,Services,01-Jul-2015,2921506-RED-06-2015-244,"1,007.25",MR JAYPRAKASH SARANIA T/A STARSTRUCK LTD.
Children and Adult Services,Education,Transport,230008,Contract Hire,01-Jul-2015,2921508-264,"1,036.00",MR LEE ANDERSON.
Resources,I.C.T. Services,Debtors,930167,Debtor-Telephone Holding Account,01-Jul-2015,2921518-201973,"21,415.24",NETWORKS 2 BUSINESS LTD.
Children and Adult Services,Childrens Services,Supplies and Services,384199,Miscellaneous Expenses,01-Jul-2015,2921523-004,"1,148.80",NICOLA JONES EDUCATION CONSULTANCY & TRAINING.
Children and Adult Services,Childrens Services,Supplies and Services,384491,Miscellaneous Expenses,01-Jul-2015,2921523-005,575.60,NICOLA JONES EDUCATION CONSULTANCY & TRAINING.
Neighbourhood Services,Direct Services,Transport,210057,Repair and Maintenance of Vehicles,01-Jul-2015,2921526-21721803,540.00,NORTH EAST TRUCK & VAN LTD.
Resources,Legal & Democratic Services,Supplies and Services,384899,Miscellaneous Expenses,01-Jul-2015,2921530-112780,"45,000.00",NORTHUMBERLAND COUNTY COUNCIL.
Regeneration & Economic Development,Transport and Contracted Services,Premises,120009,Energy Costs,01-Jul-2015,2921532-NNO7P3JS,"3,222.85",NPOWER.
Neighbourhood Services,Technical Services,Premises,120009,Energy Costs,01-Jul-2015,2921532-NNO7PXX7,"32,335.13",NPOWER.
Children and Adult Services,Education,Transport,230007,Contract Hire,01-Jul-2015,2921536-6085,"1,087.50",OVERLANDER LTD.
Neighbourhood Services,Technical Services,Stock,926900,Stock in hand-Inventory system,01-Jul-2015,2921539-XL144985,990.00,PARK ELECTRICAL DISTRIBUTORS LTD.
Children and Adult Services,Public Health,Third Party Payments,460803,Contract Payments,01-Jul-2015,2921540-06,"5,000.00",PATRICE VAN CLEEMPUT.
Children and Adult Services,Public Health,Third Party Payments,460803,Contract Payments,01-Jul-2015,2921540-07,600.00,PATRICE VAN CLEEMPUT.
Dedicated Schools Grant,Dedicated Schools Grant,Supplies and Services,304259,Equipment and Materials,01-Jul-2015,2921545-2591249239,"1,320.50",PHONAK UK LTD.
Children and Adult Services,Public Health,Third Party Payments,460803,Contract Payments,01-Jul-2015,2921547-13257/16,"5,000.00",PIONEERING CARE PARTNERSHIP.
Resources,I.C.T. Services,Supplies and Services,332029,Printing Stationery and Gen Off Exps,01-Jul-2015,2921552-617769,698.00,POTTS PRINTERS LTD.
Neighbourhood Services,Technical Services,Third Party Payments,430100,Rendered by Private Contractors,01-Jul-2015,2921553-134365,"47,813.05",PREMIER TRAFFIC MANAGEMENT LTD.
Neighbourhood Services,Technical Services,Supplies and Services,304221,Equipment and Materials,01-Jul-2015,2921556-78131,550.00,PROTECTOR SECURITY GROUP LTD.
Resources,I.C.T. Services,Supplies and Services,340001,Postages,01-Jul-2015,2921568-9049950680,"18,054.49",ROYAL MAIL GROUP PLC.
Neighbourhood Services,Direct Services,Supplies and Services,304259,Equipment and Materials,01-Jul-2015,2921578-CD970222437,"2,955.25",SHERRIFF AMENITY.
Neighbourhood Services,Technical Services,Supplies and Services,304221,Equipment and Materials,01-Jul-2015,2921580-714517980564,810.00,SIG TRADING LTD.
Children and Adult Services,Education,Supplies and Services,384199,Miscellaneous Expenses,01-Jul-2015,2921582-215345,580.00,SIMPLY SPORT LTD.
Children and Adult Services,Childrens Services,Transport,240045,Car Allowances,01-Jul-2015,2921587-4207,"1,906.57",SOCIAL RESOURCE CENTRE LTD.
Resources,I.C.T. Services,Supplies and Services,342051,Computers and Communications,01-Jul-2015,2921588-INV01162429,"482,869.34",SOFTCAT LTD.
Children and Adult Services,Childrens Services,Third Party Payments,425040,Rendered by Voluntary Organisations,01-Jul-2015,2921603-165398,910.00,SWIIS (UK) LTD.
Children and Adult Services,Childrens Services,Third Party Payments,425040,Rendered by Voluntary Organisations,01-Jul-2015,2921604-165400,759.99,SWIIS FOSTER CARE LTD.
Children and Adult Services,Childrens Services,Third Party Payments,425040,Rendered by Voluntary Organisations,01-Jul-2015,2921604-165401,"1,074.99",SWIIS FOSTER CARE LTD.
Children and Adult Services,Childrens Services,Third Party Payments,425040,Rendered by Voluntary Organisations,01-Jul-2015,2921604-165402,891.87,SWIIS FOSTER CARE LTD.
Children and Adult Services,Childrens Services,Third Party Payments,425040,Rendered by Voluntary Organisations,01-Jul-2015,2921604-165403,900.97,SWIIS FOSTER CARE LTD.
Children and Adult Services,Childrens Services,Third Party Payments,425040,Rendered by Voluntary Organisations,01-Jul-2015,2921604-165404,"1,068.97",SWIIS FOSTER CARE LTD.
Children and Adult Services,Childrens Services,Employees,080025,Agency Staff,01-Jul-2015,2921615-4810005202,"6,592.00",TEES ESK & WEAR VALLEYS NHS FOUNDATION TRUST.
Neighbourhood Services,Direct Services,Supplies and Services,304221,Equipment and Materials,01-Jul-2015,2921625-29861,"3,593.00",TOTAL PUMP SOLUTIONS LTD.
Neighbourhood Services,Direct Services,Supplies and Services,304259,Equipment and Materials,01-Jul-2015,2921627-27576,"4,756.69",TRACKYOU LTD.
Neighbourhood Services,Direct Services,Transport,230005,Contract Hire,01-Jul-2015,2921629-12486,800.00,TRASH UK LTD.
Neighbourhood Services,Direct Services,Transport,230005,Contract Hire,01-Jul-2015,2921629-12487,800.00,TRASH UK LTD.
Regeneration & Economic Development,Economic Development and Housing,Cap Exp on Grants & Other Financial Assistance (REFCUS),918401,Capital grants,01-Jul-2015,2921634-RED-06-2015-242,"4,810.00",TULLY`S ELECTRICAL ENGINEERS & COMPLETE BUILDING SERVICES LTD.
Neighbourhood Services,Technical Services,Supplies and Services,304221,Equipment and Materials,01-Jul-2015,2921639-INV031581,"2,616.00",URBIS SCHREDER LTD.
Neighbourhood Services,Technical Services,Stock,926900,Stock in hand-Inventory system,01-Jul-2015,2921640-19671828,"1,276.00",VIATEC UK LTD.
Neighbourhood Services,Direct Services,Third Party Payments,430100,Rendered by Private Contractors,01-Jul-2015,2921645-WS/15/06/438,561.00,WATER SOLUTIONS (EUROPE) LTD.
Children and Adult Services,Education,Transport,230008,Contract Hire,01-Jul-2015,2921647-000919,"1,320.00",WATSON OF SPENNYMOOR.
Neighbourhood Services,Projects and Business services,Third Party Payments,430116,Rendered by Private Contractors,01-Jul-2015,2921649-21694021,866.68,WOLSELEY UK LTD.
Neighbourhood Services,Technical Services,Supplies and Services,304358,Equipment and Materials,01-Jul-2015,2921652-4891,"1,901.75",YOULL CONSTRUCTION LTD.
Neighbourhood Services,Technical Services,Supplies and Services,304358,Equipment and Materials,01-Jul-2015,2921652-4901,646.00,YOULL CONSTRUCTION LTD.
Neighbourhood Services,Technical Services,Supplies and Services,304358,Equipment and Materials,01-Jul-2015,2921652-4910,"1,456.12",YOULL CONSTRUCTION LTD.
Regeneration & Economic Development,Economic Development and Housing,Supplies and Services,324117,Provisions,02-Jul-2015,2921671-61748864,569.17,BIDVEST FOODSERVICE (FORMERLY 3663).
Children and Adult Services,Education,Supplies and Services,338089,Services,02-Jul-2015,2921672-INV-722,"3,138.80",A & C MEALING T/A UK TOURING.
Neighbourhood Services,Culture & Sport,Supplies and Services,384199,Miscellaneous Expenses,02-Jul-2015,2921672-INV-728,"1,700.00",A & C MEALING T/A UK TOURING.
Neighbourhood Services,Culture & Sport,Supplies and Services,338047,Services,02-Jul-2015,2921675-67712,"2,257.14",ADASTRA.
Neighbourhood Services,Technical Services,Premises,108099,Service Repairs and Maintenance,02-Jul-2015,2921676-29131824-61,"1,009.00",ADT FIRE & SECURITY PLC.
Neighbourhood Services,Technical Services,Third Party Payments,430100,Rendered by Private Contractors,02-Jul-2015,2921677-21561850,846.10,AGGREGATE INDUSTRIES UK LTD.
Neighbourhood Services,Technical Services,Supplies and Services,304221,Equipment and Materials,02-Jul-2015,2921677-21561852,607.00,AGGREGATE INDUSTRIES UK LTD.
Neighbourhood Services,Technical Services,Supplies and Services,304221,Equipment and Materials,02-Jul-2015,2921677-21561853,"1,544.89",AGGREGATE INDUSTRIES UK LTD.
Neighbourhood Services,Technical Services,Supplies and Services,304221,Equipment and Materials,02-Jul-2015,2921677-21561857,"3,770.77",AGGREGATE INDUSTRIES UK LTD.
Children and Adult Services,Education,Transport,230006,Contract Hire,02-Jul-2015,2921678-388034,836.00,ALAN SOUTHERN T/A ALANS TAXIS PELTON FELL.
Children and Adult Services,Education,Transport,230008,Contract Hire,02-Jul-2015,2921678-388234,"1,639.00",ALAN SOUTHERN T/A ALANS TAXIS PELTON FELL.
Neighbourhood Services,Culture & Sport,Supplies and Services,312013,Newspapers Books and Periodicals,02-Jul-2015,2921689-4685875,700.88,ASKEWS & HOLTS LIBRARY SERVICES LTD.
Neighbourhood Services,Culture & Sport,Supplies and Services,312013,Newspapers Books and Periodicals,02-Jul-2015,2921689-4688175,524.98,ASKEWS & HOLTS LIBRARY SERVICES LTD.
Neighbourhood Services,Culture & Sport,Supplies and Services,312013,Newspapers Books and Periodicals,02-Jul-2015,2921689-4692634,575.18,ASKEWS & HOLTS LIBRARY SERVICES LTD.
Neighbourhood Services,Direct Services,Third Party Payments,430100,Rendered by Private Contractors,02-Jul-2015,2921692-INV/5248,576.00,BELL CONTROL SOLUTIONS LTD.
Children and Adult Services,Education,Construction Work,908105,Construction work,02-Jul-2015,2921694-4199690,"3,493.10",BOND DICKINSON LLP.
Regeneration & Economic Development,Economic Development and Housing,Supplies and Services,352001,Conference Expenses,02-Jul-2015,2921696-2731,650.00,BRANDON HILL COMMUNICATIONS LTD.
Neighbourhood Services,Culture & Sport,Premises,120037,Energy Costs,02-Jul-2015,2921706-4603340,974.39,CERTAS ENERGY UK LTD.
Neighbourhood Services,Technical Services,Stock,926900,Stock in hand-Inventory system,02-Jul-2015,2921707-69753,548.22,CHANTER BIOMED UK LTD.
Children and Adult Services,Education,Supplies and Services,338035,Services,02-Jul-2015,2921710-803723882,565.00,CITY & GUILDS OF LONDON INSTITUTE.
Children and Adult Services,Education,Transport,230007,Contract Hire,02-Jul-2015,2921713-300615,660.00,CM TAXIS.
Neighbourhood Services,Technical Services,Stock,926900,Stock in hand-Inventory system,02-Jul-2015,2921716-167914,"1,109.52",COLAS LTD.
Neighbourhood Services,Technical Services,Stock,926900,Stock in hand-Inventory system,02-Jul-2015,2921716-167915,"1,002.00",COLAS LTD.
Regeneration & Economic Development,Spatial Policy Planning Assets & Environment,Supplies and Services,384199,Miscellaneous Expenses,02-Jul-2015,2921717-151506,"6,750.00",COLIN WHITE TREE SURGEON.
Regeneration & Economic Development,Economic Development and Housing,Premises,108135,Service Repairs and Maintenance,02-Jul-2015,2921718-0518A,925.00,COMMERCIAL ENERGY ASSESSMENT NORTH EAST LTD.
Regeneration & Economic Development,Economic Development and Housing,Supplies and Services,384700,Miscellaneous Expenses,02-Jul-2015,2921727-23080,595.00,CRE8IVE GRAPHICS.
Children and Adult Services,Education,Transport,230008,Contract Hire,02-Jul-2015,2921729-59,"1,332.54",D CROOK T/A CK TAXIS.
Dedicated Schools Grant,Dedicated Schools Grant,Third Party Payments,425005,Rendered by Voluntary Organisations,02-Jul-2015,2921731-1001006,"4,000.00",DARLINGTON EDUCATION VILLAGE.
Regeneration & Economic Development,Spatial Policy Planning Assets & Environment,Premises,125009,Rents,02-Jul-2015,2921732-001,"17,793.75",DAVISON PROPERTY INVESTMENTS LTD.
Resources,I.C.T. Services,Stock,926900,Stock in hand-Inventory system,02-Jul-2015,2921734-7402212710,"1,900.00",DELL COMPUTER CORPORATION LTD.
Neighbourhood Services,Direct Services,Vehicles Equipment Furniture and Fittings,912541,Purchase-vehicles,02-Jul-2015,2921735-262750,"148,454.00",DENNIS EAGLE LTD.
Resources,Legal & Democratic Services,Supplies and Services,338042,Services,02-Jul-2015,2921736-305972/INVSPA46,"1,920.00",DERE STREET BARRISTERS.
Resources,Legal & Democratic Services,Supplies and Services,338042,Services,02-Jul-2015,2921736-311755/INVRR12,"2,940.00",DERE STREET BARRISTERS.
Resources,Legal & Democratic Services,Supplies and Services,338042,Services,02-Jul-2015,2921736-312292/INVCSM141,"2,940.00",DERE STREET BARRISTERS.
Resources,Legal & Democratic Services,Supplies and Services,338042,Services,02-Jul-2015,2921736-314218,900.00,DERE STREET BARRISTERS.
Regeneration & Economic Development,Transport and Contracted Services,Vehicles Equipment Furniture and Fittings,912529,Purchase-equipment,02-Jul-2015,2921752-INV28774,"3,795.00",FERROGRAPH LTD.
Neighbourhood Services,Direct Services,Supplies and Services,304221,Equipment and Materials,02-Jul-2015,2921754-1506-220788,"1,476.20",FLAME HEATING SPARES LTD.
Children and Adult Services,Childrens Services,Third Party Payments,425040,Rendered by Voluntary Organisations,02-Jul-2015,2921755-123568,730.00,FOSTER CARES LTD.
Children and Adult Services,Childrens Services,Third Party Payments,425040,Rendered by Voluntary Organisations,02-Jul-2015,2921755-123573,"1,180.00",FOSTER CARES LTD.
Children and Adult Services,Childrens Services,Third Party Payments,425040,Rendered by Voluntary Organisations,02-Jul-2015,2921755-123578,820.00,FOSTER CARES LTD.
Children and Adult Services,Childrens Services,Third Party Payments,425040,Rendered by Voluntary Organisations,02-Jul-2015,2921755-123579,820.00,FOSTER CARES LTD.
Children and Adult Services,Childrens Services,Third Party Payments,425040,Rendered by Voluntary Organisations,02-Jul-2015,2921755-123580,730.00,FOSTER CARES LTD.
Children and Adult Services,Childrens Services,Third Party Payments,425040,Rendered by Voluntary Organisations,02-Jul-2015,2921755-123590,730.00,FOSTER CARES LTD.
Children and Adult Services,Childrens Services,Third Party Payments,425040,Rendered by Voluntary Organisations,02-Jul-2015,2921755-123593,730.00,FOSTER CARES LTD.
Children and Adult Services,Childrens Services,Third Party Payments,425040,Rendered by Voluntary Organisations,02-Jul-2015,2921755-123598,730.00,FOSTER CARES LTD.
Children and Adult Services,Childrens Services,Third Party Payments,425040,Rendered by Voluntary Organisations,02-Jul-2015,2921755-123599,730.00,FOSTER CARES LTD.
Children and Adult Services,Childrens Services,Third Party Payments,486022,Service Level Agreements,02-Jul-2015,2921759-5274,"4,517.24",FSO FLEXIBLE SUPPORT OPTIONS UK (DOMICILARY) LTD.
Children and Adult Services,Education,Transport,230008,Contract Hire,02-Jul-2015,2921765-47B,641.30,GRAEME AGNEW T/A STREETCARS.
Regeneration & Economic Development,Strategy Programmes and Performance,Employees,040149,Recruitment Instruction and Training,02-Jul-2015,2921766-2817,"3,113.50",GREENGAGE CONSULTING LTD.
Children and Adult Services,Childrens Services,Supplies and Services,384491,Miscellaneous Expenses,02-Jul-2015,2921776-18454,630.00,HOUSE OF EDEN CHILDRENS NURSERY.
Regeneration & Economic Development,Transport and Contracted Services,Employees,040149,Recruitment Instruction and Training,02-Jul-2015,2921777-1818,600.00,HSF TRAINING LTD.
Dedicated Schools Grant,Dedicated Schools Grant,Transport,230010,Contract Hire,02-Jul-2015,2921779-PRU036,"1,920.00",IAN SOULSBY.
Regeneration & Economic Development,Transport and Contracted Services,Premises,145009,Cleaning and Domestic Supplies,02-Jul-2015,2921781-31541409,764.57,INITIAL WASHROOM SOLUTIONS.
Neighbourhood Services,Technical Services,Stock,926900,Stock in hand-Inventory system,02-Jul-2015,2921782-491335,"3,136.00",INSTARMAC GROUP PLC.
Neighbourhood Services,Technical Services,Employees,040149,Recruitment Instruction and Training,02-Jul-2015,2921783-IQSINV006445,"2,200.00",INSTITUTE OF SWIMMING.
Neighbourhood Services,Technical Services,Construction Work,908108,Capital - Surface Dressing,02-Jul-2015,2921787-11298,"2,267.70",JACK COUPE & SONS LTD T/A COUPE LINE.
Neighbourhood Services,Technical Services,Stock,926900,Stock in hand-Inventory system,02-Jul-2015,2921792-NI028134,"20,553.50",JOHN MACLEAN & SONS ELECTRICAL (DINGWALL) LTD.
Neighbourhood Services,Direct Services,Third Party Payments,430100,Rendered by Private Contractors,02-Jul-2015,2921800-590,"36,550.00",KARLIN TIMBER FRAME (NE) LTD.
Children and Adult Services,Education,Transport,230008,Contract Hire,02-Jul-2015,2921804-10,"2,200.00",KT TAXIS.
Children and Adult Services,Commissioning inc Supporting People,Third Party Payments,470111,Purchase of Care,02-Jul-2015,2921806-RINVTP/00363046,"3,994.97",LEONARD CHESHIRE DISABILITY.
Regeneration & Economic Development,Transport and Contracted Services,Supplies and Services,304221,Equipment and Materials,02-Jul-2015,2921818-35222,"1,740.00",MAY GURNEY LTD.
Resources,Legal & Democratic Services,Supplies and Services,338042,Services,02-Jul-2015,2921819-308230/INVDEC36,720.00,MISS DIANE CAMPBELL.
Neighbourhood Services,Projects and Business services,Construction Work,908105,Construction work,02-Jul-2015,2921823-2335,840.00,MOULDING CONTRACTS LTD.
Children and Adult Services,Childrens Services,Third Party Payments,425040,Rendered by Voluntary Organisations,02-Jul-2015,2921832-NFA136404,"3,232.99",NATIONAL FOSTERING AGENCY LTD.
Children and Adult Services,Childrens Services,Third Party Payments,425040,Rendered by Voluntary Organisations,02-Jul-2015,2921832-NFA136405,"3,100.00",NATIONAL FOSTERING AGENCY LTD.
Children and Adult Services,Childrens Services,Third Party Payments,425040,Rendered by Voluntary Organisations,02-Jul-2015,2921832-NFA136406,"2,815.83",NATIONAL FOSTERING AGENCY LTD.
Children and Adult Services,Childrens Services,Third Party Payments,425040,Rendered by Voluntary Organisations,02-Jul-2015,2921832-NFA136407,"3,232.99",NATIONAL FOSTERING AGENCY LTD.
RED HRA,Housing Revenue Account,Supplies and Services,338066,Services,02-Jul-2015,2921835-DCC-1187-0615-NL,"32,866.92",NEPRO LTD.
Children and Adult Services,Head of Adults,Third Party Payments,472101,Purchase of Care,02-Jul-2015,2921836-17791,768.50,NEURO PARTNERS LTD.
Neighbourhood Services,Technical Services,Supplies and Services,304221,Equipment and Materials,02-Jul-2015,2921840-DI20214353,"5,265.66",NORTHERN POWERGRID (NORTHEAST) LTD.
Neighbourhood Services,Technical Services,Construction Work,908112,Capital - Drainage,02-Jul-2015,2921840-NEI,"7,867.00",NORTHERN POWERGRID (NORTHEAST) LTD.
Neighbourhood Services,Projects and Business services,Third Party Payments,430100,Rendered by Private Contractors,02-Jul-2015,2921845-CN18946378,686.40,OCS GROUP UK LTD T/A CANNON HYGIENE.
Children and Adult Services,Education,Transport,230008,Contract Hire,02-Jul-2015,2921853-DCC32,"1,650.00",PAUL`S TAXIS..
Children and Adult Services,Education,Transport,230008,Contract Hire,02-Jul-2015,2921857-0379,"2,574.00",PETER`S PRIVATE HIRE/PETER BEST.
Children and Adult Services,Education,Transport,230008,Contract Hire,02-Jul-2015,2921857-0380,"1,958.00",PETER`S PRIVATE HIRE/PETER BEST.
Children and Adult Services,Education,Transport,230008,Contract Hire,02-Jul-2015,2921857-0381,640.00,PETER`S PRIVATE HIRE/PETER BEST.
Children and Adult Services,Education,Transport,230008,Contract Hire,02-Jul-2015,2921857-0382,"1,232.00",PETER`S PRIVATE HIRE/PETER BEST.
Assistant Chief Executive,Partnerships & Community Engagement Div.,Transfer Payments,525030,Other,02-Jul-2015,2921860-13181/16,"19,525.00",PIONEERING CARE PARTNERSHIP.
Neighbourhood Services,Culture & Sport,Supplies and Services,384700,Miscellaneous Expenses,02-Jul-2015,2921862-011747,"4,156.50",PLATINUM PHYSIOTHERAPY & PERSONAL TRAINING.
Neighbourhood Services,Direct Services,Supplies and Services,304221,Equipment and Materials,02-Jul-2015,2921864-INV212622,"4,031.11",POINTER FIRE LTD.
Neighbourhood Services,Direct Services,Supplies and Services,304221,Equipment and Materials,02-Jul-2015,2921864-INV212624,"3,318.75",POINTER FIRE LTD.
Neighbourhood Services,Culture & Sport,Premises,115125,Repairs to Grounds,02-Jul-2015,2921865-PCS4668,"1,132.00",POOL COVER SYSTEMS UK.
Neighbourhood Services,Culture & Sport,Supplies and Services,384167,Miscellaneous Expenses,02-Jul-2015,2921870-5019,"1,450.00",QUEST & NBS.
Regeneration & Economic Development,Spatial Policy Planning Assets & Environment,Supplies and Services,338027,Services,02-Jul-2015,2921874-150284,"2,400.00",RENAISSANCE RESEARCH UK LTD.
Regeneration & Economic Development,Spatial Policy Planning Assets & Environment,Premises,125009,Rents,02-Jul-2015,2921875-9/6/15,"28,926.00",RICE PROPERTY SERVICES LTD.
Resources,Legal & Democratic Services,Premises,125009,Rents,02-Jul-2015,2921878-7076,541.48,RIVERGREEN DEVELOPMENTS PLC.
Children and Adult Services,Education,Transport,230008,Contract Hire,02-Jul-2015,2921880-363,682.00,ROAD RUNNERS (NE) LTD.
Children and Adult Services,Education,Transport,230008,Contract Hire,02-Jul-2015,2921880-364,"1,430.00",ROAD RUNNERS (NE) LTD.
Dedicated Schools Grant,Dedicated Schools Grant,Transport,230010,Contract Hire,02-Jul-2015,2921880-366,"1,100.00",ROAD RUNNERS (NE) LTD.
Neighbourhood Services,Direct Services,Transport,230005,Contract Hire,02-Jul-2015,2921881-IV53218,"1,510.00",RTR RIVERSIDE TRUCK RENTAL LTD.
Children and Adult Services,Education,Transport,230008,Contract Hire,02-Jul-2015,2921883-SA052,"1,088.34",S & A TAXIS.
Neighbourhood Services,Culture & Sport,Supplies and Services,384540,Miscellaneous Expenses,02-Jul-2015,2921886-3590,525.00,SAVILLS UK LTD.
Regeneration & Economic Development,Transport and Contracted Services,Third Party Payments,430106,Rendered by Private Contractors,02-Jul-2015,2921887-103,"3,174.74",SB TRAVEL.
Children and Adult Services,Education,Transport,230008,Contract Hire,02-Jul-2015,2921895-34,"1,760.00",SHARON`S TAXI.
Neighbourhood Services,Direct Services,Supplies and Services,304259,Equipment and Materials,02-Jul-2015,2921896-CD970217981,746.64,SHERRIFF AMENITY.
Children and Adult Services,Education,Transport,230008,Contract Hire,02-Jul-2015,2921898-71790,924.00,SHOTTON PRIVATE HIRE.
Neighbourhood Services,Technical Services,Supplies and Services,304221,Equipment and Materials,02-Jul-2015,2921901-222221,767.75,SIGNPOST SOLUTIONS LTD.
Regeneration & Economic Development,Economic Development and Housing,Supplies and Services,338066,Services,02-Jul-2015,2921903-SSL00014,"10,000.00",SMART SPECIALISATION LTD.
Neighbourhood Services,Technical Services,Employees,040149,Recruitment Instruction and Training,02-Jul-2015,2921907-44731,"1,990.00",SSG TRAINING & CONSULTANCY LTD.
Regeneration & Economic Development,Transport and Contracted Services,Third Party Payments,430106,Rendered by Private Contractors,02-Jul-2015,2921908-14605,"12,137.36",STANLEY TRAVEL (NORTH EAST) LTD.
Children and Adult Services,Education,Transport,230008,Contract Hire,02-Jul-2015,2921911-009/A032,"1,080.00",STEPHEN COXON.
Children and Adult Services,Childrens Services,Supplies and Services,338027,Services,02-Jul-2015,2921913-MAR15SESSIONS,"1,139.95",SUE WOOLMORE T/A SANDSTORIES.
Resources,I.C.T. Services,Construction Work,908105,Construction work,02-Jul-2015,2921915-121856,"4,800.00",SWITCHSHOP LTD.
Children and Adult Services,Education,Transport,230007,Contract Hire,02-Jul-2015,2921916-37906A,"2,534.40",T MOORE & SON.
Regeneration & Economic Development,Spatial Policy Planning Assets & Environment,Supplies and Services,384540,Miscellaneous Expenses,02-Jul-2015,2921925-1193,895.00,THE UNKNOWN CREATIVE LTD.
Neighbourhood Services,Direct Services,Transport,230005,Contract Hire,02-Jul-2015,2921928-12363,800.00,TRASH UK LTD.
Neighbourhood Services,Direct Services,Transport,230005,Contract Hire,02-Jul-2015,2921928-12364,800.00,TRASH UK LTD.
Children and Adult Services,Education,Transport,230008,Contract Hire,02-Jul-2015,2921929-081,"1,060.32",TRUDY`S.
Children and Adult Services,Education,Transport,230008,Contract Hire,02-Jul-2015,2921930-32,"1,927.17",TT TAXIS.
Regeneration & Economic Development,Transport and Contracted Services,Supplies and Services,304245,Equipment and Materials,02-Jul-2015,2921932-3IN/10262930,"19,644.00",TUNSTALL HEALTHCARE (UK) LTD.
Neighbourhood Services,Direct Services,Supplies and Services,304221,Equipment and Materials,02-Jul-2015,2921938-112976,"3,385.00",VIRIDIS ENVIRONMENTAL SOLUTIONS LTD.
Neighbourhood Services,Technical Services,Third Party Payments,430100,Rendered by Private Contractors,02-Jul-2015,2921942-201550136,916.00,WEMO TEC UK LTD.
Children and Adult Services,Education,Transport,230006,Contract Hire,02-Jul-2015,2921944-429934,840.00,WENDYS` TAXIS.
Children and Adult Services,Education,Transport,230006,Contract Hire,02-Jul-2015,2921946-0615,"2,040.00",WEST AUCKLAND TOWN TRAVEL (WATT).
Neighbourhood Services,Technical Services,Supplies and Services,304358,Equipment and Materials,02-Jul-2015,2921948-4929,666.00,YOULL CONSTRUCTION LTD.
Children and Adult Services,Education,Transport,230007,Contract Hire,03-Jul-2015,2921954-AK4304LC8,"1,277.00",A & K TAXIS.
Children and Adult Services,Education,Transport,230008,Contract Hire,03-Jul-2015,2921955-18,"1,326.82",A & P TAXIS.
Regeneration & Economic Development,Economic Development and Housing,Cap Exp on Grants & Other Financial Assistance (REFCUS),918501,Exp assets not owned by authority,03-Jul-2015,2921956-RED-07-2015-007,"7,748.70",A OGILVIE BUILDING CONTRACTORS LTD.
Regeneration & Economic Development,Economic Development and Housing,Cap Exp on Grants & Other Financial Assistance (REFCUS),918401,Capital grants,03-Jul-2015,2921956-RED-07-2015-009,"7,226.74",A OGILVIE BUILDING CONTRACTORS LTD.
Children and Adult Services,Education,Transport,230007,Contract Hire,03-Jul-2015,2921957-45,"1,286.78",AALPHA TAXIS.
Neighbourhood Services,Technical Services,Employees,040149,Recruitment Instruction and Training,03-Jul-2015,2921959-13576,"1,240.00",ACCESS TRAINING SERVICES.
Neighbourhood Services,Technical Services,Supplies and Services,304221,Equipment and Materials,03-Jul-2015,2921962-21568173,975.04,AGGREGATE INDUSTRIES UK LTD.
Neighbourhood Services,Technical Services,Supplies and Services,304221,Equipment and Materials,03-Jul-2015,2921962-21568288,"1,252.75",AGGREGATE INDUSTRIES UK LTD.
Neighbourhood Services,Technical Services,Supplies and Services,304221,Equipment and Materials,03-Jul-2015,2921962-21568289,"1,655.51",AGGREGATE INDUSTRIES UK LTD.
Neighbourhood Services,Technical Services,Supplies and Services,304221,Equipment and Materials,03-Jul-2015,2921962-21568290,"6,287.55",AGGREGATE INDUSTRIES UK LTD.
Children and Adult Services,Education,Transport,230008,Contract Hire,03-Jul-2015,2921963-388134,880.00,ALAN SOUTHERN T/A ALANS TAXIS PELTON FELL.
Children and Adult Services,Education,Transport,230006,Contract Hire,03-Jul-2015,2921979-DCC11JUNE15,890.00,ATLAS TAXIS BISHOP AUCKLAND.
Children and Adult Services,Education,Transport,230006,Contract Hire,03-Jul-2015,2921979-DCC11MAY15,750.00,ATLAS TAXIS BISHOP AUCKLAND.
Children and Adult Services,Education,Transport,230008,Contract Hire,03-Jul-2015,2921979-DCC6JUNE15,"3,685.30",ATLAS TAXIS BISHOP AUCKLAND.
Resources,Legal & Democratic Services,Transfer Payments,525064,Other,03-Jul-2015,2921985-RES-07-2015-005,"491,311.98",BEVAN BRITTAN LLP.
Regeneration & Economic Development,Economic Development and Housing,Supplies and Services,304259,Equipment and Materials,03-Jul-2015,2921988-FLLA2532880,831.39,BNP PARIBAS LEASE GROUP (RENTALS).
Resources,I.C.T. Services,Supplies and Services,338099,Services,03-Jul-2015,2921994-DUR,"17,244.99",BRITISH TELECOMMUNICATIONS PLC.
Children and Adult Services,Education,Transport,230008,Contract Hire,03-Jul-2015,2921996-PS0105,"1,390.40",BURNDALE PRIVATE HIRE.
Children and Adult Services,Education,Transport,230008,Contract Hire,03-Jul-2015,2921998-BIL0059,"1,767.70",CA MUSGROVE.
Neighbourhood Services,Technical Services,Supplies and Services,338027,Services,03-Jul-2015,2922001-6017016520,"12,360.00",CAPITA PROPERTY & INFRASTRUCTURE LTD.
Children and Adult Services,Head of Adults,Supplies and Services,338366,Services,03-Jul-2015,2922003-25214,"2,750.00",CARE ABILITY.
Children and Adult Services,Head of Adults,Supplies and Services,338366,Services,03-Jul-2015,2922003-25375,"2,784.00",CARE ABILITY.
Neighbourhood Services,Culture & Sport,Supplies and Services,324001,Provisions,03-Jul-2015,2922005-841562845,881.37,CARLSBERG UK LTD.
Neighbourhood Services,Technical Services,Stock,926900,Stock in hand-Inventory system,03-Jul-2015,2922011-69774,"1,011.30",CHANTER BIOMED UK LTD.
Resources,I.C.T. Services,Supplies and Services,332029,Printing Stationery and Gen Off Exps,03-Jul-2015,2922014-201-0081668-001,"2,400.50",CIT VENDOR FINANCE (UK) LTD.
Children and Adult Services,Education,Transfer Payments,510026,School Children,03-Jul-2015,2922016-05/01-08/06/2015,877.50,CLEVER CLOGS DAY NURSERIES LTD.
Children and Adult Services,Education,Transfer Payments,510026,School Children,03-Jul-2015,2922016-16/02-25/05/2015,"1,150.50",CLEVER CLOGS DAY NURSERIES LTD.
Children and Adult Services,Education,Transfer Payments,510026,School Children,03-Jul-2015,2922016-SL-5/1/15-4/5/15,"1,092.00",CLEVER CLOGS DAY NURSERIES LTD.
Children and Adult Services,Childrens Services,Supplies and Services,384540,Miscellaneous Expenses,03-Jul-2015,2922020-SNE010762,500.00,COMMUNICORP UK.
Children and Adult Services,Education,Transport,230008,Contract Hire,03-Jul-2015,2922039-G/HEAD006,"1,635.00",D IRVING T/A BJ TAXIS.
Children and Adult Services,Education,Transport,230008,Contract Hire,03-Jul-2015,2922039-MEAD010,990.00,D IRVING T/A BJ TAXIS.
Children and Adult Services,Education,Transport,230008,Contract Hire,03-Jul-2015,2922040-1411,"1,056.00",DA TAXIS.
Resources,Legal & Democratic Services,Supplies and Services,338042,Services,03-Jul-2015,2922051-314210/INVBD65,"1,200.00",DERE STREET BARRISTERS.
Resources,Legal & Democratic Services,Supplies and Services,338042,Services,03-Jul-2015,2922051-314347/INVBD66,540.00,DERE STREET BARRISTERS.
Resources,Legal & Democratic Services,Supplies and Services,338042,Services,03-Jul-2015,2922051-314658/INVBD68,"1,200.00",DERE STREET BARRISTERS.
Neighbourhood Services,Culture & Sport,Supplies and Services,384237,Miscellaneous Expenses,03-Jul-2015,2922065-ECBLEVEL2,825.00,DURHAM CRICKET BOARD COACHES ASSOCIATION.
Assistant Chief Executive,Partnerships & Community Engagement Div.,Cap Exp on Grants & Other Financial Assistance (REFCUS),918004,Contributions to other bodies,03-Jul-2015,2922066-VOUCHER14AB-DCTY011,"5,010.00",DURHAM POLICE & CRIME COMMISSIONER.
Assistant Chief Executive,Partnerships & Community Engagement Div.,Transfer Payments,525030,Other,03-Jul-2015,2922067-VOUCHER15AB-CHES002,"5,000.00",DURHAM POLICE & CRIME COMMISSIONER.
Children and Adult Services,Public Health,Transport,215025,Running Costs of Vehicles,03-Jul-2015,2922076-INS-40093,"11,440.08",ENSURE UK LTD.
Children and Adult Services,Childrens Services,Third Party Payments,425040,Rendered by Voluntary Organisations,03-Jul-2015,2922085-123620,730.00,FOSTER CARES LTD.
Children and Adult Services,Childrens Services,Third Party Payments,425040,Rendered by Voluntary Organisations,03-Jul-2015,2922085-123630,820.00,FOSTER CARES LTD.
Children and Adult Services,Childrens Services,Third Party Payments,425040,Rendered by Voluntary Organisations,03-Jul-2015,2922085-123631,820.00,FOSTER CARES LTD.
Children and Adult Services,Childrens Services,Third Party Payments,425040,Rendered by Voluntary Organisations,03-Jul-2015,2922085-123632,730.00,FOSTER CARES LTD.
Children and Adult Services,Childrens Services,Third Party Payments,425040,Rendered by Voluntary Organisations,03-Jul-2015,2922085-123642,730.00,FOSTER CARES LTD.
Children and Adult Services,Childrens Services,Third Party Payments,425040,Rendered by Voluntary Organisations,03-Jul-2015,2922085-123645,730.00,FOSTER CARES LTD.
Children and Adult Services,Childrens Services,Third Party Payments,425040,Rendered by Voluntary Organisations,03-Jul-2015,2922085-123650,730.00,FOSTER CARES LTD.
Children and Adult Services,Childrens Services,Third Party Payments,425040,Rendered by Voluntary Organisations,03-Jul-2015,2922085-123651,730.00,FOSTER CARES LTD.
Neighbourhood Services,Technical Services,Supplies and Services,304357,Equipment and Materials,03-Jul-2015,2922091-DCC210615,"12,019.36",GAP GROUP LTD.
Neighbourhood Services,Direct Services,Premises,145023,Cleaning and Domestic Supplies,03-Jul-2015,2922099-06/559445,564.75,GREENHAM TRADING LTD.
Regeneration & Economic Development,Transport and Contracted Services,Construction Work,908105,Construction work,03-Jul-2015,2922102-RED-06-2015-093,"5,000.00",GROUNDWORK NORTH EAST.
Neighbourhood Services,Direct Services,Transport,215005,Running Costs of Vehicles,03-Jul-2015,2922106-537971,"33,552.93",HARVEST ENERGY LTD.
Neighbourhood Services,Direct Services,Transport,215022,Running Costs of Vehicles,03-Jul-2015,2922106-538321,638.17,HARVEST ENERGY LTD.
Children and Adult Services,Public Health,Employees,015001,National Insurance,03-Jul-2015,2922110-465PQ00149824,"3,132.32",HMRC..
Children and Adult Services,Education,Transport,230008,Contract Hire,03-Jul-2015,2922113-21,"1,260.00",IAN SHEPLEY T/A SHEPPA`S TAXIS.
Neighbourhood Services,Technical Services,Stock,926900,Stock in hand-Inventory system,03-Jul-2015,2922118-491521,"3,136.00",INSTARMAC GROUP PLC.
Neighbourhood Services,Technical Services,Supplies and Services,304221,Equipment and Materials,03-Jul-2015,2922128-08/85989,543.60,JOHN DAVIDSON (PIPES) LTD.
Neighbourhood Services,Direct Services,Supplies and Services,304221,Equipment and Materials,03-Jul-2015,2922133-BII163559,755.18,JT DOVE LTD.
Neighbourhood Services,Technical Services,Stock,926900,Stock in hand-Inventory system,03-Jul-2015,2922133-PHBII24438,"1,800.00",JT DOVE LTD.
Neighbourhood Services,Technical Services,Stock,926900,Stock in hand-Inventory system,03-Jul-2015,2922133-PHBII24439,"1,800.00",JT DOVE LTD.
Resources,I.C.T. Services,Supplies and Services,304303,Equipment and Materials,03-Jul-2015,2922136-37156,"3,692.50",KBR IT & NETWORKING SOLUTIONS.
Children and Adult Services,Education,Transport,230008,Contract Hire,03-Jul-2015,2922137-0071,840.00,KEN CHAMBERS T/A SHILDON TRANSPORT LTD.
Children and Adult Services,Education,Supplies and Services,338027,Services,03-Jul-2015,2922144-1000413,"27,815.40",KING JAMES I ACADEMY.
Neighbourhood Services,Technical Services,Third Party Payments,430100,Rendered by Private Contractors,03-Jul-2015,2922145-1860,"47,253.89",L & G PLANT HIRE & SALES LTD.
Regeneration & Economic Development,Spatial Policy Planning Assets & Environment,Supplies and Services,338066,Services,03-Jul-2015,2922151-04-JUNE15,"2,400.00",LAURIE LAMBETH.
Regeneration & Economic Development,Economic Development and Housing,Supplies and Services,384999,Miscellaneous Expenses,03-Jul-2015,2922160-RED-07-2015-032,"1,324.00",LIVIN HOUSING LTD.
Regeneration & Economic Development,Economic Development and Housing,Cap Exp on Grants & Other Financial Assistance (REFCUS),918401,Capital grants,03-Jul-2015,2922168-RED-07-2015-013,"4,840.00",M & R DEVELOPMENTS & CONTRACTORS LTD..
Neighbourhood Services,Technical Services,Stock,926900,Stock in hand-Inventory system,03-Jul-2015,2922170-0000914167,600.10,MAGDEN LTD.
Children and Adult Services,Education,Transport,230008,Contract Hire,03-Jul-2015,2922172-10,"1,540.00",MALCOLM CARR T/A CARLY CABS.
Neighbourhood Services,Technical Services,Third Party Payments,430100,Rendered by Private Contractors,03-Jul-2015,2922196-NC1/C395/BW,"5,215.04",NEDCO CONTRACTS (NE) LTD.
Neighbourhood Services,Technical Services,Supplies and Services,304221,Equipment and Materials,03-Jul-2015,2922196-NC10/C366/BW,"16,296.00",NEDCO CONTRACTS (NE) LTD.
Neighbourhood Services,Technical Services,Supplies and Services,304221,Equipment and Materials,03-Jul-2015,2922196-NC11/C366/BW,"3,431.00",NEDCO CONTRACTS (NE) LTD.
Children and Adult Services,Head of Adults,Supplies and Services,308011,Furniture,03-Jul-2015,2922200-2978,"2,529.60",NEWAVE FURNITURE DESIGN.
Resources,Human Resources,Supplies and Services,338064,Services,03-Jul-2015,2922208-10762,"10,296.00",NORTH EAST REGIONAL EMPLOYERS ORGANISATION.
Neighbourhood Services,Technical Services,Construction Work,908105,Construction work,03-Jul-2015,2922211-NEI,"1,256.00",NORTHERN POWERGRID (NORTHEAST) LTD.
Regeneration & Economic Development,Economic Development and Housing,Premises,135005,Water Services,03-Jul-2015,2922212-306808140016055,634.20,NORTHUMBRIAN WATER LTD.
Regeneration & Economic Development,Economic Development and Housing,Premises,135005,Water Services,03-Jul-2015,2922212-313379600016055,927.29,NORTHUMBRIAN WATER LTD.
Regeneration & Economic Development,Economic Development and Housing,Employees,040149,Recruitment Instruction and Training,03-Jul-2015,2922218-T030,"1,700.00",OLDFIELD`S CONSULTANCY LTD.
Neighbourhood Services,Technical Services,Stock,926900,Stock in hand-Inventory system,03-Jul-2015,2922224-XL145117,"2,249.10",PARK ELECTRICAL DISTRIBUTORS LTD.
Neighbourhood Services,Technical Services,Stock,926900,Stock in hand-Inventory system,03-Jul-2015,2922224-XL145133,897.00,PARK ELECTRICAL DISTRIBUTORS LTD.
Assistant Chief Executive,Partnerships & Community Engagement Div.,Transfer Payments,525030,Other,03-Jul-2015,2922225-VOUCHER15AB-CHES005,"2,600.00",PARK VIEW COMMUNITY ASSOCIATION.
Children and Adult Services,Education,Transport,230008,Contract Hire,03-Jul-2015,2922226-DCC33,"1,857.02",PAUL`S TAXIS..
Children and Adult Services,Education,Supplies and Services,304259,Equipment and Materials,03-Jul-2015,2922232-1264,"2,848.00",PHIL PARKER LTD.
Children and Adult Services,Childrens Services,Premises,145009,Cleaning and Domestic Supplies,03-Jul-2015,2922235-62412839,"1,769.44",PHS GROUP PLC.
Assistant Chief Executive,Partnerships & Community Engagement Div.,Transfer Payments,525030,Other,03-Jul-2015,2922238-13156/16,"7,613.00",PIONEERING CARE PARTNERSHIP.
Children and Adult Services,Public Health,Third Party Payments,460803,Contract Payments,03-Jul-2015,2922238-13182/16,"7,397.53",PIONEERING CARE PARTNERSHIP.
Children and Adult Services,Education,Supplies and Services,384199,Miscellaneous Expenses,03-Jul-2015,2922258-SI-1,568.00,REDMAT LTD.
Children and Adult Services,Education,Supplies and Services,342051,Computers and Communications,03-Jul-2015,2922284-6038000840A,"19,600.88",SERVICE BIRMINGHAM LTD.
Neighbourhood Services,Direct Services,Supplies and Services,304259,Equipment and Materials,03-Jul-2015,2922286-CD970223919,"1,331.20",SHERRIFF AMENITY.
Neighbourhood Services,Technical Services,Stock,926900,Stock in hand-Inventory system,03-Jul-2015,2922296-SI15004900,616.10,SOLON SECURITY LTD.
Neighbourhood Services,Technical Services,Supplies and Services,342225,Computers and Communications,03-Jul-2015,2922299-OP/M013588,584.26,SPECIALIST COMPUTER CENTRES PLC.
Dedicated Schools Grant,Dedicated Schools Grant,Third Party Payments,410037,Rendered by Other Local Authorities,03-Jul-2015,2922302-SD515,"3,712.33",SPRINGWELL DENE ACADEMY.
Dedicated Schools Grant,Dedicated Schools Grant,Transport,230010,Contract Hire,03-Jul-2015,2922307-012,"1,904.50",STEPHEN REED T/A STEVE`S TAXIS.
Children and Adult Services,Education,Transport,230008,Contract Hire,03-Jul-2015,2922309-00036,"1,005.00",STEVES TAXIS.
Resources,I.C.T. Services,Supplies and Services,342033,Computers and Communications,03-Jul-2015,2922316-121784,"2,188.00",SWITCHSHOP LTD.
Dedicated Schools Grant,Dedicated Schools Grant,Employees,080025,Agency Staff,03-Jul-2015,2922321-1016402,"2,372.15",TEACHING PERSONNEL LTD.
Neighbourhood Services,Direct Services,Third Party Payments,430100,Rendered by Private Contractors,03-Jul-2015,2922323-7016,"3,468.46",TEAMS ROOFING LTD.
Neighbourhood Services,Direct Services,Third Party Payments,430100,Rendered by Private Contractors,03-Jul-2015,2922323-7040,"2,443.95",TEAMS ROOFING LTD.
Regeneration & Economic Development,Economic Development and Housing,Cap Exp on Grants & Other Financial Assistance (REFCUS),918401,Capital grants,03-Jul-2015,2922334-RED-07-2015-010,"4,040.00",THYSSENKRUPP ENCASA A DIVISION OF THYSSENKRUPP ACCESS LTD.
Regeneration & Economic Development,Economic Development and Housing,Cap Exp on Grants & Other Financial Assistance (REFCUS),918401,Capital grants,03-Jul-2015,2922334-RED-07-2015-011,"1,410.00",THYSSENKRUPP ENCASA A DIVISION OF THYSSENKRUPP ACCESS LTD.
Neighbourhood Services,Technical Services,Supplies and Services,304221,Equipment and Materials,03-Jul-2015,2922338-114098,515.59,TP ELECTRICAL SUPPLIES & FIXINGS LTD.
Neighbourhood Services,Technical Services,Stock,926900,Stock in hand-Inventory system,03-Jul-2015,2922343-INV20210,"1,310.60",TRENT CASTINGS LTD.
Neighbourhood Services,Technical Services,Supplies and Services,304221,Equipment and Materials,03-Jul-2015,2922348-149791,941.92,TYNEDALE ROADSTONE LTD.
Children and Adult Services,Education,Vehicles Equipment Furniture and Fittings,912529,Purchase-equipment,03-Jul-2015,2922353-2829,"6,556.75",UPNORTH FOODSERVICE EQUIPMENT LTD.
Neighbourhood Services,Direct Services,Supplies and Services,304221,Equipment and Materials,03-Jul-2015,2922364-23390655,"1,845.55",WOLSELEY UK LTD.
Resources,I.C.T. Services,Vehicles Equipment Furniture and Fittings,912701,Computer equipment,03-Jul-2015,2922366-Y286003,"1,665.30",XMA LTD.
Children and Adult Services,Education,Transport,230006,Contract Hire,06-Jul-2015,2922370-61505,"1,416.00",24/7 TAXI SERVICES LTD.
Children and Adult Services,Education,Transport,230006,Contract Hire,06-Jul-2015,2922370-61506,944.00,24/7 TAXI SERVICES LTD.
Children and Adult Services,Education,Transport,230008,Contract Hire,06-Jul-2015,2922370-61507,"1,254.00",24/7 TAXI SERVICES LTD.
Children and Adult Services,Education,Supplies and Services,312009,Newspapers Books and Periodicals,06-Jul-2015,2922371-OP/1002992,"1,046.50",4CHILDREN (TRADING) LTD.
Neighbourhood Services,Culture & Sport,Premises,106082,Centrally Controlled Rep and Maint,06-Jul-2015,2922376-IN1009,"14,053.56",ACROL AIR CONDITIONING CO LTD.
Children and Adult Services,Childrens Services,Premises,106080,Centrally Controlled Rep and Maint,06-Jul-2015,2922379-29635844-61,"9,502.32",ADT FIRE & SECURITY PLC.
Neighbourhood Services,Technical Services,Supplies and Services,304221,Equipment and Materials,06-Jul-2015,2922381-21574641,864.81,AGGREGATE INDUSTRIES UK LTD.
Neighbourhood Services,Technical Services,Supplies and Services,304221,Equipment and Materials,06-Jul-2015,2922381-21574772,"1,251.49",AGGREGATE INDUSTRIES UK LTD.
Neighbourhood Services,Technical Services,Supplies and Services,304221,Equipment and Materials,06-Jul-2015,2922381-21574773,"1,534.15",AGGREGATE INDUSTRIES UK LTD.
Neighbourhood Services,Technical Services,Supplies and Services,304221,Equipment and Materials,06-Jul-2015,2922381-21574774,"3,744.45",AGGREGATE INDUSTRIES UK LTD.
Neighbourhood Services,Technical Services,Supplies and Services,304221,Equipment and Materials,06-Jul-2015,2922381-21574775,618.28,AGGREGATE INDUSTRIES UK LTD.
Neighbourhood Services,Technical Services,Supplies and Services,304221,Equipment and Materials,06-Jul-2015,2922381-21581588,"1,226.74",AGGREGATE INDUSTRIES UK LTD.
Neighbourhood Services,Technical Services,Supplies and Services,304221,Equipment and Materials,06-Jul-2015,2922381-21581589,758.53,AGGREGATE INDUSTRIES UK LTD.
Children and Adult Services,Education,Transport,230007,Contract Hire,06-Jul-2015,2922384-047,"1,100.00",ALANS TAXIS BARNARD CASTLE.
Neighbourhood Services,Technical Services,Stock,926900,Stock in hand-Inventory system,06-Jul-2015,2922395-924855631,"1,100.88",ARCO LTD.
Regeneration & Economic Development,Economic Development and Housing,Fees,901004,Capital - Detailed Design,06-Jul-2015,2922399-5282,"4,093.75",ASHLEY SMITH.
Neighbourhood Services,Culture & Sport,Supplies and Services,384199,Miscellaneous Expenses,06-Jul-2015,2922400-914633,"1,550.00",ASHTEAD PLANT HIRE CO LTD.
Neighbourhood Services,Culture & Sport,Fees,901002,Professional fees,06-Jul-2015,2922403-15007764,"3,869.72",ATKINS GLOBAL.
Children and Adult Services,Education,Transport,230008,Contract Hire,06-Jul-2015,2922413-1848,"1,848.00",BOBBY DOVE.
Resources,I.C.T. Services,Supplies and Services,332029,Printing Stationery and Gen Off Exps,06-Jul-2015,2922415-6862,905.00,BORDER SIGNS & GRAPHICS.
Regeneration & Economic Development,Economic Development and Housing,Supplies and Services,338066,Services,06-Jul-2015,2922420-SI-105499,"5,250.00",BUSINESS & ENTERPRISE COMMERCIAL LTD T/A BE GROUP.
Children and Adult Services,Education,Transport,230008,Contract Hire,06-Jul-2015,2922422-A02003,"1,760.00",C & R TAXIS.
Children and Adult Services,Head of Adults,Supplies and Services,338366,Services,06-Jul-2015,2922423-24812,"5,700.72",CARE ABILITY.
Neighbourhood Services,Culture & Sport,Supplies and Services,324117,Provisions,06-Jul-2015,2922425-841572394,748.66,CARLSBERG UK LTD.
Neighbourhood Services,Culture & Sport,Supplies and Services,328041,Clothing Uniforms and Laundry,06-Jul-2015,2922426-460059,877.19,CARRS BILLINGTON AGRICULTURE.
Neighbourhood Services,Technical Services,Stock,926900,Stock in hand-Inventory system,06-Jul-2015,2922430-9950/01650349,988.22,CERAMIC TILE DISTRIBUTORS (CTD).
Children and Adult Services,Education,Transport,230008,Contract Hire,06-Jul-2015,2922441-242,"1,298.00",COLIN HOLMES.
Resources,I.C.T. Services,Stock,926900,Stock in hand-Inventory system,06-Jul-2015,2922452-7402213921,"1,776.12",DELL COMPUTER CORPORATION LTD.
Resources,I.C.T. Services,Supplies and Services,342033,Computers and Communications,06-Jul-2015,2922452-7402213932,763.68,DELL COMPUTER CORPORATION LTD.
Resources,I.C.T. Services,Stock,926900,Stock in hand-Inventory system,06-Jul-2015,2922452-7402213948,"1,771.92",DELL COMPUTER CORPORATION LTD.
Neighbourhood Services,Direct Services,Transport,215013,Running Costs of Vehicles,06-Jul-2015,2922453-D94104,705.00,DENNIS EAGLE LTD.
Assistant Chief Executive,Partnerships & Community Engagement Div.,Supplies and Services,384085,Miscellaneous Expenses,06-Jul-2015,2922455-MARC04-15,500.00,DERWENTSIDE WERDOHL FRIENDSHIP CLUB.
Resources,Financial Services,Transfer Payments,520002,Housing Benefits,06-Jul-2015,2922461-RENT,"2,491.84",DURHAM CITY HOMES LTD.
Resources,I.C.T. Services,Employees,040149,Recruitment Instruction and Training,06-Jul-2015,2922463-INV-0072,648.00,DYNAMO NORTH EAST CIC.
Regeneration & Economic Development,Economic Development and Housing,Cap Exp on Grants & Other Financial Assistance (REFCUS),918401,Capital grants,06-Jul-2015,2922464-RED-07-2015-012,"3,764.30",EASIBATHE LTD.
Resources,Financial Services,Transfer Payments,520002,Housing Benefits,06-Jul-2015,2922466-RENT,"2,519.95",EAST DURHAM HOMES.
Regeneration & Economic Development,Economic Development and Housing,Supplies and Services,338027,Services,06-Jul-2015,2922472-150601,"1,200.00",EP TURLEY T/A BRAND INITIATIVE DESIGN CONSULTANCY.
Assistant Chief Executive,Partnerships & Community Engagement Div.,Supplies and Services,384085,Miscellaneous Expenses,06-Jul-2015,2922475-CRAP03-15,500.00,FERRYHILL 2000 COMMITTEE.
Neighbourhood Services,Technical Services,Employees,040149,Recruitment Instruction and Training,06-Jul-2015,2922476-111546,720.00,FIELD STUDIES COUNCIL.
Children and Adult Services,Childrens Services,Third Party Payments,425040,Rendered by Voluntary Organisations,06-Jul-2015,2922478-0000055767,"3,232.99",FIVE RIVERS CHILD CARE LTD.
Assistant Chief Executive,Partnerships & Community Engagement Div.,Supplies and Services,384085,Miscellaneous Expenses,06-Jul-2015,2922479-LAIA01-15,600.00,FIVE STAR FOOTBALL TEAM.
Children and Adult Services,Childrens Services,Third Party Payments,425040,Rendered by Voluntary Organisations,06-Jul-2015,2922481-630158333,"4,079.43",FOSTER CARE ASSOCIATES LTD.
Children and Adult Services,Childrens Services,Third Party Payments,425040,Rendered by Voluntary Organisations,06-Jul-2015,2922481-630158608,"4,079.43",FOSTER CARE ASSOCIATES LTD.
Children and Adult Services,Childrens Services,Third Party Payments,425040,Rendered by Voluntary Organisations,06-Jul-2015,2922481-630158681,"4,079.43",FOSTER CARE ASSOCIATES LTD.
Children and Adult Services,Childrens Services,Third Party Payments,425040,Rendered by Voluntary Organisations,06-Jul-2015,2922481-630158741,"4,079.43",FOSTER CARE ASSOCIATES LTD.
Children and Adult Services,Childrens Services,Third Party Payments,425040,Rendered by Voluntary Organisations,06-Jul-2015,2922481-630158993,"4,079.43",FOSTER CARE ASSOCIATES LTD.
Children and Adult Services,Childrens Services,Third Party Payments,425040,Rendered by Voluntary Organisations,06-Jul-2015,2922482-123672,730.00,FOSTER CARES LTD.
Children and Adult Services,Childrens Services,Third Party Payments,425040,Rendered by Voluntary Organisations,06-Jul-2015,2922482-123677,"1,180.00",FOSTER CARES LTD.
Children and Adult Services,Childrens Services,Third Party Payments,425040,Rendered by Voluntary Organisations,06-Jul-2015,2922482-123682,820.00,FOSTER CARES LTD.
Children and Adult Services,Childrens Services,Third Party Payments,425040,Rendered by Voluntary Organisations,06-Jul-2015,2922482-123683,820.00,FOSTER CARES LTD.
Children and Adult Services,Childrens Services,Third Party Payments,425040,Rendered by Voluntary Organisations,06-Jul-2015,2922482-123684,730.00,FOSTER CARES LTD.
Children and Adult Services,Childrens Services,Third Party Payments,425040,Rendered by Voluntary Organisations,06-Jul-2015,2922482-123694,730.00,FOSTER CARES LTD.
Children and Adult Services,Childrens Services,Third Party Payments,425040,Rendered by Voluntary Organisations,06-Jul-2015,2922482-123697,730.00,FOSTER CARES LTD.
Children and Adult Services,Childrens Services,Third Party Payments,425040,Rendered by Voluntary Organisations,06-Jul-2015,2922482-123702,730.00,FOSTER CARES LTD.
Children and Adult Services,Childrens Services,Third Party Payments,425040,Rendered by Voluntary Organisations,06-Jul-2015,2922482-123703,730.00,FOSTER CARES LTD.
Regeneration & Economic Development,Economic Development and Housing,Supplies and Services,338027,Services,06-Jul-2015,2922486-INV00190,"1,695.06",FUSION STEM LTD.
Neighbourhood Services,Direct Services,Third Party Payments,430100,Rendered by Private Contractors,06-Jul-2015,2922487-93366967,641.85,GARDNER DENVER LTD.
Neighbourhood Services,Technical Services,Stock,926900,Stock in hand-Inventory system,06-Jul-2015,2922491-SINV-083520,"3,360.15",GELPACK EXCELSIOR LTD.
Neighbourhood Services,Technical Services,Third Party Payments,430100,Rendered by Private Contractors,06-Jul-2015,2922494-29750,640.00,GRAB & DELIVER LTD.
Neighbourhood Services,Technical Services,Supplies and Services,304221,Equipment and Materials,06-Jul-2015,2922494-29751,"1,833.50",GRAB & DELIVER LTD.
Neighbourhood Services,Technical Services,Supplies and Services,304221,Equipment and Materials,06-Jul-2015,2922494-29765,"1,020.00",GRAB & DELIVER LTD.
Neighbourhood Services,Technical Services,Supplies and Services,342051,Computers and Communications,06-Jul-2015,2922495-115531,"1,040.00",GRAITEC LTD.
Neighbourhood Services,Technical Services,Stock,926900,Stock in hand-Inventory system,06-Jul-2015,2922497-06/559224,"1,361.58",GREENHAM TRADING LTD.
Neighbourhood Services,Technical Services,Stock,926900,Stock in hand-Inventory system,06-Jul-2015,2922497-06/559393,"1,827.50",GREENHAM TRADING LTD.
Neighbourhood Services,Direct Services,Stock,926004,Stock,06-Jul-2015,2922498-122674,519.24,GREENLAY (GRASS MACHINERY) LTD.
Neighbourhood Services,Direct Services,Stock,926004,Stock,06-Jul-2015,2922498-122917,554.55,GREENLAY (GRASS MACHINERY) LTD.
Neighbourhood Services,Technical Services,Stock,926900,Stock in hand-Inventory system,06-Jul-2015,2922504-538319,"12,520.43",HARVEST ENERGY LTD.
Neighbourhood Services,Technical Services,Stock,926900,Stock in hand-Inventory system,06-Jul-2015,2922504-538320,"5,468.92",HARVEST ENERGY LTD.
Neighbourhood Services,Direct Services,Third Party Payments,430101,Rendered by Private Contractors,06-Jul-2015,2922507-5067451587,"1,161.40",HI Q TYRESERVICES.
Neighbourhood Services,Technical Services,Employees,040149,Recruitment Instruction and Training,06-Jul-2015,2922509-1770,"1,710.00",HSF TRAINING LTD.
Neighbourhood Services,Technical Services,Stock,926900,Stock in hand-Inventory system,06-Jul-2015,2922511-491663,"2,424.80",INSTARMAC GROUP PLC.
Children and Adult Services,Education,Transport,230008,Contract Hire,06-Jul-2015,2922515-1002,"1,097.67",J YOUNG T/A VIP TAXIS.
Children and Adult Services,Education,Transport,230009,Contract Hire,06-Jul-2015,2922515-1003,528.00,J YOUNG T/A VIP TAXIS.
Children and Adult Services,Education,Transport,230008,Contract Hire,06-Jul-2015,2922515-1005,836.00,J YOUNG T/A VIP TAXIS.
Children and Adult Services,Education,Transport,230007,Contract Hire,06-Jul-2015,2922515-1006,791.49,J YOUNG T/A VIP TAXIS.
Children and Adult Services,Education,Transport,230007,Contract Hire,06-Jul-2015,2922515-1010,528.00,J YOUNG T/A VIP TAXIS.
Children and Adult Services,Education,Transport,230007,Contract Hire,06-Jul-2015,2922515-1011,"1,284.36",J YOUNG T/A VIP TAXIS.
Children and Adult Services,Education,Transport,230007,Contract Hire,06-Jul-2015,2922515-1013,704.00,J YOUNG T/A VIP TAXIS.
Children and Adult Services,Education,Transport,230008,Contract Hire,06-Jul-2015,2922515-1015,"1,638.00",J YOUNG T/A VIP TAXIS.
Neighbourhood Services,Technical Services,Third Party Payments,430100,Rendered by Private Contractors,06-Jul-2015,2922516-16304,645.38,JACK COUPE & SONS LTD T/A COUPE LINE.
Neighbourhood Services,Technical Services,Supplies and Services,338027,Services,06-Jul-2015,2922517-B2105000-001,"2,480.00",JACOBS UK LTD.
Regeneration & Economic Development,Economic Development and Housing,Fees,901002,Professional fees,06-Jul-2015,2922519-115,"1,543.89",JENNIE STAFFORD RURAL ADVISORY LTD.
Regeneration & Economic Development,Economic Development and Housing,Construction Work,908105,Construction work,06-Jul-2015,2922522-447,"2,848.00",JO FAIRFAX.
Neighbourhood Services,Direct Services,Supplies and Services,304221,Equipment and Materials,06-Jul-2015,2922527-PHBII24467,"2,282.75",JT DOVE LTD.
Neighbourhood Services,Technical Services,Stock,926900,Stock in hand-Inventory system,06-Jul-2015,2922527-STI421159,693.18,JT DOVE LTD.
Neighbourhood Services,Technical Services,Stock,926900,Stock in hand-Inventory system,06-Jul-2015,2922527-STI421161,612.00,JT DOVE LTD.
Neighbourhood Services,Technical Services,Stock,926900,Stock in hand-Inventory system,06-Jul-2015,2922527-STI421193/D,"1,829.96",JT DOVE LTD.
Neighbourhood Services,Technical Services,Third Party Payments,430100,Rendered by Private Contractors,06-Jul-2015,2922528-7586,"2,500.00",KAEFER C & D - KD SCAFFOLDING DIVISION.
Children and Adult Services,Education,Transport,230007,Contract Hire,06-Jul-2015,2922531-5300,555.00,L & M TAXIS.
Neighbourhood Services,Technical Services,Supplies and Services,304221,Equipment and Materials,06-Jul-2015,2922532-9032798556,598.75,TARMAC TRADING LTD.
Neighbourhood Services,Technical Services,Supplies and Services,304221,Equipment and Materials,06-Jul-2015,2922532-9032806712,800.95,TARMAC TRADING LTD.
Neighbourhood Services,Technical Services,Stock,926900,Stock in hand-Inventory system,06-Jul-2015,2922532-9032806714,690.20,TARMAC TRADING LTD.
Children and Adult Services,Public Health,Third Party Payments,460803,Contract Payments,06-Jul-2015,2922538-0000006551,"466,357.75",LIFELINE PROJECT LTD.
Neighbourhood Services,Direct Services,Supplies and Services,304221,Equipment and Materials,06-Jul-2015,2922540-NE148447,"2,026.27",LLOYD WORRALL (NEWCASTLE UPON TYNE) LTD.
Neighbourhood Services,Technical Services,Stock,926900,Stock in hand-Inventory system,06-Jul-2015,2922541-10870,"1,267.00",LOGIC STREET & PARK FURNITURE LTD.
Neighbourhood Services,Technical Services,Supplies and Services,304221,Equipment and Materials,06-Jul-2015,2922541-10871,725.68,LOGIC STREET & PARK FURNITURE LTD.
Regeneration & Economic Development,Spatial Policy Planning Assets & Environment,Third Party Payments,440999,Other Third Party Payments,06-Jul-2015,2922549-3806,"3,220.82",MICROCOPY SYSTEMS LTD.
Neighbourhood Services,Technical Services,Employees,040149,Recruitment Instruction and Training,06-Jul-2015,2922550-INV91408,620.00,MINES RESCUE SERVICES LTD.
Children and Adult Services,Education,Transport,230007,Contract Hire,06-Jul-2015,2922556-009,"1,089.00",MR A MILLWARD T/A SWISS CABS PRIVATE HIRE.
Children and Adult Services,Childrens Services,Supplies and Services,364353,Grants to Voluntary Organisations,06-Jul-2015,2922563-CAS-07-2015-006,"1,957.42",REDACTED - PAYMENT TO INDIVIDUAL
Neighbourhood Services,Direct Services,Stock,926004,Stock,06-Jul-2015,2922573-INVDUR00312147,568.80,NE TRUCK SPARES LTD.
Resources,I.C.T. Services,Debtors,930167,Debtor-Telephone Holding Account,06-Jul-2015,2922576-201975,"4,833.00",NETWORKS 2 BUSINESS LTD.
Neighbourhood Services,Technical Services,Other Expenses,914002,Capital - Advertisments,06-Jul-2015,2922578-11450280,997.54,NEWSQUEST (YORKSHIRE & NORTH EAST) LTD.
Resources,Legal & Democratic Services,Supplies and Services,336005,Advertising,06-Jul-2015,2922578-11450309,579.53,NEWSQUEST (YORKSHIRE & NORTH EAST) LTD.
Children and Adult Services,Childrens Services,Supplies and Services,336005,Advertising,06-Jul-2015,2922578-11450317,600.00,NEWSQUEST (YORKSHIRE & NORTH EAST) LTD.
Neighbourhood Services,Technical Services,Supplies and Services,304221,Equipment and Materials,06-Jul-2015,2922587-DI20216008,923.71,NORTHERN POWERGRID (NORTHEAST) LTD.
Neighbourhood Services,Technical Services,Stock,926900,Stock in hand-Inventory system,06-Jul-2015,2922588-1618213,675.00,NORTHERN TOOLS & ACCESSORIES.
Neighbourhood Services,Direct Services,Supplies and Services,304259,Equipment and Materials,06-Jul-2015,2922588-1620976,"1,100.00",NORTHERN TOOLS & ACCESSORIES.
Neighbourhood Services,Technical Services,Stock,926900,Stock in hand-Inventory system,06-Jul-2015,2922588-1621202,778.18,NORTHERN TOOLS & ACCESSORIES.
Neighbourhood Services,Direct Services,Supplies and Services,304259,Equipment and Materials,06-Jul-2015,2922588-1621519,684.00,NORTHERN TOOLS & ACCESSORIES.
Neighbourhood Services,Projects and Business services,Third Party Payments,430119,Rendered by Private Contractors,06-Jul-2015,2922590-314891340033024,578.96,NORTHUMBRIAN WATER LTD.
Neighbourhood Services,Technical Services,Stock,926900,Stock in hand-Inventory system,06-Jul-2015,2922593-XL145197,"1,543.50",PARK ELECTRICAL DISTRIBUTORS LTD.
Neighbourhood Services,Technical Services,Stock,926900,Stock in hand-Inventory system,06-Jul-2015,2922593-XL145364,"5,137.90",PARK ELECTRICAL DISTRIBUTORS LTD.
Neighbourhood Services,Technical Services,Supplies and Services,338027,Services,06-Jul-2015,2922594-197169,"17,170.07",PARSONS BRINCKERHOFF.
Regeneration & Economic Development,Spatial Policy Planning Assets & Environment,Supplies and Services,384199,Miscellaneous Expenses,06-Jul-2015,2922596-AONB1,"1,700.00",PETER GRAHAM CARVING.
Neighbourhood Services,Technical Services,Construction Work,908105,Construction work,06-Jul-2015,2922603-134413,850.00,PREMIER TRAFFIC MANAGEMENT LTD.
Resources,Legal & Democratic Services,Supplies and Services,338057,Services,06-Jul-2015,2922612-0000020293,"2,380.00",ROAR FORENSICS LTD.
Children and Adult Services,Childrens Services,Supplies and Services,340001,Postages,06-Jul-2015,2922614-1801702417,787.00,ROYAL MAIL GROUP PLC.
Neighbourhood Services,Projects and Business services,Supplies and Services,340001,Postages,06-Jul-2015,2922614-9049951846,"1,933.29",ROYAL MAIL GROUP PLC.
Neighbourhood Services,Direct Services,Third Party Payments,430100,Rendered by Private Contractors,06-Jul-2015,2922617-1466,731.60,S JENNINGS LTD.
Neighbourhood Services,Technical Services,Construction Work,908105,Construction work,06-Jul-2015,2922619-846,851.00,SCHMUCK WHORLTON LTD.
Regeneration & Economic Development,Economic Development and Housing,Supplies and Services,384700,Miscellaneous Expenses,06-Jul-2015,2922621-RED-07-2015-034,"34,000.00",SEAHAM HARBOUR CIC.
Neighbourhood Services,Technical Services,Third Party Payments,430100,Rendered by Private Contractors,06-Jul-2015,2922622-SIL/D262/2542,"1,200.00",SEALANE INSHORE LTD.
Neighbourhood Services,Direct Services,Supplies and Services,304221,Equipment and Materials,06-Jul-2015,2922630-00460848,"1,088.72",SIG TRADING LTD T/A CARPET & FLOORING LTD.
Neighbourhood Services,Technical Services,Stock,926900,Stock in hand-Inventory system,06-Jul-2015,2922632-222318,"1,603.30",SIGNPOST SOLUTIONS LTD.
Resources,I.C.T. Services,Construction Work,908105,Construction work,06-Jul-2015,2922633-INV01165369,761.35,SOFTCAT LTD.
Children and Adult Services,Childrens Services,Third Party Payments,425040,Rendered by Voluntary Organisations,06-Jul-2015,2922637-1160343,"3,000.00",ST CUTHBERTS CARE.
Children and Adult Services,Education,Transport,230007,Contract Hire,06-Jul-2015,2922640-006,"1,540.00",STAR CABS - WEST AUCKLAND.
Neighbourhood Services,Direct Services,Supplies and Services,338099,Services,06-Jul-2015,2922642-SA018-15,838.83,STRAY AID LTD.
Neighbourhood Services,Technical Services,Stock,926900,Stock in hand-Inventory system,06-Jul-2015,2922645-25020078,"1,188.80",SW DIRECTIONAL DRILLING LTD T/A TEESSIDE INDUSTRIAL SUPPLIES.
Regeneration & Economic Development,Transport and Contracted Services,Third Party Payments,430108,Rendered by Private Contractors,06-Jul-2015,2922646-90006923,762.52,SWARCO TRAFFIC LTD.
Children and Adult Services,Childrens Services,Supplies and Services,342051,Computers and Communications,06-Jul-2015,2922647-05004,"1,312.00",SYSEC LTD.
Neighbourhood Services,Direct Services,Supplies and Services,304221,Equipment and Materials,06-Jul-2015,2922648-1619316,607.50,T CROSSLING & CO LTD.
Neighbourhood Services,Direct Services,Supplies and Services,304221,Equipment and Materials,06-Jul-2015,2922648-1624945,"1,169.39",T CROSSLING & CO LTD.
Children and Adult Services,Education,Transport,230008,Contract Hire,06-Jul-2015,2922649-1181,"2,945.37",TAILORMADE TRAVEL.
Children and Adult Services,Education,Transport,230006,Contract Hire,06-Jul-2015,2922651-DCC/2015/31,"1,208.00",TAYLOR`S TAXIS.
Dedicated Schools Grant,Dedicated Schools Grant,Transport,230010,Contract Hire,06-Jul-2015,2922651-DCC/2015/32,"1,956.00",TAYLOR`S TAXIS.
Dedicated Schools Grant,Dedicated Schools Grant,Transport,230010,Contract Hire,06-Jul-2015,2922651-DCC/2015/33,"2,244.00",TAYLOR`S TAXIS.
Children and Adult Services,Education,Transport,230008,Contract Hire,06-Jul-2015,2922651-DCC/2015/34,"1,320.00",TAYLOR`S TAXIS.
Children and Adult Services,Childrens Services,Third Party Payments,425040,Rendered by Voluntary Organisations,06-Jul-2015,2922652-25179,"3,232.86",TEAM FOSTERING.
Children and Adult Services,Childrens Services,Transport,235073,Public Transport,06-Jul-2015,2922654-896,781.64,TEESDALE COMMUNITY RESOURCES (TCR) LTD.
Regeneration & Economic Development,Spatial Policy Planning Assets & Environment,Supplies and Services,352001,Conference Expenses,06-Jul-2015,2922659-L4L2015-022,920.00,THE NATIONAL ASSOCIATION FOR AONBS.
Children and Adult Services,Education,Transport,230007,Contract Hire,06-Jul-2015,2922664-2710,"2,596.00",TM TRAVEL.
Children and Adult Services,Education,Transport,230008,Contract Hire,06-Jul-2015,2922665-TS20-32,"2,220.90",TOP STAR TRAVEL.
Children and Adult Services,Education,Transport,230006,Contract Hire,06-Jul-2015,2922665-TSF601-10,792.00,TOP STAR TRAVEL.
Children and Adult Services,Education,Transport,230007,Contract Hire,06-Jul-2015,2922667-71.15,751.74,TRANSPORT.ADVENTURE.XI.
Neighbourhood Services,Technical Services,Stock,926900,Stock in hand-Inventory system,06-Jul-2015,2922668-INV20223,707.80,TRENT CASTINGS LTD.
Neighbourhood Services,Culture & Sport,Supplies and Services,338047,Services,06-Jul-2015,2922670-GB15B0075864,"1,696.25",TWENTIETH CENTURY FOX FILM COMPANY LTD.
Neighbourhood Services,Culture & Sport,Supplies and Services,338047,Services,06-Jul-2015,2922670-GB15B0075865,"1,140.00",TWENTIETH CENTURY FOX FILM COMPANY LTD.
Neighbourhood Services,Culture & Sport,Supplies and Services,338047,Services,06-Jul-2015,2922670-GB15B0075867,"1,559.49",TWENTIETH CENTURY FOX FILM COMPANY LTD.
Neighbourhood Services,Culture & Sport,Supplies and Services,338047,Services,06-Jul-2015,2922670-GB15B0075868,"1,559.49",TWENTIETH CENTURY FOX FILM COMPANY LTD.
Neighbourhood Services,Technical Services,Supplies and Services,304221,Equipment and Materials,06-Jul-2015,2922672-149915,814.68,TYNEDALE ROADSTONE LTD.
Neighbourhood Services,Technical Services,Supplies and Services,304221,Equipment and Materials,06-Jul-2015,2922672-149947,873.81,TYNEDALE ROADSTONE LTD.
Neighbourhood Services,Culture & Sport,Supplies and Services,338066,Services,06-Jul-2015,2922676-9000276876,"1,200.00",UNIVERSITY OF NEWCASTLE UPON TYNE.
Children and Adult Services,Childrens Services,Employees,080025,Agency Staff,06-Jul-2015,2922678-163512,950.00,VISION FOR EDUCATION LTD.
Neighbourhood Services,Culture & Sport,Supplies and Services,338047,Services,06-Jul-2015,2922683-22271839,"1,348.37",WARNER BROS ENTERTAINMENT UK LTD.
Neighbourhood Services,Culture & Sport,Supplies and Services,338047,Services,06-Jul-2015,2922683-22271850,"1,718.60",WARNER BROS ENTERTAINMENT UK LTD.
Children and Adult Services,Education,Transport,230007,Contract Hire,06-Jul-2015,2922686-5270,710.60,WEARDALE PRIVATE HIRE.
Children and Adult Services,Education,Transport,230007,Contract Hire,06-Jul-2015,2922686-5271,"4,846.38",WEARDALE PRIVATE HIRE.
Children and Adult Services,Education,Transport,230007,Contract Hire,06-Jul-2015,2922686-5272,"4,089.58",WEARDALE PRIVATE HIRE.
Children and Adult Services,Education,Transport,230006,Contract Hire,06-Jul-2015,2922686-5273,"1,422.00",WEARDALE PRIVATE HIRE.
Children and Adult Services,Education,Transport,230006,Contract Hire,06-Jul-2015,2922686-5274,988.00,WEARDALE PRIVATE HIRE.
Dedicated Schools Grant,Dedicated Schools Grant,Transport,230010,Contract Hire,06-Jul-2015,2922688-487834,"1,000.00",WENDYS` TAXIS.
Assistant Chief Executive,Partnerships & Community Engagement Div.,Supplies and Services,384085,Miscellaneous Expenses,06-Jul-2015,2922689-BATA04-15,800.00,WEST PELTON PRIMARY SCHOOL.
Children and Adult Services,Education,Transport,230008,Contract Hire,06-Jul-2015,2922690-30615-E058,924.00,WIL TRAVEL.
Neighbourhood Services,Technical Services,Stock,926900,Stock in hand-Inventory system,06-Jul-2015,2922693-23417903,"4,748.49",WOLSELEY UK LTD.
Neighbourhood Services,Direct Services,Supplies and Services,304221,Equipment and Materials,06-Jul-2015,2922693-23417905,"1,199.04",WOLSELEY UK LTD.
Neighbourhood Services,Direct Services,Supplies and Services,304221,Equipment and Materials,06-Jul-2015,2922693-23471942,"3,546.79",WOLSELEY UK LTD.
Neighbourhood Services,Technical Services,Stock,926900,Stock in hand-Inventory system,06-Jul-2015,2922693-23471943,736.51,WOLSELEY UK LTD.
Resources,I.C.T. Services,Stock,926900,Stock in hand-Inventory system,06-Jul-2015,2922694-Y309230,709.35,XMA LTD.
Neighbourhood Services,Direct Services,Transport,210057,Repair and Maintenance of Vehicles,06-Jul-2015,2922695-SVI33803,"1,148.08",ZOELLER WASTE SYSTEMS LTD.
Neighbourhood Services,Direct Services,Stock,926004,Stock,06-Jul-2015,2922695-SVI33805,"1,336.88",ZOELLER WASTE SYSTEMS LTD.
Children and Adult Services,Education,Transport,230008,Contract Hire,07-Jul-2015,2923452,"1,155.00",CM TAXIS.
Neighbourhood Services,Culture & Sport,Supplies and Services,338047,Services,07-Jul-2015,2923598,"2,500.00",HOME SERVICE BAND.
Children and Adult Services,Childrens Services,Third Party Payments,440015,Other Third Party Payments,07-Jul-2015,240623-1036873,"2,394.00",REDACTED - PAYMENT TO INDIVIDUAL
Children and Adult Services,Childrens Services,Third Party Payments,440005,Other Third Party Payments,07-Jul-2015,2922701-1037104,"2,580.55",REDACTED - PAYMENT TO INDIVIDUAL
Children and Adult Services,Childrens Services,Third Party Payments,440016,Other Third Party Payments,07-Jul-2015,2922932-1036786,727.30,REDACTED - PAYMENT TO INDIVIDUAL
Children and Adult Services,Childrens Services,Third Party Payments,440016,Other Third Party Payments,07-Jul-2015,2922932-1036793,626.60,REDACTED - PAYMENT TO INDIVIDUAL
Children and Adult Services,Childrens Services,Third Party Payments,440016,Other Third Party Payments,07-Jul-2015,2922932-1036815,501.28,REDACTED - PAYMENT TO INDIVIDUAL
Children and Adult Services,Childrens Services,Third Party Payments,440031,Other Third Party Payments,07-Jul-2015,2922991-1037082,806.00,REDACTED - PAYMENT TO INDIVIDUAL
Children and Adult Services,Childrens Services,Third Party Payments,440016,Other Third Party Payments,07-Jul-2015,2923027-1036950,842.40,REDACTED - PAYMENT TO INDIVIDUAL
Children and Adult Services,Childrens Services,Third Party Payments,440015,Other Third Party Payments,07-Jul-2015,2923048-1036841,"1,272.39",REDACTED - PAYMENT TO INDIVIDUAL
Children and Adult Services,Childrens Services,Third Party Payments,440015,Other Third Party Payments,07-Jul-2015,2923048-1036842,"1,272.39",REDACTED - PAYMENT TO INDIVIDUAL
Children and Adult Services,Childrens Services,Third Party Payments,440036,Other Third Party Payments,07-Jul-2015,2923078-1037075,513.10,REDACTED - PAYMENT TO INDIVIDUAL
Children and Adult Services,Education,Transport,230008,Contract Hire,07-Jul-2015,2923344-61504,787.50,24/7 TAXI SERVICES LTD.
Children and Adult Services,Education,Transport,230008,Contract Hire,07-Jul-2015,2923344-61509,"2,172.50",24/7 TAXI SERVICES LTD.
Neighbourhood Services,Technical Services,Supplies and Services,304221,Equipment and Materials,07-Jul-2015,2923374-004002,"5,775.58",A HILL & SONS LTD.
Children and Adult Services,Education,Transport,230006,Contract Hire,07-Jul-2015,2923375-10,"1,040.00",A HJ JOBLING T/A CASTLE TAXIS.
Regeneration & Economic Development,Economic Development and Housing,Cap Exp on Grants & Other Financial Assistance (REFCUS),918401,Capital grants,07-Jul-2015,2923376-RED-07-2015-043,"4,559.00",A OGILVIE BUILDING CONTRACTORS LTD.
Neighbourhood Services,Technical Services,Supplies and Services,304221,Equipment and Materials,07-Jul-2015,2923382-21586414,"1,655.28",AGGREGATE INDUSTRIES UK LTD.
Neighbourhood Services,Technical Services,Supplies and Services,304221,Equipment and Materials,07-Jul-2015,2923382-21588412,536.35,AGGREGATE INDUSTRIES UK LTD.
Neighbourhood Services,EnvironmentHealth & Consumer Protection,Supplies and Services,338027,Services,07-Jul-2015,2923393-5705,"4,720.00",ARC ENVIRONMENTAL LTD.
Children and Adult Services,Childrens Services,Supplies and Services,338094,Services,07-Jul-2015,2923404-PROFORMA720,500.00,BEAMISH HALL LTD.
Children and Adult Services,Education,Transport,230008,Contract Hire,07-Jul-2015,2923408-13,749.33,BL TAXIS.
Children and Adult Services,Education,Transport,230008,Contract Hire,07-Jul-2015,2923412-1382,"3,498.00",BOBBY DOVE.
Neighbourhood Services,Culture & Sport,Supplies and Services,324001,Provisions,07-Jul-2015,2923432-841564731,578.21,CARLSBERG UK LTD.
Regeneration & Economic Development,Economic Development and Housing,Cap Exp on Grants & Other Financial Assistance (REFCUS),918401,Capital grants,07-Jul-2015,2923434-RED-07-2015-046,"1,239.60",CASTLEDENE PROPERTY MANAGEMENT LTD.
Children and Adult Services,Childrens Services,Supplies and Services,304083,Equipment and Materials,07-Jul-2015,2923435-17432,592.95,CATERTECH.
Children and Adult Services,Childrens Services,Employees,080025,Agency Staff,07-Jul-2015,2923439-2305905,520.00,CELSIAN.
Children and Adult Services,Childrens Services,Employees,080025,Agency Staff,07-Jul-2015,2923439-2306114,510.00,CELSIAN.
Children and Adult Services,Childrens Services,Employees,080025,Agency Staff,07-Jul-2015,2923439-2310165,"1,160.00",CELSIAN.
Neighbourhood Services,Direct Services,Supplies and Services,338029,Services,07-Jul-2015,2923442-191688,"9,750.00",CHEVIN FLEET SOLUTIONS LTD.
Children and Adult Services,Public Health,Third Party Payments,460802,Contract Payments,07-Jul-2015,2923448-7910018170,"8,556.00",CITY HOSPITALS SUNDERLAND NHS FOUNDATION TRUST.
Children and Adult Services,Public Health,Third Party Payments,460802,Contract Payments,07-Jul-2015,2923448-7910018177,"2,507.00",CITY HOSPITALS SUNDERLAND NHS FOUNDATION TRUST.
Neighbourhood Services,Culture & Sport,Supplies and Services,338047,Services,07-Jul-2015,2923458-7604/M,"1,807.96",COMEDY STORE MANAGEMENT.
Children and Adult Services,Public Health,Supplies and Services,344033,Telephones,07-Jul-2015,2923460-17482,793.78,CONNECTED WORLD COMMUNICATIONS LTD.
Children and Adult Services,Education,Transport,230008,Contract Hire,07-Jul-2015,2923461-592,"1,760.00",CONNORS MINI BUSES.
Children and Adult Services,Education,Transport,230008,Contract Hire,07-Jul-2015,2923461-593,"1,452.00",CONNORS MINI BUSES.
Children and Adult Services,Education,Transport,230008,Contract Hire,07-Jul-2015,2923461-594,"2,024.00",CONNORS MINI BUSES.
Children and Adult Services,Education,Transport,230008,Contract Hire,07-Jul-2015,2923461-595,"1,628.00",CONNORS MINI BUSES.
Regeneration & Economic Development,Economic Development and Housing,Cap Exp on Grants & Other Financial Assistance (REFCUS),918401,Capital grants,07-Jul-2015,2923471-RED-07-2015-048,"10,000.00",REDACTED - PAYMENT TO INDIVIDUAL
Children and Adult Services,Education,Transport,230008,Contract Hire,07-Jul-2015,2923478-12,924.00,CUTHBERT CABS.
Children and Adult Services,Education,Transport,230008,Contract Hire,07-Jul-2015,2923481-132,"1,474.00",DA TRAVEL.
Children and Adult Services,Education,Transport,230008,Contract Hire,07-Jul-2015,2923481-134,"1,386.00",DA TRAVEL.
Children and Adult Services,Education,Transport,230008,Contract Hire,07-Jul-2015,2923481-135,"1,210.00",DA TRAVEL.
Children and Adult Services,Education,Transport,230008,Contract Hire,07-Jul-2015,2923481-136,"1,870.00",DA TRAVEL.
Children and Adult Services,Education,Transport,230008,Contract Hire,07-Jul-2015,2923481-1407,"1,334.74",DA TRAVEL.
Children and Adult Services,Education,Transport,230008,Contract Hire,07-Jul-2015,2923487-2547,"1,040.00",DAVES MINIBUSES.
Children and Adult Services,Education,Transport,230008,Contract Hire,07-Jul-2015,2923494-0615/001,"1,553.64",DCM TAXIS.
Children and Adult Services,Education,Transport,230007,Contract Hire,07-Jul-2015,2923522-3250/0615,528.00,ELLIOTTS OF TRIMDON.
Children and Adult Services,Education,Transport,230008,Contract Hire,07-Jul-2015,2923522-A072/0615,"1,386.00",ELLIOTTS OF TRIMDON.
Children and Adult Services,Education,Transport,230008,Contract Hire,07-Jul-2015,2923522-E052/0615,"1,276.00",ELLIOTTS OF TRIMDON.
Children and Adult Services,Education,Transport,230007,Contract Hire,07-Jul-2015,2923523-0653,995.06,EN ROUTE TRAVEL.
Children and Adult Services,Education,Transport,230008,Contract Hire,07-Jul-2015,2923531-A060-010,682.50,FERRYHILL VILLAGE TRAVEL.
Children and Adult Services,Education,Transport,230008,Contract Hire,07-Jul-2015,2923531-E046-010,"2,352.00",FERRYHILL VILLAGE TRAVEL.
Children and Adult Services,Education,Transport,230008,Contract Hire,07-Jul-2015,2923531-N071-020,"3,010.50",FERRYHILL VILLAGE TRAVEL.
Children and Adult Services,Education,Transport,230008,Contract Hire,07-Jul-2015,2923531-S007-32,"2,236.00",FERRYHILL VILLAGE TRAVEL.
Children and Adult Services,Education,Transport,230008,Contract Hire,07-Jul-2015,2923531-W131-010,"1,093.00",FERRYHILL VILLAGE TRAVEL.
Children and Adult Services,Education,Transport,230007,Contract Hire,07-Jul-2015,2923537-0337,792.00,FMR SILVA PITA.
Children and Adult Services,Education,Transport,230009,Contract Hire,07-Jul-2015,2923537-0338,660.00,FMR SILVA PITA.
Children and Adult Services,Education,Transport,230008,Contract Hire,07-Jul-2015,2923544-003,"1,365.00",FRONT STREET TAXIS.
Children and Adult Services,Education,Transport,230006,Contract Hire,07-Jul-2015,2923549-010,760.00,GAIL MADDISON T/A CENTRAL TAXIS.
Children and Adult Services,Education,Transport,230007,Contract Hire,07-Jul-2015,2923553-1894,"2,849.00",GEM TRAVEL.
RED HRA,Housing Revenue Account,Supplies and Services,352001,Conference Expenses,07-Jul-2015,2923556-GDC/15/176,"3,113.62",GERALD DAVIES CONSULTING LTD.
Regeneration & Economic Development,Transport and Contracted Services,Supplies and Services,384899,Miscellaneous Expenses,07-Jul-2015,2923585-RED-07-2015-057,"1,814.00",HEALEYFIELD PARISH COUNCIL.
Children and Adult Services,Education,Transport,230008,Contract Hire,07-Jul-2015,2923589-32,"1,979.64",HENRYS TAXIS.
Children and Adult Services,Education,Transport,230008,Contract Hire,07-Jul-2015,2923593-A053/JUN,"1,365.00",HIPPY`S TAXI.
Children and Adult Services,Education,Transport,230006,Contract Hire,07-Jul-2015,2923600-INV81,504.00,HORNDALE TAXIS LTD.
Children and Adult Services,Education,Transport,230008,Contract Hire,07-Jul-2015,2923600-INV84,"1,870.00",HORNDALE TAXIS LTD.
Children and Adult Services,Education,Transport,230008,Contract Hire,07-Jul-2015,2923603-IR1506003,"3,094.52",I & R EXECUTIVE TRAVEL.
Children and Adult Services,Education,Transport,230008,Contract Hire,07-Jul-2015,2923603-IR156004,"1,769.02",I & R EXECUTIVE TRAVEL.
Children and Adult Services,Education,Construction Work,908105,Construction work,07-Jul-2015,2923605-DURH/0633,"284,871.54",INSPIREDSPACES DURHAM LTD.
Neighbourhood Services,Direct Services,Supplies and Services,304259,Equipment and Materials,07-Jul-2015,2923610-201514540,"2,381.60",J VAN VLIET GATESHEAD LTD.
Neighbourhood Services,Direct Services,Supplies and Services,304259,Equipment and Materials,07-Jul-2015,2923610-201514899,821.25,J VAN VLIET GATESHEAD LTD.
Children and Adult Services,Education,Transport,230007,Contract Hire,07-Jul-2015,2923611-4300/JUN15,800.00,JAFFAS TAXIS.
Children and Adult Services,Education,Transport,230008,Contract Hire,07-Jul-2015,2923613-741,"1,769.02",JDS PRIVATE HIRE DURHAM.
Children and Adult Services,Education,Transport,230008,Contract Hire,07-Jul-2015,2923613-742,"1,680.58",JDS PRIVATE HIRE DURHAM.
Children and Adult Services,Education,Transport,230008,Contract Hire,07-Jul-2015,2923613-743,"1,415.26",JDS PRIVATE HIRE DURHAM.
Children and Adult Services,Education,Transport,230008,Contract Hire,07-Jul-2015,2923613-744,"1,578.72",JDS PRIVATE HIRE DURHAM.
Children and Adult Services,Education,Transport,230008,Contract Hire,07-Jul-2015,2923613-745,"1,149.92",JDS PRIVATE HIRE DURHAM.
Children and Adult Services,Education,Transport,230008,Contract Hire,07-Jul-2015,2923613-747,"2,860.00",JDS PRIVATE HIRE DURHAM.
Children and Adult Services,Education,Transport,230008,Contract Hire,07-Jul-2015,2923613-749,"1,197.00",JDS PRIVATE HIRE DURHAM.
Children and Adult Services,Education,Transport,230008,Contract Hire,07-Jul-2015,2923613-750,"2,750.00",JDS PRIVATE HIRE DURHAM.
Children and Adult Services,Education,Transport,230008,Contract Hire,07-Jul-2015,2923613-751,"1,050.00",JDS PRIVATE HIRE DURHAM.
Children and Adult Services,Education,Transport,230008,Contract Hire,07-Jul-2015,2923613-752,"1,430.00",JDS PRIVATE HIRE DURHAM.
Children and Adult Services,Education,Transport,230007,Contract Hire,07-Jul-2015,2923613-754,"1,050.00",JDS PRIVATE HIRE DURHAM.
Children and Adult Services,Education,Transport,230008,Contract Hire,07-Jul-2015,2923615-2015/11,985.60,JM HUMBLE COACH HIRE.
Dedicated Schools Grant,Dedicated Schools Grant,Transport,230010,Contract Hire,07-Jul-2015,2923615-2015/13,925.00,JM HUMBLE COACH HIRE.
Children and Adult Services,Education,Transport,230006,Contract Hire,07-Jul-2015,2923617-0016,"1,100.00",JOHN WARE T/A J & K TAXIS.
Children and Adult Services,Education,Transport,230008,Contract Hire,07-Jul-2015,2923618-M03610,"1,078.00",JOVIAL PRIVATE HIRE.
Children and Adult Services,Education,Transport,230008,Contract Hire,07-Jul-2015,2923618-N03010,"1,826.00",JOVIAL PRIVATE HIRE.
Children and Adult Services,Education,Transport,230007,Contract Hire,07-Jul-2015,2923618-SJPS16,"1,376.98",JOVIAL PRIVATE HIRE.
Neighbourhood Services,Culture & Sport,Supplies and Services,384302,Miscellaneous Expenses,07-Jul-2015,2923621-07,"8,020.00",JR MILGATE ORCHESTRA PROMOTIONS.
Children and Adult Services,Education,Transport,230008,Contract Hire,07-Jul-2015,2923624-EPINAYSCHOOL,"1,408.00",K & R TAXIS.
Neighbourhood Services,Direct Services,Third Party Payments,430100,Rendered by Private Contractors,07-Jul-2015,2923626-581,"16,560.00",KARLIN TIMBER FRAME (NE) LTD.
Resources,Legal & Democratic Services,Supplies and Services,372009,Subscriptions,07-Jul-2015,2923642-0873,500.00,LAWYERS IN LOCAL GOVERNMENT (LLG).
Dedicated Schools Grant,Dedicated Schools Grant,Transport,230010,Contract Hire,07-Jul-2015,2923643-1046,"2,290.00",LD TAXIS.
Children and Adult Services,Education,Transport,230006,Contract Hire,07-Jul-2015,2923643-1047,"1,640.00",LD TAXIS.
Neighbourhood Services,Technical Services,Stock,926900,Stock in hand-Inventory system,07-Jul-2015,2923651-LFP/15/3438,"1,109.50",LIFELINE FIRE PREVENTION LTD.
Children and Adult Services,Education,Transport,230007,Contract Hire,07-Jul-2015,2923652-3193,999.00,LINCAB TAXIS.
Children and Adult Services,Education,Transport,230008,Contract Hire,07-Jul-2015,2923657-62A,"1,330.00",LORRAINES TAXIS.
Children and Adult Services,Education,Transport,230008,Contract Hire,07-Jul-2015,2923657-63A,"1,843.38",LORRAINES TAXIS.
Children and Adult Services,Education,Transport,230006,Contract Hire,07-Jul-2015,2923659-28,624.00,LUMLEY TAXIS.
Children and Adult Services,Education,Transport,230008,Contract Hire,07-Jul-2015,2923659-29,"1,012.00",LUMLEY TAXIS.
Children and Adult Services,Education,Transport,230008,Contract Hire,07-Jul-2015,2923661-23,"1,650.00",M BEHAN T/A M & M`S TAXIS.
Children and Adult Services,Education,Transport,230007,Contract Hire,07-Jul-2015,2923661-24,"1,410.00",M BEHAN T/A M & M`S TAXIS.
Children and Adult Services,Education,Transport,230008,Contract Hire,07-Jul-2015,2923662-84,"2,553.00",M BUTCHER T/A KIDDI CABS.
Children and Adult Services,Education,Transport,230008,Contract Hire,07-Jul-2015,2923663-AKTASJUNE15,"1,980.00",MA BODDY.
Children and Adult Services,Education,Transport,230008,Contract Hire,07-Jul-2015,2923663-JUN-15,"1,948.10",MA BODDY.
Regeneration & Economic Development,Spatial Policy Planning Assets & Environment,Supplies and Services,384199,Miscellaneous Expenses,07-Jul-2015,2923664-18,"6,153.00",MA JOHNSTON.
Children and Adult Services,Childrens Services,Supplies and Services,338099,Services,07-Jul-2015,2923667-0004,960.00,MARGOT SKELTON T/A JITTABUGS DURHAM.
Children and Adult Services,Education,Transport,230008,Contract Hire,07-Jul-2015,2923670-380615,"1,496.00",MARK MUSGROVE T/A MARKS TAXIS.
Children and Adult Services,Education,Transport,230008,Contract Hire,07-Jul-2015,2923670-480615,"1,012.00",MARK MUSGROVE T/A MARKS TAXIS.
Children and Adult Services,Education,Transport,230006,Contract Hire,07-Jul-2015,2923678-0024,"1,720.00",MICHAEL CONNOR.
Children and Adult Services,Childrens Services,Third Party Payments,440016,Other Third Party Payments,07-Jul-2015,2923681-CAS-07-2015-009,"1,150.00",REDACTED - PAYMENT TO INDIVIDUAL
Children and Adult Services,Education,Transport,230008,Contract Hire,07-Jul-2015,2923683-KDC010615,"2,659.50",MJ TIMNEY T/A KDC & C&M TAXIS.
Neighbourhood Services,Direct Services,Premises,125009,Rents,07-Jul-2015,2923685-RENT-JULY15,"4,550.00",MM KNITWEAR (1982) LTD.
Children and Adult Services,Education,Transport,230008,Contract Hire,07-Jul-2015,2923687-556,"1,980.00",MOLLYS TAXIS.
Children and Adult Services,Education,Transport,230008,Contract Hire,07-Jul-2015,2923687-558,"1,857.48",MOLLYS TAXIS.
Children and Adult Services,Education,Transport,230008,Contract Hire,07-Jul-2015,2923687-559,"2,640.00",MOLLYS TAXIS.
Children and Adult Services,Education,Transport,230008,Contract Hire,07-Jul-2015,2923687-563,"2,222.00",MOLLYS TAXIS.
Regeneration & Economic Development,Economic Development and Housing,Cap Exp on Grants & Other Financial Assistance (REFCUS),918401,Capital grants,07-Jul-2015,2923689-RED-07-2015-047,954.95,REDACTED - PAYMENT TO INDIVIDUAL
Children and Adult Services,Education,Third Party Payments,430100,Rendered by Private Contractors,07-Jul-2015,2923690-5,516.65,MR DAVID BLAKEY.
Children and Adult Services,Education,Transport,230008,Contract Hire,07-Jul-2015,2923691-DSR/06/15,"1,320.00",MR J AGAR T/A PARK TAXIS.
Children and Adult Services,Education,Transport,230007,Contract Hire,07-Jul-2015,2923691-ECR/1/16/15,528.00,MR J AGAR T/A PARK TAXIS.
Children and Adult Services,Education,Transport,230008,Contract Hire,07-Jul-2015,2923692-A057/06/15,"1,276.00",MR M ALLISON T/A MACBETH TAXIS/COACHES.
Children and Adult Services,Education,Transport,230008,Contract Hire,07-Jul-2015,2923692-N053/06/15,"2,016.00",MR M ALLISON T/A MACBETH TAXIS/COACHES.
Children and Adult Services,Education,Transport,230008,Contract Hire,07-Jul-2015,2923692-N059/06/15,"1,687.56",MR M ALLISON T/A MACBETH TAXIS/COACHES.
Children and Adult Services,Education,Transport,230008,Contract Hire,07-Jul-2015,2923693-00175,572.00,MR P GARBUTT.
Children and Adult Services,Education,Transport,230008,Contract Hire,07-Jul-2015,2923694-AA315,"2,983.42",MR T GUNN.
Regeneration & Economic Development,Economic Development and Housing,Cap Exp on Grants & Other Financial Assistance (REFCUS),918401,Capital grants,07-Jul-2015,2923703-RED-07-2015-044,"5,098.00",MWA GAS & PLUMBING LTD.
Children and Adult Services,Education,Transport,230008,Contract Hire,07-Jul-2015,2923706-171,"2,992.00",N FORBES.
Children and Adult Services,Education,Transport,230007,Contract Hire,07-Jul-2015,2923706-172,792.00,N FORBES.
Children and Adult Services,Childrens Services,Supplies and Services,340001,Postages,07-Jul-2015,2923711-CAS-07-2015-007,900.00,NEOPOST CREDIFON.
Regeneration & Economic Development,Economic Development and Housing,Supplies and Services,340001,Postages,07-Jul-2015,2923712-RED-07-2015-059,"3,000.00",NEOPOST LTD.
Children and Adult Services,Commissioning inc Supporting People,Third Party Payments,473111,Purchase of Care,07-Jul-2015,2923716-0023,"6,374.00",NEWTON AYCLIFFE MIND.
Neighbourhood Services,Culture & Sport,Supplies and Services,338099,Services,07-Jul-2015,2923717-GTSS0011,750.00,NICOLA MORRIS.
Neighbourhood Services,Direct Services,Supplies and Services,384194,Miscellaneous Expenses,07-Jul-2015,2923718-30075,"2,125.00",NIRAMAX GROUP LTD.
Children and Adult Services,Education,Transport,230006,Contract Hire,07-Jul-2015,2923737-JUNE01-30-2015,"1,508.00",PAUL ROSE T/A PAUL`S TAXIS.
Children and Adult Services,Education,Transport,230006,Contract Hire,07-Jul-2015,2923739-DCC47,608.00,PB PRIVATE HIRE.
Children and Adult Services,Education,Transport,230007,Contract Hire,07-Jul-2015,2923742-28A,880.00,PETER HOLMES T/A PETERS TAXIS.
Regeneration & Economic Development,Economic Development and Housing,Cap Exp on Grants & Other Financial Assistance (REFCUS),918401,Capital grants,07-Jul-2015,2923743-RED-07-2015-038,"4,865.00",PETER JORDAN.
Children and Adult Services,Education,Transport,230008,Contract Hire,07-Jul-2015,2923746-717,"3,542.00",PG TRIPS.
Children and Adult Services,Public Health,Third Party Payments,460803,Contract Payments,07-Jul-2015,2923750-13155/16,"22,192.59",PIONEERING CARE PARTNERSHIP.
Children and Adult Services,Education,Transport,230008,Contract Hire,07-Jul-2015,2923758-1087A,"1,650.00",PODA LTD.
Children and Adult Services,Education,Transport,230008,Contract Hire,07-Jul-2015,2923758-1089,572.00,PODA LTD.
Children and Adult Services,Education,Transport,230007,Contract Hire,07-Jul-2015,2923760-294,"1,421.42",PREMIER PRIVATE HIRE.
Children and Adult Services,Education,Transport,230010,Contract Hire,07-Jul-2015,2923779-365,"1,672.00",ROAD RUNNERS (NE) LTD.
Children and Adult Services,Education,Transport,230008,Contract Hire,07-Jul-2015,2923780-020,"1,537.50",RONS TAXI.
Regeneration & Economic Development,Transport and Contracted Services,Third Party Payments,430106,Rendered by Private Contractors,07-Jul-2015,2923789-1985,"127,550.04",SCARLET BAND BUS & COACH LTD.
Neighbourhood Services,Technical Services,Third Party Payments,430100,Rendered by Private Contractors,07-Jul-2015,2923800-491,505.00,SHERIFF TECHNOLOGIES LTD.
Children and Adult Services,Education,Transport,230008,Contract Hire,07-Jul-2015,2923802-71786,"1,584.00",SHOTTON PRIVATE HIRE.
Children and Adult Services,Education,Transport,230008,Contract Hire,07-Jul-2015,2923808-W119A,"1,569.00",SIMONS TAXIS.
Children and Adult Services,Education,Transport,230007,Contract Hire,07-Jul-2015,2923826-311,"2,216.50",STEPHEN MAUDE LTD T/A MAUDES COACHES.
Children and Adult Services,Education,Transport,230007,Contract Hire,07-Jul-2015,2923826-312,"2,438.48",STEPHEN MAUDE LTD T/A MAUDES COACHES.
Children and Adult Services,Education,Transport,230008,Contract Hire,07-Jul-2015,2923826-313,"2,132.02",STEPHEN MAUDE LTD T/A MAUDES COACHES.
Children and Adult Services,Education,Transport,230007,Contract Hire,07-Jul-2015,2923826-314,"1,475.10",STEPHEN MAUDE LTD T/A MAUDES COACHES.
Children and Adult Services,Childrens Services,Supplies and Services,364352,Grants to Voluntary Organisations,07-Jul-2015,2923828-D1IN/00018832,"1,594.18",STONHAM HOUSING ASSOCIATION LTD.
Neighbourhood Services,Direct Services,Supplies and Services,304221,Equipment and Materials,07-Jul-2015,2923834-0000078698,705.61,TA PLASTIC SUPPLIES LTD.
Children and Adult Services,Childrens Services,Third Party Payments,486044,Service Level Agreements,07-Jul-2015,2923843-4810005062,"3,560.67",TEES ESK & WEAR VALLEYS NHS FOUNDATION TRUST.
Children and Adult Services,Childrens Services,Third Party Payments,440999,Other Third Party Payments,07-Jul-2015,2923843-4810005203,"3,500.00",TEES ESK & WEAR VALLEYS NHS FOUNDATION TRUST.
Children and Adult Services,Childrens Services,Third Party Payments,486044,Service Level Agreements,07-Jul-2015,2923843-4810005228,"3,560.67",TEES ESK & WEAR VALLEYS NHS FOUNDATION TRUST.
Children and Adult Services,Childrens Services,Premises,125009,Rents,07-Jul-2015,2923850-GT2105,"1,010.59",THE GREENHOUSE COMPANY (GROUNDWORK) LTD.
Resources,Corporate Services Financing,Debtors,930165,Debtor-Housing Benefit Overpaid Recovered,07-Jul-2015,2923856-RES-07-2015-035,563.44,THREE RIVERS HOUSING ASSOCIATION LTD.
Children and Adult Services,Education,Transport,230007,Contract Hire,07-Jul-2015,2923858-2711,"2,596.00",TM TRAVEL.
Children and Adult Services,Education,Transport,230007,Contract Hire,07-Jul-2015,2923858-2712,"9,196.00",TM TRAVEL.
Children and Adult Services,Education,Transport,230007,Contract Hire,07-Jul-2015,2923858-2713,"1,518.00",TM TRAVEL.
Children and Adult Services,Education,Transport,230007,Contract Hire,07-Jul-2015,2923858-2714,"2,090.00",TM TRAVEL.
Dedicated Schools Grant,Dedicated Schools Grant,Transport,230010,Contract Hire,07-Jul-2015,2923860-TS14S-32,"1,476.00",TOP STAR TRAVEL.
Children and Adult Services,Education,Transport,230009,Contract Hire,07-Jul-2015,2923862-70.15,567.18,TRANSPORT.ADVENTURE.XI.
Neighbourhood Services,Technical Services,Supplies and Services,304221,Equipment and Materials,07-Jul-2015,2923877-39296,"2,200.00",W MARLEY AGRICULTURAL CONTRACTORS LTD.
Neighbourhood Services,Culture & Sport,Supplies and Services,338047,Services,07-Jul-2015,2923879-22272968,517.19,WARNER BROS ENTERTAINMENT UK LTD.
Neighbourhood Services,Culture & Sport,Supplies and Services,338047,Services,07-Jul-2015,2923879-22272975,691.86,WARNER BROS ENTERTAINMENT UK LTD.
Children and Adult Services,Education,Transport,230008,Contract Hire,07-Jul-2015,2923880-997,"2,200.00",WAYNE`S TAXIS.
Children and Adult Services,Education,Transport,230008,Contract Hire,07-Jul-2015,2923880-998,"1,936.00",WAYNE`S TAXIS.
Children and Adult Services,Childrens Services,Transport,235073,Public Transport,07-Jul-2015,2923885-23893,"1,026.98",WRIXON SECURITY SERVICES LTD T/A WRIXON CARE.
Neighbourhood Services,Culture & Sport,Supplies and Services,384237,Miscellaneous Expenses,08-Jul-2015,240625-INV34036,605.00,BADMINTON ENGLAND.
Children and Adult Services,Education,Supplies and Services,377015,County Durham Development,08-Jul-2015,240626-LIVE/1,"1,000.00",BLADE ENTERTAINMENT LTD.
Regeneration & Economic Development,Economic Development and Housing,Premises,108099,Service Repairs and Maintenance,08-Jul-2015,240632-6706,"6,547.50",CLIMATEC LTD.
Children and Adult Services,Education,Transport,230008,Contract Hire,08-Jul-2015,240633-05/15087,"1,875.00",COLLINS TAXIS.
Children and Adult Services,Education,Transport,230008,Contract Hire,08-Jul-2015,240633-05/15090,"1,875.00",COLLINS TAXIS.
Children and Adult Services,Education,Transport,230008,Contract Hire,08-Jul-2015,240633-05/15137,982.00,COLLINS TAXIS.
Children and Adult Services,Education,Transport,230007,Contract Hire,08-Jul-2015,240633-05/154312,590.00,COLLINS TAXIS.
Children and Adult Services,Education,Transport,230007,Contract Hire,08-Jul-2015,240633-06/154312,708.00,COLLINS TAXIS.
Children and Adult Services,Education,Transport,230008,Contract Hire,08-Jul-2015,240649-15/006,"1,650.00",EDDIE BURROWS.
Neighbourhood Services,Projects and Business services,Construction Work,908105,Construction work,08-Jul-2015,240655-INV2476,"1,000.00",FIND IT FIRST.
Children and Adult Services,Childrens Services,Supplies and Services,338045,Services,08-Jul-2015,240659-CAS-07-2015-001,645.62,REDACTED - PAYMENT TO INDIVIDUAL
Regeneration & Economic Development,Transport and Contracted Services,Supplies and Services,338013,Services,08-Jul-2015,240662-125200,"1,735.00",INSIGHT CERTIFICATION LTD.
Neighbourhood Services,Technical Services,Third Party Payments,460350,Contract Payments,08-Jul-2015,240666-5795,"4,084.50",JR TIPLADY.
Neighbourhood Services,Culture & Sport,Supplies and Services,304403,Equipment and Materials,08-Jul-2015,240669-3645,740.00,LASHBROOKS.COM LTD.
Regeneration & Economic Development,Spatial Policy Planning Assets & Environment,Supplies and Services,338045,Services,08-Jul-2015,240679-358574,"3,420.00",MISS RUTH STOCKLEY.
Children and Adult Services,Education,Transport,230008,Contract Hire,08-Jul-2015,240690-21,"1,365.00",REDACTED - PAYMENT TO INDIVIDUAL
Children and Adult Services,Education,Transport,230008,Contract Hire,08-Jul-2015,240696-E061-1,"2,062.50",REDACTED - PAYMENT TO INDIVIDUAL
Children and Adult Services,Commissioning inc Supporting People,Third Party Payments,479111,Purchase of Care,08-Jul-2015,2923899-OP/I060691,"10,000.00",ACTION FOR BLIND PEOPLE.
Neighbourhood Services,Technical Services,Supplies and Services,304999,Equipment and Materials,08-Jul-2015,2923900-0000273566,570.00,ACUTE SALES LTD.
Neighbourhood Services,Technical Services,Supplies and Services,304221,Equipment and Materials,08-Jul-2015,2923904-21592007,646.11,AGGREGATE INDUSTRIES UK LTD.
Neighbourhood Services,Technical Services,Supplies and Services,304221,Equipment and Materials,08-Jul-2015,2923904-21592116,"1,277.83",AGGREGATE INDUSTRIES UK LTD.
Neighbourhood Services,Technical Services,Supplies and Services,304221,Equipment and Materials,08-Jul-2015,2923904-21592117,"1,236.41",AGGREGATE INDUSTRIES UK LTD.
Neighbourhood Services,Culture & Sport,Supplies and Services,338047,Services,08-Jul-2015,2923908-SI-000736,"1,152.26",ALTIVE MEDIA LTD.
Resources,I.C.T. Services,Supplies and Services,344137,Telephones,08-Jul-2015,2923926-11512677,"3,750.00",AZZURRI COMMUNICATIONS LTD.
Children and Adult Services,Public Health,Vehicles Equipment Furniture and Fittings,912701,Computer equipment,08-Jul-2015,2923926-11512721,"28,133.00",AZZURRI COMMUNICATIONS LTD.
Neighbourhood Services,Direct Services,Debtors,930046,Debtor-leasing,08-Jul-2015,2923930-113525,"169,272.00",BELL TRUCK SALES LTD.
Children and Adult Services,Education,Transport,230008,Contract Hire,08-Jul-2015,2923933-115,"2,156.00",BG TAXIS.
Neighbourhood Services,Direct Services,Third Party Payments,430100,Rendered by Private Contractors,08-Jul-2015,2923943-82573436,"1,234.10",BRISTOL STREET MOTORS.
Resources,I.C.T. Services,Debtors,930167,Debtor-Telephone Holding Account,08-Jul-2015,2923945-VP90592270M10801,"10,507.76",BRITISH TELECOMMUNICATIONS PLC.
Resources,I.C.T. Services,Debtors,930167,Debtor-Telephone Holding Account,08-Jul-2015,2923945-VP90592270M11101,"15,969.12",BRITISH TELECOMMUNICATIONS PLC.
Resources,I.C.T. Services,Debtors,930167,Debtor-Telephone Holding Account,08-Jul-2015,2923945-VP90592270M11401,"9,336.58",BRITISH TELECOMMUNICATIONS PLC.
Resources,I.C.T. Services,Debtors,930167,Debtor-Telephone Holding Account,08-Jul-2015,2923945-VP90592270M11701,"13,745.14",BRITISH TELECOMMUNICATIONS PLC.
Resources,I.C.T. Services,Debtors,930167,Debtor-Telephone Holding Account,08-Jul-2015,2923945-VP90592270M12001,"13,391.26",BRITISH TELECOMMUNICATIONS PLC.
Dedicated Schools Grant,Dedicated Schools Grant,Transport,230010,Contract Hire,08-Jul-2015,2923948-P048010/JUNE,"1,240.00",C & R TAXIS.
Neighbourhood Services,Direct Services,Stock,926004,Stock,08-Jul-2015,2923953-201802,884.11,CARRS BILLINGTON AGRICULTURE.
Neighbourhood Services,Direct Services,Stock,926004,Stock,08-Jul-2015,2923953-201809,801.10,CARRS BILLINGTON AGRICULTURE.
Neighbourhood Services,Direct Services,Transport,210057,Repair and Maintenance of Vehicles,08-Jul-2015,2923953-201813,602.90,CARRS BILLINGTON AGRICULTURE.
Neighbourhood Services,Direct Services,Stock,926004,Stock,08-Jul-2015,2923953-202159,508.00,CARRS BILLINGTON AGRICULTURE.
Regeneration & Economic Development,Economic Development and Housing,Cap Exp on Grants & Other Financial Assistance (REFCUS),918401,Capital grants,08-Jul-2015,2923955-RED-07-2015-045,"8,032.50",CASTLEDENE PROPERTY MANAGEMENT LTD.
Neighbourhood Services,Direct Services,Third Party Payments,430100,Rendered by Private Contractors,08-Jul-2015,2923958-110,"5,054.67",CEILINGS DIRECT LTD.
Neighbourhood Services,Technical Services,Stock,926900,Stock in hand-Inventory system,08-Jul-2015,2923976-168213,612.00,COLAS LTD.
Regeneration & Economic Development,Economic Development and Housing,Supplies and Services,384437,Miscellaneous Expenses,08-Jul-2015,2923979-65711,"3,250.00",COMPASS ROYSTON TRAVEL LTD.
Regeneration & Economic Development,Economic Development and Housing,Supplies and Services,384437,Miscellaneous Expenses,08-Jul-2015,2923979-65999,"4,200.00",COMPASS ROYSTON TRAVEL LTD.
Neighbourhood Services,Culture & Sport,Third Party Payments,430100,Rendered by Private Contractors,08-Jul-2015,2923980-PS23999,"24,548.89",COMPETITION LINE UK LTD.
Neighbourhood Services,Culture & Sport,Income,720810,Fees and Charges,08-Jul-2015,2923980-PS24019,"27,882.05",COMPETITION LINE UK LTD.
Neighbourhood Services,Culture & Sport,Income,720810,Fees and Charges,08-Jul-2015,2923980-PS24020,"4,652.23",COMPETITION LINE UK LTD.
Neighbourhood Services,Culture & Sport,Income,720810,Fees and Charges,08-Jul-2015,2923980-PS24021,"19,622.48",COMPETITION LINE UK LTD.
Neighbourhood Services,Culture & Sport,Third Party Payments,430100,Rendered by Private Contractors,08-Jul-2015,2923980-PS24025,"7,017.41",COMPETITION LINE UK LTD.
Children and Adult Services,Education,Third Party Payments,440999,Other Third Party Payments,08-Jul-2015,2923983-15/16032,"10,365.12",CORNFORTH PARTNERSHIP.
Children and Adult Services,Education,Third Party Payments,440999,Other Third Party Payments,08-Jul-2015,2923983-15/16033,"16,354.36",CORNFORTH PARTNERSHIP.
Children and Adult Services,Public Health,Third Party Payments,460803,Contract Payments,08-Jul-2015,2923993-TVDA00155,"10,000.00",CRUSE BEREAVEMENT CARE.
Children and Adult Services,Public Health,Third Party Payments,460803,Contract Payments,08-Jul-2015,2923995-SINV305,"4,166.66",CSV COMMUNITY SERVICE VOLUNTEERS.
Children and Adult Services,Education,Transport,230008,Contract Hire,08-Jul-2015,2924001-2541,"1,879.46",DAVES MINIBUSES.
Children and Adult Services,Education,Transport,230008,Contract Hire,08-Jul-2015,2924001-2542,939.62,DAVES MINIBUSES.
Children and Adult Services,Education,Transport,230008,Contract Hire,08-Jul-2015,2924001-2545,"1,650.00",DAVES MINIBUSES.
Children and Adult Services,Education,Transport,230008,Contract Hire,08-Jul-2015,2924001-2546,"2,200.00",DAVES MINIBUSES.
Children and Adult Services,Head of Adults,Third Party Payments,472101,Purchase of Care,08-Jul-2015,2924004-7708,995.96,DCS & D LTD T/A HERITAGE HEALTHCARE.
Neighbourhood Services,Direct Services,Transport,215013,Running Costs of Vehicles,08-Jul-2015,2924007-D94113,705.00,DENNIS EAGLE LTD.
Children and Adult Services,Childrens Services,Supplies and Services,384199,Miscellaneous Expenses,08-Jul-2015,2924008-2925927,"1,401.48",DEPARTMENT FOR WORK & PENSIONS.
Regeneration & Economic Development,Economic Development and Housing,Supplies and Services,384071,Miscellaneous Expenses,08-Jul-2015,2924033-INV-082544,500.00,EEF LTD.
Children and Adult Services,Childrens Services,Third Party Payments,425040,Rendered by Voluntary Organisations,08-Jul-2015,2924048-123719,"1,180.00",FOSTER CARES LTD.
Dedicated Schools Grant,Dedicated Schools Grant,Third Party Payments,440080,Other Third Party Payments,08-Jul-2015,2924057-110003967,"6,729.00",GATESHEAD COUNCIL.
Children and Adult Services,Head of Adults,Supplies and Services,304252,Equipment and Materials,08-Jul-2015,2924060-555260A,725.00,GK DECORATING.
Neighbourhood Services,Direct Services,Supplies and Services,304259,Equipment and Materials,08-Jul-2015,2924061-688217,557.28,GLASDON UK LTD.
Neighbourhood Services,Direct Services,Supplies and Services,304221,Equipment and Materials,08-Jul-2015,2924079-540358,"1,642.43",HARVEST ENERGY LTD.
Regeneration & Economic Development,Economic Development and Housing,Supplies and Services,384871,Miscellaneous Expenses,08-Jul-2015,2924086-RED-07-2015-063,995.00,HIGH DEFINITION BROWS LTD.
Neighbourhood Services,Direct Services,Third Party Payments,430100,Rendered by Private Contractors,08-Jul-2015,2924089-230904,"1,000.00",HL SMITH (TRANSMISSIONS) LTD.
Regeneration & Economic Development,Economic Development and Housing,Supplies and Services,384437,Miscellaneous Expenses,08-Jul-2015,2924090-012670,"3,250.00",HODGSONS COACH OPERATORS LTD.
Neighbourhood Services,Direct Services,Third Party Payments,430100,Rendered by Private Contractors,08-Jul-2015,2924091-59075,755.81,HOGARTH COACHWORKS LTD.
Children and Adult Services,Planning & Service Strategy,Supplies and Services,338089,Services,08-Jul-2015,2924093-1835,600.00,HSF TRAINING LTD.
Children and Adult Services,Education,Construction Work,908105,Construction work,08-Jul-2015,2924099-DURH/0631,"527,335.65",INSPIREDSPACES DURHAM LTD.
Children and Adult Services,Education,Transport,230008,Contract Hire,08-Jul-2015,2924106-99,"1,103.96",JACK`S TAXIS.
Neighbourhood Services,Technical Services,Employees,080025,Agency Staff,08-Jul-2015,2924107-B225H002-078,"1,088.88",JACOBS UK LTD.
Neighbourhood Services,Technical Services,Employees,080025,Agency Staff,08-Jul-2015,2924107-B225H002-080,"2,879.70",JACOBS UK LTD.
Neighbourhood Services,Technical Services,Supplies and Services,338027,Services,08-Jul-2015,2924107-B225H002-081,"12,724.89",JACOBS UK LTD.
Neighbourhood Services,Technical Services,Employees,080025,Agency Staff,08-Jul-2015,2924107-B225H002-082,956.36,JACOBS UK LTD.
Neighbourhood Services,Technical Services,Employees,080025,Agency Staff,08-Jul-2015,2924107-B225H003-020,"2,089.86",JACOBS UK LTD.
Neighbourhood Services,Technical Services,Employees,080025,Agency Staff,08-Jul-2015,2924107-B225H003-022,"4,662.64",JACOBS UK LTD.
Dedicated Schools Grant,Dedicated Schools Grant,Transport,230010,Contract Hire,08-Jul-2015,2924108-L0026J,682.50,JAFFAS TAXIS.
Regeneration & Economic Development,Economic Development and Housing,Fees,901002,Professional fees,08-Jul-2015,2924112-2015/2762,"1,873.00",JEREMY BENN ASSOCIATES LTD T/A JBA CONSULTING.
Regeneration & Economic Development,Economic Development and Housing,Supplies and Services,384437,Miscellaneous Expenses,08-Jul-2015,2924114-14607,"2,575.00",JIM HUGHES COACHES LTD.
Regeneration & Economic Development,Economic Development and Housing,Supplies and Services,384437,Miscellaneous Expenses,08-Jul-2015,2924114-14608,"3,150.00",JIM HUGHES COACHES LTD.
Regeneration & Economic Development,Economic Development and Housing,Supplies and Services,384437,Miscellaneous Expenses,08-Jul-2015,2924114-14694,"2,575.00",JIM HUGHES COACHES LTD.
Regeneration & Economic Development,Spatial Policy Planning Assets & Environment,Supplies and Services,384700,Miscellaneous Expenses,08-Jul-2015,2924115-BURSARYJUL15,591.10,REDACTED - PAYMENT TO INDIVIDUAL
Neighbourhood Services,Technical Services,Supplies and Services,304358,Equipment and Materials,08-Jul-2015,2924117-23582,603.00,JOHN R BUTTERFIELD LTD.
Neighbourhood Services,Technical Services,Supplies and Services,304358,Equipment and Materials,08-Jul-2015,2924117-23609,899.80,JOHN R BUTTERFIELD LTD.
Neighbourhood Services,Technical Services,Supplies and Services,304358,Equipment and Materials,08-Jul-2015,2924117-23610,725.40,JOHN R BUTTERFIELD LTD.
Neighbourhood Services,Technical Services,Supplies and Services,304358,Equipment and Materials,08-Jul-2015,2924117-23611,955.50,JOHN R BUTTERFIELD LTD.
Neighbourhood Services,Technical Services,Supplies and Services,304358,Equipment and Materials,08-Jul-2015,2924117-23612,740.40,JOHN R BUTTERFIELD LTD.
Regeneration & Economic Development,Spatial Policy Planning Assets & Environment,Construction Work,908105,Construction work,08-Jul-2015,2924118-DEMOLITION,"31,651.99",JOHN WADE (HAULAGE) LTD.
Children and Adult Services,Education,Transport,230008,Contract Hire,08-Jul-2015,2924119-79,"2,685.76",JOHNS TAXIS (CHESTER LE STREET).
Neighbourhood Services,Technical Services,Supplies and Services,304221,Equipment and Materials,08-Jul-2015,2924123-CNI22328/D,"1,448.05",JT DOVE LTD.
Neighbourhood Services,Technical Services,Supplies and Services,304040,Equipment and Materials,08-Jul-2015,2924123-HEI588374,630.57,JT DOVE LTD.
Neighbourhood Services,Direct Services,Third Party Payments,430105,Rendered by Private Contractors,08-Jul-2015,2924125-6666,801.96,KEN THOMAS (SITE CLEARANCE LTD).
Neighbourhood Services,Technical Services,Employees,040149,Recruitment Instruction and Training,08-Jul-2015,2924127-TN01-GAS15-192,"2,000.00",KIER NORTH TYNESIDE LTD.
Neighbourhood Services,Technical Services,Supplies and Services,304221,Equipment and Materials,08-Jul-2015,2924129-9032804759,551.50,TARMAC TRADING LTD.
Neighbourhood Services,Technical Services,Supplies and Services,304221,Equipment and Materials,08-Jul-2015,2924129-9032812030,650.00,TARMAC TRADING LTD.
Children and Adult Services,Education,Supplies and Services,384199,Miscellaneous Expenses,08-Jul-2015,2924132-314,"1,425.00",LEE`S COACHES LTD.
Neighbourhood Services,Direct Services,Transport,230005,Contract Hire,08-Jul-2015,2924139-117379,"1,805.00",LONDONDERRY GARAGE (S.E) LTD.
Neighbourhood Services,Direct Services,Transport,230005,Contract Hire,08-Jul-2015,2924139-117380,"2,774.00",LONDONDERRY GARAGE (S.E) LTD.
Neighbourhood Services,Direct Services,Transport,230005,Contract Hire,08-Jul-2015,2924139-117381,789.28,LONDONDERRY GARAGE (S.E) LTD.
Regeneration & Economic Development,Spatial Policy Planning Assets & Environment,Construction Work,908105,Construction work,08-Jul-2015,2924143-21807,620.00,LUCION ENVIRONMENTAL LLP LTD.
Neighbourhood Services,Culture & Sport,Supplies and Services,304221,Equipment and Materials,08-Jul-2015,2924153-SIN17736,589.68,MAUDESPORT LTD.
Neighbourhood Services,Culture & Sport,Supplies and Services,304221,Equipment and Materials,08-Jul-2015,2924153-SIN28714,544.99,MAUDESPORT LTD.
Children and Adult Services,Education,Transport,230008,Contract Hire,08-Jul-2015,2924161-560,"2,443.10",MOLLYS TAXIS.
Children and Adult Services,Education,Transport,230008,Contract Hire,08-Jul-2015,2924164-66165,"1,896.40",MR GN ROBBINS T/A GNR MINIBUS HIRE.
Children and Adult Services,Education,Transport,230008,Contract Hire,08-Jul-2015,2924164-66166,"2,305.16",MR GN ROBBINS T/A GNR MINIBUS HIRE.
Children and Adult Services,Education,Transport,230006,Contract Hire,08-Jul-2015,2924165-HCCTWC62015,560.00,MR I KELSEY.
Children and Adult Services,Education,Transport,230008,Contract Hire,08-Jul-2015,2924167-N205/06/15,526.40,MR M ALLISON T/A MACBETH TAXIS/COACHES.
Children and Adult Services,Childrens Services,Third Party Payments,425040,Rendered by Voluntary Organisations,08-Jul-2015,2924173-NFA136409,651.42,NATIONAL FOSTERING AGENCY LTD.
Children and Adult Services,Education,Transport,230008,Contract Hire,08-Jul-2015,2924178-10,880.00,NEIL PASSMOOR T/A NEIL`S TAXI.
Children and Adult Services,Childrens Services,Supplies and Services,340001,Postages,08-Jul-2015,2924179-43615188,500.00,NEOPOST CREDIFON.
Neighbourhood Services,Culture & Sport,Supplies and Services,304083,Equipment and Materials,08-Jul-2015,2924188-11197288,737.98,NISBETS PLC.
Children and Adult Services,Public Health,Third Party Payments,460803,Contract Payments,08-Jul-2015,2924190-DDPCTHWI057,"6,500.00",NORTH 51 LTD.
Neighbourhood Services,Technical Services,Supplies and Services,304221,Equipment and Materials,08-Jul-2015,2924194-DI20216009,"2,482.84",NORTHERN POWERGRID (NORTHEAST) LTD.
Resources,Human Resources,Supplies and Services,342051,Computers and Communications,08-Jul-2015,2924197-94502135,"4,891.83",NORTHGATE ARINSO UK LTD.
Resources,Human Resources,Supplies and Services,342051,Computers and Communications,08-Jul-2015,2924197-I2182073,974.20,NORTHGATE ARINSO UK LTD.
Children and Adult Services,Planning & Service Strategy,Supplies and Services,332047,Printing Stationery and Gen Off Exps,08-Jul-2015,2924198-91343890,"4,356.20",NORTHGATE PUBLIC SERVICES (UK) LTD.
Neighbourhood Services,Direct Services,Third Party Payments,430100,Rendered by Private Contractors,08-Jul-2015,2924199-IW02313940,"2,988.05",NORTHGATE VEHICLE HIRE LTD.
Neighbourhood Services,Direct Services,Supplies and Services,328041,Clothing Uniforms and Laundry,08-Jul-2015,2924203-90649,"2,070.00",NUSAFE SUPPLIES.
Regeneration & Economic Development,Economic Development and Housing,Supplies and Services,384437,Miscellaneous Expenses,08-Jul-2015,2924212-F15610950/1,749.00,P & O FERRIES HOLDINGS LTD.
Regeneration & Economic Development,Economic Development and Housing,Supplies and Services,384437,Miscellaneous Expenses,08-Jul-2015,2924212-F15610951/1,646.00,P & O FERRIES HOLDINGS LTD.
Regeneration & Economic Development,Economic Development and Housing,Supplies and Services,384437,Miscellaneous Expenses,08-Jul-2015,2924212-F15614469/1,749.00,P & O FERRIES HOLDINGS LTD.
Regeneration & Economic Development,Economic Development and Housing,Supplies and Services,384437,Miscellaneous Expenses,08-Jul-2015,2924212-F24665177/1,646.00,P & O FERRIES HOLDINGS LTD.
Children and Adult Services,Public Health,Supplies and Services,384899,Miscellaneous Expenses,08-Jul-2015,2924213-2061368,"11,000.00",PAPYRUS PREVENTION OF YOUNG SUICIDE.
Neighbourhood Services,Technical Services,Stock,926900,Stock in hand-Inventory system,08-Jul-2015,2924214-XL145538,"2,613.54",PARK ELECTRICAL DISTRIBUTORS LTD.
Children and Adult Services,Education,Transport,230007,Contract Hire,08-Jul-2015,2924218-1428JUNE15,"2,860.00",PAUL WATSON TRAVEL.
Children and Adult Services,Education,Transport,230007,Contract Hire,08-Jul-2015,2924218-1429JUNE15,"2,640.00",PAUL WATSON TRAVEL.
Children and Adult Services,Education,Transport,230008,Contract Hire,08-Jul-2015,2924221-500,"1,584.00",PETERLEE EXECUTIVE CARS.
Children and Adult Services,Education,Transport,230008,Contract Hire,08-Jul-2015,2924226-01322,"1,540.00",PHILLIPS TAXI GROUP LTD.
Resources,I.C.T. Services,Supplies and Services,342033,Computers and Communications,08-Jul-2015,2924227-OP/I755217,"1,868.55",PHOENIX SOFTWARE LTD.
Neighbourhood Services,Culture & Sport,Premises,145015,Cleaning and Domestic Supplies,08-Jul-2015,2924238-PCS4669,"2,690.00",POOL COVER SYSTEMS UK.
Neighbourhood Services,Culture & Sport,Supplies and Services,304083,Equipment and Materials,08-Jul-2015,2924238-PCS4670,"4,100.00",POOL COVER SYSTEMS UK.
Children and Adult Services,Education,Transport,230007,Contract Hire,08-Jul-2015,2924240-150611,550.00,PRATTS TAXIS.
Children and Adult Services,Education,Transport,230006,Contract Hire,08-Jul-2015,2924240-150614,532.00,PRATTS TAXIS.
Neighbourhood Services,Direct Services,Transport,230005,Contract Hire,08-Jul-2015,2924241-INV/26744,"1,890.00",PREMIER TRUCK HIRE LTD.
Neighbourhood Services,Technical Services,Third Party Payments,430100,Rendered by Private Contractors,08-Jul-2015,2924246-77450,550.00,PROTECTOR SECURITY GROUP LTD.
Neighbourhood Services,Technical Services,Third Party Payments,430100,Rendered by Private Contractors,08-Jul-2015,2924246-78129,550.00,PROTECTOR SECURITY GROUP LTD.
Children and Adult Services,Education,Transport,230007,Contract Hire,08-Jul-2015,2924249-477,"8,580.00",PYGALL COACH HIRE.
Children and Adult Services,Education,Transport,230007,Contract Hire,08-Jul-2015,2924249-478,"3,316.94",PYGALL COACH HIRE.
Children and Adult Services,Education,Transport,230007,Contract Hire,08-Jul-2015,2924249-479,"2,764.08",PYGALL COACH HIRE.
Children and Adult Services,Education,Transport,230007,Contract Hire,08-Jul-2015,2924249-480,"2,607.00",PYGALL COACH HIRE.
Neighbourhood Services,Direct Services,Transport,210057,Repair and Maintenance of Vehicles,08-Jul-2015,2924259-730801,523.57,RICKERBY LTD.
Neighbourhood Services,Direct Services,Transport,210057,Repair and Maintenance of Vehicles,08-Jul-2015,2924259-730814,728.11,RICKERBY LTD.
Resources,Legal & Democratic Services,Supplies and Services,338057,Services,08-Jul-2015,2924266-0000020345,"1,350.00",ROAR FORENSICS LTD.
Children and Adult Services,Planning & Service Strategy,Supplies and Services,340001,Postages,08-Jul-2015,2924269-9050007965,875.00,ROYAL MAIL GROUP PLC.
Resources,I.C.T. Services,Supplies and Services,340001,Postages,08-Jul-2015,2924271-9050006720,"13,929.82",ROYAL MAIL GROUP PLC.
Neighbourhood Services,Direct Services,Transport,210057,Repair and Maintenance of Vehicles,08-Jul-2015,2924273-230539,623.96,S JENNINGS LTD.
Regeneration & Economic Development,Economic Development and Housing,Premises,106099,Centrally Controlled Rep and Maint,08-Jul-2015,2924276-4367,673.95,SAFEGUARD SECURITY (NE) LTD.
Neighbourhood Services,Culture & Sport,Supplies and Services,338099,Services,08-Jul-2015,2924278-45,695.59,SAM SMITH..
Neighbourhood Services,Culture & Sport,Supplies and Services,338099,Services,08-Jul-2015,2924278-46,564.40,SAM SMITH..
Children and Adult Services,Head of Adults,Third Party Payments,479101,Purchase of Care,08-Jul-2015,2924279-6030000229,"2,064.60",SANCTUARY HOUSING.
Children and Adult Services,Education,Supplies and Services,384199,Miscellaneous Expenses,08-Jul-2015,2924291-21458,"1,195.00",SIMPLY STRIPES (THE SIGNMAKERS) LTD.
Neighbourhood Services,Direct Services,Third Party Payments,430100,Rendered by Private Contractors,08-Jul-2015,2924296-L/011/15/06644,"1,375.00",SOCIETE GENERALE EQUIPMENT FINANCE LTD.
Neighbourhood Services,Culture & Sport,Income,715699,Sales,08-Jul-2015,2924297-GDB000087,"1,277.46",SOCIETY OF LONDON THEATRE.
Resources,I.C.T. Services,Supplies and Services,342033,Computers and Communications,08-Jul-2015,2924299-INV01166945,"5,094.00",SOFTCAT LTD.
Regeneration & Economic Development,Economic Development and Housing,Supplies and Services,384437,Miscellaneous Expenses,08-Jul-2015,2924303-14471,"2,493.00",STANLEY TRAVEL (NORTH EAST) LTD.
Regeneration & Economic Development,Economic Development and Housing,Supplies and Services,384437,Miscellaneous Expenses,08-Jul-2015,2924303-14472,"2,493.00",STANLEY TRAVEL (NORTH EAST) LTD.
Regeneration & Economic Development,Economic Development and Housing,Supplies and Services,384437,Miscellaneous Expenses,08-Jul-2015,2924303-14473,"2,493.00",STANLEY TRAVEL (NORTH EAST) LTD.
Regeneration & Economic Development,Economic Development and Housing,Supplies and Services,384437,Miscellaneous Expenses,08-Jul-2015,2924303-14579,"2,493.00",STANLEY TRAVEL (NORTH EAST) LTD.
Neighbourhood Services,Technical Services,Supplies and Services,304221,Equipment and Materials,08-Jul-2015,2924306-072913,"1,134.88",STONEGRAVE AGGREGATES LTD.
Children and Adult Services,Childrens Services,Third Party Payments,425040,Rendered by Voluntary Organisations,08-Jul-2015,2924312-165813,910.00,SWIIS FOSTER CARE LTD.
Children and Adult Services,Childrens Services,Third Party Payments,425040,Rendered by Voluntary Organisations,08-Jul-2015,2924312-165816,759.99,SWIIS FOSTER CARE LTD.
Children and Adult Services,Childrens Services,Third Party Payments,425040,Rendered by Voluntary Organisations,08-Jul-2015,2924312-165817,"1,074.99",SWIIS FOSTER CARE LTD.
Children and Adult Services,Childrens Services,Third Party Payments,425040,Rendered by Voluntary Organisations,08-Jul-2015,2924312-165818,891.87,SWIIS FOSTER CARE LTD.
Children and Adult Services,Childrens Services,Third Party Payments,425040,Rendered by Voluntary Organisations,08-Jul-2015,2924312-165819,900.97,SWIIS FOSTER CARE LTD.
Children and Adult Services,Childrens Services,Third Party Payments,425040,Rendered by Voluntary Organisations,08-Jul-2015,2924312-165820,"1,207.97",SWIIS FOSTER CARE LTD.
Neighbourhood Services,Direct Services,Supplies and Services,304221,Equipment and Materials,08-Jul-2015,2924313-1561809,940.44,T CROSSLING & CO LTD.
Neighbourhood Services,Direct Services,Supplies and Services,304221,Equipment and Materials,08-Jul-2015,2924313-1612865,"16,824.93",T CROSSLING & CO LTD.
Neighbourhood Services,Culture & Sport,Supplies and Services,324117,Provisions,08-Jul-2015,2924318-9410943510,513.45,TCHIBO COFFEE INTERNATIONAL LTD.
Children and Adult Services,Commissioning inc Supporting People,Third Party Payments,479101,Purchase of Care,08-Jul-2015,2924324-4810005263,"4,176.95",TEES ESK & WEAR VALLEYS NHS FOUNDATION TRUST.
Neighbourhood Services,Direct Services,Third Party Payments,430100,Rendered by Private Contractors,08-Jul-2015,2924328-C03314,"1,085.00",TH WHITE LTD.
Children and Adult Services,Childrens Services,Third Party Payments,425040,Rendered by Voluntary Organisations,08-Jul-2015,2924330-000153,"8,655.20",THE FOSTERING COMPANY NE LTD.
Neighbourhood Services,Technical Services,Stock,926900,Stock in hand-Inventory system,08-Jul-2015,2924337-N/IN148523,720.00,THOMAS OWEN & SONS (NEWCASTLE) LTD.
Neighbourhood Services,Technical Services,Stock,926900,Stock in hand-Inventory system,08-Jul-2015,2924337-N/IN148594,579.36,THOMAS OWEN & SONS (NEWCASTLE) LTD.
Children and Adult Services,Education,Vehicles Equipment Furniture and Fittings,912521,Purchase-furniture and fittings,08-Jul-2015,2924349-2642,"11,285.43",UPNORTH FOODSERVICE EQUIPMENT LTD.
Children and Adult Services,Childrens Services,Transport,230710,Contract Hire,08-Jul-2015,2924357-IN00948698,"2,678.16",VOLKSWAGEN GROUP UK LTD.
Neighbourhood Services,Direct Services,Premises,150015,Apportioned Exps of Operational Blds,08-Jul-2015,2924362-425680,643.50,WERNICK HIRE LTD.
Resources,I.C.T. Services,Stock,926900,Stock in hand-Inventory system,08-Jul-2015,2924369-Y323393,962.64,XMA LTD.
Children and Adult Services,Education,Transport,230008,Contract Hire,09-Jul-2015,2924381-61502,"2,160.00",24/7 TAXI SERVICES LTD.
Children and Adult Services,Education,Transport,230008,Contract Hire,09-Jul-2015,2924381-61508,"2,800.00",24/7 TAXI SERVICES LTD.
Regeneration & Economic Development,Economic Development and Housing,Supplies and Services,324117,Provisions,09-Jul-2015,2924389-61853416,762.50,BIDVEST FOODSERVICE (FORMERLY 3663).
Children and Adult Services,Childrens Services,Third Party Payments,425040,Rendered by Voluntary Organisations,09-Jul-2015,2924394-15/1759,"3,000.00",ACORN HOUSE (FOSTERING SERVICES) LTD.
Neighbourhood Services,Technical Services,Supplies and Services,304221,Equipment and Materials,09-Jul-2015,2924400-21598056,"1,256.51",AGGREGATE INDUSTRIES UK LTD.
Neighbourhood Services,Technical Services,Supplies and Services,304221,Equipment and Materials,09-Jul-2015,2924400-21598058,"1,598.03",AGGREGATE INDUSTRIES UK LTD.
Children and Adult Services,Education,Transport,230008,Contract Hire,09-Jul-2015,2924417-485,"1,554.74",AT TAXIS LTD.
Children and Adult Services,Education,Transport,230008,Contract Hire,09-Jul-2015,2924417-486,"1,486.67",AT TAXIS LTD.
Children and Adult Services,Childrens Services,Third Party Payments,486033,Service Level Agreements,09-Jul-2015,2924421-209501139,"2,070.00",BARNARDO SERVICES LTD.
Children and Adult Services,Education,Transport,230008,Contract Hire,09-Jul-2015,2924425-10JUNE15,"1,688.61",BEELINE PRIVATE HIRE.
Children and Adult Services,Education,Transport,230008,Contract Hire,09-Jul-2015,2924426-45,"2,034.21",BEELINE TAXIS.
Children and Adult Services,Commissioning inc Supporting People,Third Party Payments,442002,Supporting People,09-Jul-2015,2924433-1962784,"16,448.04",BID SERVICES WITH DEAF PEOPLE.
Neighbourhood Services,Culture & Sport,Supplies and Services,338047,Services,09-Jul-2015,2924435-12194,"12,537.53",BIRMINGHAM ROYAL BALLET.
Resources,Legal & Democratic Services,Premises,120021,Energy Costs,09-Jul-2015,2924442-D16347,696.27,BRADLEY HALL CHARTERED SURVEYORS CLIENT ACCOUNT.
Resources,I.C.T. Services,Debtors,930167,Debtor-Telephone Holding Account,09-Jul-2015,2924450-VP90592270M12101,"56,076.91",BRITISH TELECOMMUNICATIONS PLC.
Regeneration & Economic Development,Economic Development and Housing,Supplies and Services,338066,Services,09-Jul-2015,2924453-SDCC001,"12,000.00",BUSINESS & ENTERPRISE COMMERCIAL LTD T/A BE GROUP.
Children and Adult Services,Commissioning inc Supporting People,Third Party Payments,479111,Purchase of Care,09-Jul-2015,2924464-2446,"3,153.31",CARERS FEDERATION LTD.
Children and Adult Services,Commissioning inc Supporting People,Third Party Payments,442002,Supporting People,09-Jul-2015,2924477-1962738,"3,452.04",CHILDREN NORTH EAST.
Neighbourhood Services,Technical Services,Premises,150015,Apportioned Exps of Operational Blds,09-Jul-2015,2924484-21696,903.54,CLEE HILL PLANT LTD.
Neighbourhood Services,Technical Services,Premises,150015,Apportioned Exps of Operational Blds,09-Jul-2015,2924484-21697,903.54,CLEE HILL PLANT LTD.
Neighbourhood Services,Technical Services,Premises,150015,Apportioned Exps of Operational Blds,09-Jul-2015,2924484-21698,903.54,CLEE HILL PLANT LTD.
Neighbourhood Services,Technical Services,Premises,150015,Apportioned Exps of Operational Blds,09-Jul-2015,2924484-21700,862.47,CLEE HILL PLANT LTD.
Children and Adult Services,Education,Transport,230007,Contract Hire,09-Jul-2015,2924487-C/8713,"5,507.92",COCHRANES T/A KELVIN TRAVEL.
Regeneration & Economic Development,Economic Development and Housing,Premises,120021,Energy Costs,09-Jul-2015,2924494-10240042,"1,129.28",CORONA ENERGY RETAIL 2 LTD.
Regeneration & Economic Development,Economic Development and Housing,Premises,120021,Energy Costs,09-Jul-2015,2924494-10240062,716.23,CORONA ENERGY RETAIL 2 LTD.
Children and Adult Services,Public Health,Third Party Payments,460803,Contract Payments,09-Jul-2015,2924497-0062015,"7,560.00",COUNTY DURHAM & DARLINGTON LOCAL PHARMACEUTICAL COMMITTEE.
Children and Adult Services,Commissioning inc Supporting People,Third Party Payments,442002,Supporting People,09-Jul-2015,2924502-1962713,"19,868.48",CREATIVE SUPPORT LTD.
Children and Adult Services,Education,Transport,230006,Contract Hire,09-Jul-2015,2924503-5454,"1,039.72",CROFT BUSINESS SERVICES (UK) LTD T/A CROFT TAXIS.
Children and Adult Services,Education,Transport,230008,Contract Hire,09-Jul-2015,2924503-5459,858.00,CROFT BUSINESS SERVICES (UK) LTD T/A CROFT TAXIS.
Dedicated Schools Grant,Dedicated Schools Grant,Transport,230010,Contract Hire,09-Jul-2015,2924503-5462,"1,843.40",CROFT BUSINESS SERVICES (UK) LTD T/A CROFT TAXIS.
Children and Adult Services,Education,Transport,230008,Contract Hire,09-Jul-2015,2924503-5463,"1,922.80",CROFT BUSINESS SERVICES (UK) LTD T/A CROFT TAXIS.
Children and Adult Services,Education,Transport,230006,Contract Hire,09-Jul-2015,2924503-5464,"1,084.16",CROFT BUSINESS SERVICES (UK) LTD T/A CROFT TAXIS.
Children and Adult Services,Education,Transport,230008,Contract Hire,09-Jul-2015,2924514-0013,"1,590.00",DAVID WALKER TAXIS.
Neighbourhood Services,Direct Services,Transport,230005,Contract Hire,09-Jul-2015,2924516-672887,854.26,DAWSONRENTALS VANS LTD.
Neighbourhood Services,Direct Services,Transport,230005,Contract Hire,09-Jul-2015,2924516-672890,528.00,DAWSONRENTALS VANS LTD.
Children and Adult Services,Childrens Services,Employees,080025,Agency Staff,09-Jul-2015,2924517-326697,"163,705.61",DE POEL MANAGED SERVICES LTD.
Assistant Chief Executive,Partnerships & Community Engagement Div.,Supplies and Services,384086,Miscellaneous Expenses,09-Jul-2015,2924518-VOUCHER15NB-EDRC002,"2,530.00",DEAF HILL MINERS BANNER GROUP.
Children and Adult Services,Commissioning inc Supporting People,Third Party Payments,442002,Supporting People,09-Jul-2015,2924520-1962712,"5,668.48",DISC LTD.
Children and Adult Services,Commissioning inc Supporting People,Third Party Payments,442002,Supporting People,09-Jul-2015,2924520-1962740,"27,885.68",DISC LTD.
Children and Adult Services,Commissioning inc Supporting People,Third Party Payments,441001,Supporting People,09-Jul-2015,2924522-1962741,"20,819.76",DURHAM ACTION ON SINGLE HOUSING.
Children and Adult Services,Commissioning inc Supporting People,Third Party Payments,443001,Supporting People,09-Jul-2015,2924522-1962742,"2,951.84",DURHAM ACTION ON SINGLE HOUSING.
Children and Adult Services,Commissioning inc Supporting People,Third Party Payments,443001,Supporting People,09-Jul-2015,2924522-1962746,"1,475.92",DURHAM ACTION ON SINGLE HOUSING.
Neighbourhood Services,Technical Services,Premises,120009,Energy Costs,09-Jul-2015,2924523-FA15013,"3,210.07",DURHAM CATHEDRAL (TRADING) LTD.
Children and Adult Services,Commissioning inc Supporting People,Third Party Payments,441001,Supporting People,09-Jul-2015,2924531-1962750,"5,483.40",EAST DURHAM COMMUNITY INITIATIVES LTD.
Resources,Centrally Administered Costs,Third Party Payments,440999,Other Third Party Payments,09-Jul-2015,2924541-RES-07-2015-053,"50,000.00",FAMILY FUND TRADING LTD.
Neighbourhood Services,Direct Services,Supplies and Services,304221,Equipment and Materials,09-Jul-2015,2924544-1506-221124,666.31,FLAME HEATING SPARES LTD.
Children and Adult Services,Commissioning inc Supporting People,Third Party Payments,442002,Supporting People,09-Jul-2015,2924546-1962715,"30,071.20",FOUNDATION.
Resources,I.C.T. Services,Supplies and Services,304259,Equipment and Materials,09-Jul-2015,2924550-4257,"4,585.00",FULL CONTROL NETWORKS.
Neighbourhood Services,Technical Services,Stock,926900,Stock in hand-Inventory system,09-Jul-2015,2924560-06/560061,548.62,GREENHAM TRADING LTD.
Neighbourhood Services,Technical Services,Stock,926900,Stock in hand-Inventory system,09-Jul-2015,2924560-06/560684,930.27,GREENHAM TRADING LTD.
Children and Adult Services,Commissioning inc Supporting People,Third Party Payments,442002,Supporting People,09-Jul-2015,2924567-1962751,"5,995.44",HANOVER HOUSING ASSOCIATION.
Children and Adult Services,Commissioning inc Supporting People,Third Party Payments,441001,Supporting People,09-Jul-2015,2924568-1962716,"18,082.80",HARBOUR SUPPORT SERVICES.
Neighbourhood Services,Direct Services,Transport,215005,Running Costs of Vehicles,09-Jul-2015,2924572-541494,"15,059.20",HARVEST ENERGY LTD.
Neighbourhood Services,Technical Services,Supplies and Services,304221,Equipment and Materials,09-Jul-2015,2924577-IN034920,"4,645.01",HILL & SMITH LTD.
Neighbourhood Services,Technical Services,Supplies and Services,304221,Equipment and Materials,09-Jul-2015,2924577-IN034921,"4,645.01",HILL & SMITH LTD.
Children and Adult Services,Central/Other,Debtors,930133,Debtor IC+ Out of Hours - Home Care,09-Jul-2015,2924581-D0015,"8,333.33",HOMECARE SUPPORT LTD T/A THE HUMAN SUPPORT GROUP.
Neighbourhood Services,Culture & Sport,Premises,125009,Rents,09-Jul-2015,2924585-8283,"36,141.25",IMPALA ESTATES LTD.
Neighbourhood Services,Technical Services,Third Party Payments,460350,Contract Payments,09-Jul-2015,2924590-0184,504.00,J & JG GILL & SONS LTD.
Regeneration & Economic Development,Economic Development and Housing,Cap Exp on Grants & Other Financial Assistance (REFCUS),918401,Capital grants,09-Jul-2015,2924592-RED-07-2015-042,"8,361.59",REDACTED - PAYMENT TO INDIVIDUAL
Children and Adult Services,Education,Transport,230008,Contract Hire,09-Jul-2015,2924593-1007,"1,181.11",J YOUNG T/A VIP TAXIS.
Children and Adult Services,Education,Transport,230008,Contract Hire,09-Jul-2015,2924593-1009,"1,080.00",J YOUNG T/A VIP TAXIS.
Children and Adult Services,Education,Transport,230006,Contract Hire,09-Jul-2015,2924604-F609/JUNE,672.00,JL EBDON.
Children and Adult Services,Education,Transport,230008,Contract Hire,09-Jul-2015,2924604-W047/JUNE,"1,554.74",JL EBDON.
Children and Adult Services,Education,Transport,230008,Contract Hire,09-Jul-2015,2924604-W063/JUNE,"1,332.54",JL EBDON.
Neighbourhood Services,Technical Services,Supplies and Services,304221,Equipment and Materials,09-Jul-2015,2924613-CNI22301/D,875.28,JT DOVE LTD.
Neighbourhood Services,Technical Services,Supplies and Services,304221,Equipment and Materials,09-Jul-2015,2924613-STI418494,550.33,JT DOVE LTD.
Neighbourhood Services,Technical Services,Supplies and Services,304221,Equipment and Materials,09-Jul-2015,2924613-STI419217,"1,481.39",JT DOVE LTD.
Children and Adult Services,Education,Transport,230008,Contract Hire,09-Jul-2015,2924619-0072,"1,760.00",KEN CHAMBERS T/A SHILDON TRANSPORT LTD.
Children and Adult Services,Education,Transport,230008,Contract Hire,09-Jul-2015,2924619-0073,990.00,KEN CHAMBERS T/A SHILDON TRANSPORT LTD.
Neighbourhood Services,Direct Services,Supplies and Services,304359,Equipment and Materials,09-Jul-2015,2924620-131756,588.00,KEN THOMAS (SITE CLEARANCE LTD).
Children and Adult Services,Childrens Services,Supplies and Services,364999,Grants to Voluntary Organisations,09-Jul-2015,2924630-CAS-06-2015-118,"5,070.00",LEADGATE YOUTH CENTRE.
Children and Adult Services,Commissioning inc Supporting People,Third Party Payments,442002,Supporting People,09-Jul-2015,2924654-1962714,"5,469.72",MENTAL HEALTH MATTERS.
Children and Adult Services,Childrens Services,Supplies and Services,364999,Grants to Voluntary Organisations,09-Jul-2015,2924656-CAS-06-2015-116,"2,226.00",MILLBANK YOUTH CLUB.
Resources,I.C.T. Services,Stock,926900,Stock in hand-Inventory system,09-Jul-2015,2924657-0000086069,"5,126.00",MILLENNIUM BUSINESS SYSTEMS LTD.
Resources,I.C.T. Services,Supplies and Services,304303,Equipment and Materials,09-Jul-2015,2924657-0000086381,"6,134.00",MILLENNIUM BUSINESS SYSTEMS LTD.
Resources,Legal & Democratic Services,Supplies and Services,338042,Services,09-Jul-2015,2924660-313254,"1,320.00",MISS CLAIRE MIDDLETON.
Regeneration & Economic Development,Transport and Contracted Services,Supplies and Services,372009,Subscriptions,09-Jul-2015,2924665-STARSWP-004,"2,000.00",MODESHIFT.
Children and Adult Services,Commissioning inc Supporting People,Third Party Payments,442002,Supporting People,09-Jul-2015,2924666-1962718,"5,240.36",MOVING ON.
Children and Adult Services,Childrens Services,Supplies and Services,340001,Postages,09-Jul-2015,2924674-7204772,900.00,NEOPOST CREDIFON.
Children and Adult Services,Public Health,Supplies and Services,384155,Miscellaneous Expenses,09-Jul-2015,2924679-1000044867,"67,467.36",NHS BUSINESS SERVICES AUTHORITY.
Neighbourhood Services,Direct Services,Transport,230005,Contract Hire,09-Jul-2015,2924682-76051,"3,410.00",NOBLET MUNICIPAL SERVICES LTD.
Neighbourhood Services,Direct Services,Supplies and Services,304259,Equipment and Materials,09-Jul-2015,2924688-913475378,"2,394.00",NORTHUMBRIAN WATER LTD.
Children and Adult Services,Childrens Services,Supplies and Services,364999,Grants to Voluntary Organisations,09-Jul-2015,2924697-CAS-06-2015-117,"2,580.00",PELTON COMMUNITY ASSOCIATION.
Children and Adult Services,Education,Transport,230008,Contract Hire,09-Jul-2015,2924698-498,"1,408.00",PETERLEE EXECUTIVE CARS.
Children and Adult Services,Education,Transport,230008,Contract Hire,09-Jul-2015,2924703-1088,"1,859.00",PODA LTD.
Children and Adult Services,Education,Transport,230007,Contract Hire,09-Jul-2015,2924703-1090,660.00,PODA LTD.
Children and Adult Services,Education,Transport,230008,Contract Hire,09-Jul-2015,2924705-150610,"1,226.93",PRATTS TAXIS.
Resources,I.C.T. Services,Supplies and Services,304245,Equipment and Materials,09-Jul-2015,2924706-7690885,760.00,PREMIER PAPER GROUP LTD.
Resources,Corporate Finance,Supplies and Services,338066,Services,09-Jul-2015,2924707-1354351193,"18,000.00",PRICEWATERHOUSECOOPERS.
Neighbourhood Services,Technical Services,Stock,926900,Stock in hand-Inventory system,09-Jul-2015,2924711-36134,683.00,PROTEUS EQUIPMENT LTD.
Children and Adult Services,Education,Transport,230007,Contract Hire,09-Jul-2015,2924718-32A,"1,415.26",RAYNERS COACHES.
Children and Adult Services,Education,Transport,230007,Contract Hire,09-Jul-2015,2924725-2190,"1,320.00",RICHIES TAXIS.
Children and Adult Services,Commissioning inc Supporting People,Third Party Payments,442002,Supporting People,09-Jul-2015,2924726-1962723,"7,356.72",RICHMOND FELLOWSHIP.
Children and Adult Services,Commissioning inc Supporting People,Third Party Payments,444002,Supporting People,09-Jul-2015,2924726-1962724,"4,068.24",RICHMOND FELLOWSHIP.
Children and Adult Services,Commissioning inc Supporting People,Third Party Payments,441001,Supporting People,09-Jul-2015,2924726-1962737,"9,423.88",RICHMOND FELLOWSHIP.
Resources,Legal & Democratic Services,Supplies and Services,338057,Services,09-Jul-2015,2924731-0000020374,"1,600.00",ROAR FORENSICS LTD.
Neighbourhood Services,Projects and Business services,Supplies and Services,340001,Postages,09-Jul-2015,2924739-9050002818,"1,633.62",ROYAL MAIL GROUP PLC.
Neighbourhood Services,Direct Services,Transport,230005,Contract Hire,09-Jul-2015,2924742-IV53170,"3,272.64",RTR RIVERSIDE TRUCK RENTAL LTD.
Neighbourhood Services,Direct Services,Transport,230005,Contract Hire,09-Jul-2015,2924742-IV53189,"4,180.00",RTR RIVERSIDE TRUCK RENTAL LTD.
Neighbourhood Services,Direct Services,Transport,230005,Contract Hire,09-Jul-2015,2924742-IV53200,"4,180.00",RTR RIVERSIDE TRUCK RENTAL LTD.
Neighbourhood Services,Direct Services,Transport,230005,Contract Hire,09-Jul-2015,2924742-IV53203,"4,180.00",RTR RIVERSIDE TRUCK RENTAL LTD.
Neighbourhood Services,Direct Services,Transport,230005,Contract Hire,09-Jul-2015,2924742-IV53231,"4,180.00",RTR RIVERSIDE TRUCK RENTAL LTD.
Neighbourhood Services,Direct Services,Transport,230005,Contract Hire,09-Jul-2015,2924742-IV53283,"3,272.61",RTR RIVERSIDE TRUCK RENTAL LTD.
Regeneration & Economic Development,Economic Development and Housing,Cap Exp on Grants & Other Financial Assistance (REFCUS),918401,Capital grants,09-Jul-2015,2924744-RED-07-2015-040,"6,000.00",SAFA DEVELOPMENTS LTD.
Regeneration & Economic Development,Economic Development and Housing,Cap Exp on Grants & Other Financial Assistance (REFCUS),918401,Capital grants,09-Jul-2015,2924744-RED-07-2015-041,"1,620.00",SAFA DEVELOPMENTS LTD.
Regeneration & Economic Development,Economic Development and Housing,Supplies and Services,384871,Miscellaneous Expenses,09-Jul-2015,2924748-013336,845.00,SARENS UK LTD.
Neighbourhood Services,Culture & Sport,Supplies and Services,338047,Services,09-Jul-2015,2924753-INV-0206,873.34,SCREENLIVE ENTERTAINMENT LTD.
Children and Adult Services,Commissioning inc Supporting People,Third Party Payments,442002,Supporting People,09-Jul-2015,2924759-1962719,"9,044.36",SHAID.
Neighbourhood Services,Direct Services,Transport,230005,Contract Hire,09-Jul-2015,2924761-10606990,"1,050.00",SHB HIRE LTD.
Children and Adult Services,Education,Transport,230008,Contract Hire,09-Jul-2015,2924763-71787,"2,256.00",SHOTTON PRIVATE HIRE.
Children and Adult Services,Education,Transport,230008,Contract Hire,09-Jul-2015,2924763-71788,"1,980.00",SHOTTON PRIVATE HIRE.
Children and Adult Services,Education,Transport,230008,Contract Hire,09-Jul-2015,2924763-71798,"2,090.00",SHOTTON PRIVATE HIRE.
Neighbourhood Services,Technical Services,Stock,926900,Stock in hand-Inventory system,09-Jul-2015,2924767-68239,"2,539.26",SIMMONSIGNS LTD.
Children and Adult Services,Education,Transport,230006,Contract Hire,09-Jul-2015,2924768-F536-06-15,"1,008.00",SIMON ELLIFF.
Children and Adult Services,Education,Transport,230008,Contract Hire,09-Jul-2015,2924768-S027-16-15,"2,156.00",SIMON ELLIFF.
Children and Adult Services,Education,Transport,230008,Contract Hire,09-Jul-2015,2924768-W102-06-15,"1,298.00",SIMON ELLIFF.
Neighbourhood Services,Projects and Business services,Third Party Payments,430114,Rendered by Private Contractors,09-Jul-2015,2924772-29776515,"4,830.30",SITA UK LTD.
Children and Adult Services,Education,Transport,230008,Contract Hire,09-Jul-2015,2924773-157A,"1,650.00",SJ MACKENZIE T/A SCOTTS TAXIS.
Children and Adult Services,Education,Transport,230008,Contract Hire,09-Jul-2015,2924773-158A,"1,431.76",SJ MACKENZIE T/A SCOTTS TAXIS.
Children and Adult Services,Education,Transport,230008,Contract Hire,09-Jul-2015,2924773-159A,"3,053.82",SJ MACKENZIE T/A SCOTTS TAXIS.
Children and Adult Services,Education,Transport,230008,Contract Hire,09-Jul-2015,2924773-160A,"2,653.42",SJ MACKENZIE T/A SCOTTS TAXIS.
Children and Adult Services,Education,Transport,230008,Contract Hire,09-Jul-2015,2924773-161A,"2,565.00",SJ MACKENZIE T/A SCOTTS TAXIS.
Children and Adult Services,Education,Transport,230008,Contract Hire,09-Jul-2015,2924774-135,"1,012.00",SODA TAXIS.
Resources,I.C.T. Services,Supplies and Services,342033,Computers and Communications,09-Jul-2015,2924776-OP/M015870,675.13,SPECIALIST COMPUTER CENTRES PLC.
Children and Adult Services,Education,Transport,230008,Contract Hire,09-Jul-2015,2924777-4619,"1,232.00",SPENNYMOOR TAXIS.
Children and Adult Services,Education,Transport,230008,Contract Hire,09-Jul-2015,2924777-AAK4199,"2,058.22",SPENNYMOOR TAXIS.
Children and Adult Services,Education,Transport,230008,Contract Hire,09-Jul-2015,2924777-JJJC1679,"1,997.82",SPENNYMOOR TAXIS.
Children and Adult Services,Education,Transport,230008,Contract Hire,09-Jul-2015,2924777-TET4727,"1,440.00",SPENNYMOOR TAXIS.
Resources,Human Resources,Supplies and Services,352001,Conference Expenses,09-Jul-2015,2924779-44941,625.00,SSG TRAINING & CONSULTANCY LTD.
Neighbourhood Services,Technical Services,Supplies and Services,304221,Equipment and Materials,09-Jul-2015,2924782-072956,"1,336.72",STONEGRAVE AGGREGATES LTD.
Children and Adult Services,Childrens Services,Supplies and Services,364352,Grants to Voluntary Organisations,09-Jul-2015,2924783-D1IN/00016679,"2,520.22",STONHAM HOUSING ASSOCIATION LTD.
Children and Adult Services,Commissioning inc Supporting People,Third Party Payments,442002,Supporting People,09-Jul-2015,2924784-1962704,"29,495.74",STONHAM HOUSING ASSOCIATION LTD.
Children and Adult Services,Commissioning inc Supporting People,Third Party Payments,442002,Supporting People,09-Jul-2015,2924784-1962705,"145,778.32",STONHAM HOUSING ASSOCIATION LTD.
Children and Adult Services,Commissioning inc Supporting People,Third Party Payments,441001,Supporting People,09-Jul-2015,2924784-1962711,"67,257.36",STONHAM HOUSING ASSOCIATION LTD.
Children and Adult Services,Commissioning inc Supporting People,Third Party Payments,442002,Supporting People,09-Jul-2015,2924784-1962721,"29,343.52",STONHAM HOUSING ASSOCIATION LTD.
Children and Adult Services,Commissioning inc Supporting People,Third Party Payments,443001,Supporting People,09-Jul-2015,2924784-1962761,"23,955.16",STONHAM HOUSING ASSOCIATION LTD.
Children and Adult Services,Commissioning inc Supporting People,Third Party Payments,443001,Supporting People,09-Jul-2015,2924784-1962771,"11,715.88",STONHAM HOUSING ASSOCIATION LTD.
Children and Adult Services,Commissioning inc Supporting People,Third Party Payments,441001,Supporting People,09-Jul-2015,2924796-1962785,"19,231.20",THE CYRENIANS LTD T/A CHANGING LIVES.
Children and Adult Services,Education,Transport,230008,Contract Hire,09-Jul-2015,2924798-154,"1,760.00",THE TAXI COMPANY (MURTON) LTD.
Children and Adult Services,Commissioning inc Supporting People,Third Party Payments,442002,Supporting People,09-Jul-2015,2924801-1962736,"9,366.16",THIRTEEN CARE & SUPPORT.
Children and Adult Services,Commissioning inc Supporting People,Third Party Payments,441001,Supporting People,09-Jul-2015,2924801-1962786,"26,009.80",THIRTEEN CARE & SUPPORT.
Children and Adult Services,Commissioning inc Supporting People,Third Party Payments,441001,Supporting People,09-Jul-2015,2924801-1962810,"7,510.04",THIRTEEN CARE & SUPPORT.
Children and Adult Services,Commissioning inc Supporting People,Third Party Payments,442002,Supporting People,09-Jul-2015,2924801-1962811,"1,519.52",THIRTEEN CARE & SUPPORT.
Children and Adult Services,Commissioning inc Supporting People,Third Party Payments,441001,Supporting People,09-Jul-2015,2924801-1962812,"9,924.64",THIRTEEN CARE & SUPPORT.
Children and Adult Services,Commissioning inc Supporting People,Third Party Payments,442002,Supporting People,09-Jul-2015,2924802-1962739,"36,446.00",THREE RIVERS HOUSING ASSOCIATION LTD.
Assistant Chief Executive,Partnerships & Community Engagement Div.,Supplies and Services,336005,Advertising,09-Jul-2015,2924804-TML/15/05/16,600.00,THRIVE MARKETING LTD.
Neighbourhood Services,Direct Services,Supplies and Services,304221,Equipment and Materials,09-Jul-2015,2924808-103467,895.60,TOMMY WARDLE.
Neighbourhood Services,Direct Services,Transport,230005,Contract Hire,09-Jul-2015,2924812-12527,800.00,TRASH UK LTD.
Neighbourhood Services,Direct Services,Transport,230005,Contract Hire,09-Jul-2015,2924812-12528,800.00,TRASH UK LTD.
Regeneration & Economic Development,Transport and Contracted Services,Supplies and Services,304245,Equipment and Materials,09-Jul-2015,2924816-10263237,"1,090.00",TUNSTALL HEALTHCARE (UK) LTD.
Regeneration & Economic Development,Economic Development and Housing,Cap Exp on Grants & Other Financial Assistance (REFCUS),918401,Capital grants,09-Jul-2015,2924818-RED-07-2015-039,"4,890.00",UK ROOFING MAINTAIN LTD.
Neighbourhood Services,Direct Services,Third Party Payments,430100,Rendered by Private Contractors,09-Jul-2015,2924826-39417,"1,360.00",W MARLEY AGRICULTURAL CONTRACTORS LTD.
Children and Adult Services,Commissioning inc Supporting People,Third Party Payments,441001,Supporting People,09-Jul-2015,2924827-1962752,"1,183.60",WADDINGTON STREET CENTRE LTD.
Children and Adult Services,Commissioning inc Supporting People,Third Party Payments,443001,Supporting People,09-Jul-2015,2924827-1962754,"1,395.12",WADDINGTON STREET CENTRE LTD.
Children and Adult Services,Education,Transport,230007,Contract Hire,09-Jul-2015,2924828-45/15,"1,760.00",WALTONS TAXIS.
Children and Adult Services,Education,Transport,230008,Contract Hire,09-Jul-2015,2924830-000936,"1,953.38",WATSON OF SPENNYMOOR.
Children and Adult Services,Education,Transport,230007,Contract Hire,09-Jul-2015,2924831-120,968.00,WAYSIDE TAXIS.
Children and Adult Services,Education,Transport,230008,Contract Hire,09-Jul-2015,2924831-121,855.00,WAYSIDE TAXIS.
Children and Adult Services,Education,Transport,230008,Contract Hire,09-Jul-2015,2924831-122,"1,364.00",WAYSIDE TAXIS.
Children and Adult Services,Education,Transport,230008,Contract Hire,09-Jul-2015,2924831-125,"1,540.00",WAYSIDE TAXIS.
Children and Adult Services,Education,Transport,230008,Contract Hire,09-Jul-2015,2924831-126,"1,210.00",WAYSIDE TAXIS.
Children and Adult Services,Education,Transport,230008,Contract Hire,09-Jul-2015,2924831-127,"1,804.00",WAYSIDE TAXIS.
Children and Adult Services,Education,Transport,230008,Contract Hire,09-Jul-2015,2924831-128,"2,170.00",WAYSIDE TAXIS.
Children and Adult Services,Education,Transport,230007,Contract Hire,09-Jul-2015,2924832-3277-JUN,"1,210.00",WE AR CABS.
Children and Adult Services,Education,Transport,230007,Contract Hire,09-Jul-2015,2924832-3277MAY,825.00,WE AR CABS.
Children and Adult Services,Commissioning inc Supporting People,Third Party Payments,441001,Supporting People,09-Jul-2015,2924833-1962720,"7,157.00",WEAR VALLEY WOMENS AID.
Children and Adult Services,Education,Transport,230007,Contract Hire,09-Jul-2015,2924834-CONS/JUN/15/2,"3,753.42",WEARDALE MOTOR SERVICES LTD.
Children and Adult Services,Education,Transport,230007,Contract Hire,09-Jul-2015,2924834-CONS/JUN/15/3,"6,529.60",WEARDALE MOTOR SERVICES LTD.
Children and Adult Services,Education,Transport,230007,Contract Hire,09-Jul-2015,2924834-CONS/JUN/151,"3,735.60",WEARDALE MOTOR SERVICES LTD.
Children and Adult Services,Education,Transport,230008,Contract Hire,09-Jul-2015,2924834-PH/JUN/15,"5,493.40",WEARDALE MOTOR SERVICES LTD.
Neighbourhood Services,Technical Services,Premises,150015,Apportioned Exps of Operational Blds,09-Jul-2015,2924837-425546,626.78,WERNICK HIRE LTD.
Neighbourhood Services,Technical Services,Premises,150015,Apportioned Exps of Operational Blds,09-Jul-2015,2924837-425551,660.66,WERNICK HIRE LTD.
Neighbourhood Services,Direct Services,Premises,150015,Apportioned Exps of Operational Blds,09-Jul-2015,2924837-425664,750.00,WERNICK HIRE LTD.
Neighbourhood Services,Direct Services,Premises,150015,Apportioned Exps of Operational Blds,09-Jul-2015,2924837-425684,752.15,WERNICK HIRE LTD.
Children and Adult Services,Childrens Services,Supplies and Services,364999,Grants to Voluntary Organisations,09-Jul-2015,2924838-CAS-06-2015-122,"2,890.00",WEST DURHAM YOUTH & COMMUNITY RESOURCE.
Children and Adult Services,Education,Transport,230008,Contract Hire,09-Jul-2015,2924840-WESTLEA300615,"1,231.37",WESTLEA TAXIS.
Neighbourhood Services,Technical Services,Stock,926900,Stock in hand-Inventory system,09-Jul-2015,2924842-23544158,"2,479.70",WOLSELEY UK LTD.
Children and Adult Services,Education,Transport,230008,Contract Hire,10-Jul-2015,2924856-AA1067-JUN,"1,669.80",AA MINIBUS HIRE.
Children and Adult Services,Education,Transport,230008,Contract Hire,10-Jul-2015,2924856-AA1071,"2,420.00",AA MINIBUS HIRE.
Children and Adult Services,Education,Transport,230008,Contract Hire,10-Jul-2015,2924856-AA1072,"1,658.36",AA MINIBUS HIRE.
Children and Adult Services,Education,Transport,230008,Contract Hire,10-Jul-2015,2924857-E31/SC,825.00,AABAT TAXIS.
Children and Adult Services,Education,Transport,230006,Contract Hire,10-Jul-2015,2924857-F13/SB,"1,176.00",AABAT TAXIS.
Children and Adult Services,Education,Transport,230008,Contract Hire,10-Jul-2015,2924857-F17/SA,"2,774.40",AABAT TAXIS.
Children and Adult Services,Education,Transport,230008,Contract Hire,10-Jul-2015,2924857-F18/SC,"1,002.74",AABAT TAXIS.
Children and Adult Services,Education,Transport,230008,Contract Hire,10-Jul-2015,2924857-F20/SE,"1,643.40",AABAT TAXIS.
Children and Adult Services,Education,Transport,230007,Contract Hire,10-Jul-2015,2924857-F24/SK,"2,332.00",AABAT TAXIS.
Children and Adult Services,Education,Transport,230007,Contract Hire,10-Jul-2015,2924857-F25/SM,770.00,AABAT TAXIS.
Children and Adult Services,Education,Transport,230007,Contract Hire,10-Jul-2015,2924857-F27/SP,968.00,AABAT TAXIS.
Children and Adult Services,Education,Transport,230006,Contract Hire,10-Jul-2015,2924857-F30/SV,668.80,AABAT TAXIS.
Children and Adult Services,Education,Transport,230008,Contract Hire,10-Jul-2015,2924857-F34/AC,837.00,AABAT TAXIS.
Children and Adult Services,Education,Transport,230008,Contract Hire,10-Jul-2015,2924859-6/2/15,"1,304.60",ABA TAXIS.
Children and Adult Services,Education,Transport,230008,Contract Hire,10-Jul-2015,2924861-0252,"1,254.00",ABC & OUSTON CABS.
Children and Adult Services,Education,Transport,230008,Contract Hire,10-Jul-2015,2924861-0254,"2,568.22",ABC & OUSTON CABS.
Children and Adult Services,Education,Transport,230008,Contract Hire,10-Jul-2015,2924861-0255,"2,043.14",ABC & OUSTON CABS.
Children and Adult Services,Education,Transport,230008,Contract Hire,10-Jul-2015,2924861-0256,"3,476.00",ABC & OUSTON CABS.
Neighbourhood Services,Direct Services,Third Party Payments,430100,Rendered by Private Contractors,10-Jul-2015,2924864-IN924,"9,595.00",ACROL AIR CONDITIONING CO LTD.
Neighbourhood Services,Technical Services,Supplies and Services,304999,Equipment and Materials,10-Jul-2015,2924865-0000273778,699.30,ACUTE SALES LTD.
Children and Adult Services,Childrens Services,Premises,106080,Centrally Controlled Rep and Maint,10-Jul-2015,2924867-29635845-61,"8,486.50",ADT FIRE & SECURITY PLC.
Children and Adult Services,Childrens Services,Supplies and Services,338099,Services,10-Jul-2015,2924868-10/15,985.00,ADVANCE TRAVEL.
Children and Adult Services,Education,Transport,230008,Contract Hire,10-Jul-2015,2924868-25/15,"1,154.78",ADVANCE TRAVEL.
Neighbourhood Services,Technical Services,Supplies and Services,304221,Equipment and Materials,10-Jul-2015,2924870-21604649,"1,824.36",AGGREGATE INDUSTRIES UK LTD.
Children and Adult Services,Head of Adults,Supplies and Services,304259,Equipment and Materials,10-Jul-2015,2924871-11014,"1,166.00",AH & D CUTHBERTSON LTD.
Neighbourhood Services,Direct Services,Supplies and Services,338066,Services,10-Jul-2015,2924874-153R/15/90874,962.00,ALAN M RANSON FUNERAL SERVICE.
Neighbourhood Services,Direct Services,Supplies and Services,338066,Services,10-Jul-2015,2924874-154R/15/90875,972.00,ALAN M RANSON FUNERAL SERVICE.
Neighbourhood Services,Direct Services,Third Party Payments,430100,Rendered by Private Contractors,10-Jul-2015,2924875-20079,"7,280.00",ALARM & COMMUNICATION SYSTEMS LTD.
Neighbourhood Services,Direct Services,Third Party Payments,430100,Rendered by Private Contractors,10-Jul-2015,2924875-20080,900.00,ALARM & COMMUNICATION SYSTEMS LTD.
Neighbourhood Services,Direct Services,Third Party Payments,430100,Rendered by Private Contractors,10-Jul-2015,2924875-20208,"3,646.00",ALARM & COMMUNICATION SYSTEMS LTD.
Children and Adult Services,Education,Transport,230007,Contract Hire,10-Jul-2015,2924885-70,616.00,ANDY CABS.
Children and Adult Services,Education,Transport,230008,Contract Hire,10-Jul-2015,2924885-72,660.00,ANDY CABS.
Resources,Financial Services,Supplies and Services,352001,Conference Expenses,10-Jul-2015,2924897-94647891,750.00,ARVATO LTD.
Children and Adult Services,Education,Transport,230008,Contract Hire,10-Jul-2015,2924898-487,"1,286.20",AT TAXIS LTD.
Children and Adult Services,Education,Transport,230007,Contract Hire,10-Jul-2015,2924898-488,763.00,AT TAXIS LTD.
Children and Adult Services,Education,Transport,230008,Contract Hire,10-Jul-2015,2924898-489,770.00,AT TAXIS LTD.
Children and Adult Services,Education,Transport,230007,Contract Hire,10-Jul-2015,2924900-03306,883.20,ATLAS TAXIS CONSETT.
Children and Adult Services,Education,Transport,230006,Contract Hire,10-Jul-2015,2924900-03309,"1,334.80",ATLAS TAXIS CONSETT.
Children and Adult Services,Education,Transport,230007,Contract Hire,10-Jul-2015,2924900-03310,968.00,ATLAS TAXIS CONSETT.
Children and Adult Services,Education,Transport,230006,Contract Hire,10-Jul-2015,2924900-03311,"1,493.60",ATLAS TAXIS CONSETT.
Children and Adult Services,Education,Transport,230008,Contract Hire,10-Jul-2015,2924902-3006015,"1,210.00",AVALON TAXIS.
Children and Adult Services,Education,Transport,230007,Contract Hire,10-Jul-2015,2924902-30615,660.00,AVALON TAXIS.
Neighbourhood Services,Direct Services,Third Party Payments,430100,Rendered by Private Contractors,10-Jul-2015,2924906-8919,"4,586.00",BECKER (SLIDING PARTITIONS) LTD.
Children and Adult Services,Education,Transport,230008,Contract Hire,10-Jul-2015,2924907-477,"1,707.20",BEELINE MINI BUSES.
Children and Adult Services,Education,Transport,230008,Contract Hire,10-Jul-2015,2924907-478,"1,658.36",BEELINE MINI BUSES.
Dedicated Schools Grant,Dedicated Schools Grant,Transport,230010,Contract Hire,10-Jul-2015,2924913-06/2015/0002,"1,337.00",BILL SCOTT (BILL SCOTT TAXIS).
Children and Adult Services,Education,Transport,230007,Contract Hire,10-Jul-2015,2924919-39A.30/6/15,770.00,BOBS TAXIS.
Neighbourhood Services,Direct Services,Third Party Payments,430100,Rendered by Private Contractors,10-Jul-2015,2924921-8529,"3,215.00",BOLTON GATE CO.
Children and Adult Services,Education,Transport,230008,Contract Hire,10-Jul-2015,2924927-BZ00156,"1,072.00",BREZ`S TAXIS.
Children and Adult Services,Education,Transport,230008,Contract Hire,10-Jul-2015,2924927-BZ00157,"1,722.16",BREZ`S TAXIS.
Children and Adult Services,Commissioning inc Supporting People,Third Party Payments,479111,Purchase of Care,10-Jul-2015,2924936-2493,"5,069.78",CARERS FEDERATION LTD.
Neighbourhood Services,Culture & Sport,Supplies and Services,324001,Provisions,10-Jul-2015,2924937-841584919,"1,790.93",CARLSBERG UK LTD.
Neighbourhood Services,Direct Services,Third Party Payments,430100,Rendered by Private Contractors,10-Jul-2015,2924939-16577,"2,193.08",CATHEDRAL LOCK & SAFE SERVICES LTD.
Neighbourhood Services,Direct Services,Premises,125009,Rents,10-Jul-2015,2924940-673717,"2,418.75",CBRE LTD.
Neighbourhood Services,Direct Services,Premises,106082,Centrally Controlled Rep and Maint,10-Jul-2015,2924944-78702,705.62,CENTRAL POWER SERVICES LTD.
Regeneration & Economic Development,Transport and Contracted Services,Third Party Payments,430100,Rendered by Private Contractors,10-Jul-2015,2924946-RSCT,"1,245.00",CHESTER LE STREET & DISTRICT WELFARE COMMITTEE.
Assistant Chief Executive,Partnerships & Community Engagement Div.,Supplies and Services,384086,Miscellaneous Expenses,10-Jul-2015,2924949-VOUCHER15NB-4TOG001,"2,000.00",CHILTON GALA COMMITTEE.
Neighbourhood Services,Technical Services,Premises,150015,Apportioned Exps of Operational Blds,10-Jul-2015,2924959-21695,903.54,CLEE HILL PLANT LTD.
Children and Adult Services,Education,Transport,230007,Contract Hire,10-Jul-2015,2924965-C/8710,"7,009.64",COCHRANES T/A KELVIN TRAVEL.
Children and Adult Services,Education,Transport,230007,Contract Hire,10-Jul-2015,2924965-C/8711,"2,841.52",COCHRANES T/A KELVIN TRAVEL.
Children and Adult Services,Education,Transport,230007,Contract Hire,10-Jul-2015,2924965-C/8712,"3,062.62",COCHRANES T/A KELVIN TRAVEL.
Regeneration & Economic Development,Transport and Contracted Services,Third Party Payments,430100,Rendered by Private Contractors,10-Jul-2015,2924969-RSCT,718.00,CONSETT CHURCHES DETACHED YOUTH PROJECT.
Regeneration & Economic Development,Transport and Contracted Services,Third Party Payments,430100,Rendered by Private Contractors,10-Jul-2015,2924975-15/16/039,"2,848.00",CORNFORTH PARTNERSHIP.
Children and Adult Services,Head of Adults,Supplies and Services,304252,Equipment and Materials,10-Jul-2015,2924987-HAYDENVALE,"1,910.00",D GRIBBEN & SON DECORATORS.
Children and Adult Services,Education,Transport,230008,Contract Hire,10-Jul-2015,2924993-2543,"1,680.58",DAVES MINIBUSES.
Children and Adult Services,Education,Transport,230008,Contract Hire,10-Jul-2015,2924993-2544,534.66,DAVES MINIBUSES.
Assistant Chief Executive,Partnerships & Community Engagement Div.,Supplies and Services,384086,Miscellaneous Expenses,10-Jul-2015,2924996-VOUCHER15NB-EDUR015,"1,125.00",DAWDON YOUTH & COMMUNITY CENTRE.
Children and Adult Services,Childrens Services,Premises,108135,Service Repairs and Maintenance,10-Jul-2015,2924998-27251,"1,016.61",DB SECURITY & FIRE SYSTEMS LTD.
Regeneration & Economic Development,Transport and Contracted Services,Third Party Payments,430100,Rendered by Private Contractors,10-Jul-2015,2925003-1515A,"11,805.00",DENE VALLEY COMMUNITY TRANSPORT LTD.
Children and Adult Services,Education,Transfer Payments,510028,School Children,10-Jul-2015,2925004-CAS-07-2015-015,"1,000.00",DIPTON OUT OF SCHOOL HOURS CLUB.
Neighbourhood Services,Technical Services,Construction Work,908112,Capital - Drainage,10-Jul-2015,2925009-5132,"4,782.00",DUNELM GEOTECHNICAL & ENVIRONMENTAL LTD.
Neighbourhood Services,Technical Services,Construction Work,908112,Capital - Drainage,10-Jul-2015,2925009-5132-002,"4,205.40",DUNELM GEOTECHNICAL & ENVIRONMENTAL LTD.
Neighbourhood Services,Technical Services,Construction Work,908112,Capital - Drainage,10-Jul-2015,2925009-5132-003,"4,853.00",DUNELM GEOTECHNICAL & ENVIRONMENTAL LTD.
Regeneration & Economic Development,Transport and Contracted Services,Third Party Payments,430100,Rendered by Private Contractors,10-Jul-2015,2925013-002A,552.00,DURHAM CITY SHOPMOBILITY.
Regeneration & Economic Development,Transport and Contracted Services,Third Party Payments,430100,Rendered by Private Contractors,10-Jul-2015,2925014-RSCT,"3,384.00",DURHAM COMMUNICARE LTD.
Regeneration & Economic Development,Transport and Contracted Services,Third Party Payments,430100,Rendered by Private Contractors,10-Jul-2015,2925020-6050A,"3,975.00",EAST DURHAM COMMUNITY TRANSPORT LTD.
Children and Adult Services,Childrens Services,Third Party Payments,486029,Service Level Agreements,10-Jul-2015,2925044-17675,"19,000.00",FAMILY ACTION.
Children and Adult Services,Education,Supplies and Services,372009,Subscriptions,10-Jul-2015,2925047-SI15-0917,"36,480.00",FFT EDUCATION LTD.
Regeneration & Economic Development,Economic Development and Housing,Supplies and Services,338027,Services,10-Jul-2015,2925059-INV00182,"1,481.69",FUSION STEM LTD.
Neighbourhood Services,Technical Services,Supplies and Services,304357,Equipment and Materials,10-Jul-2015,2925061-DCC280615,"12,525.72",GAP GROUP LTD.
Neighbourhood Services,Culture & Sport,Supplies and Services,304259,Equipment and Materials,10-Jul-2015,2925075-08/457023,798.72,GREENHAM TRADING LTD.
Dedicated Schools Grant,Dedicated Schools Grant,Third Party Payments,410037,Rendered by Other Local Authorities,10-Jul-2015,2925085-0040160687,"13,460.00",HARTLEPOOL BOROUGH COUNCIL.
Neighbourhood Services,Direct Services,Transport,215022,Running Costs of Vehicles,10-Jul-2015,2925086-541493,980.20,HARVEST ENERGY LTD.
Regeneration & Economic Development,Transport and Contracted Services,Third Party Payments,430106,Rendered by Private Contractors,10-Jul-2015,2925094-012777,"4,511.41",HODGSONS COACH OPERATORS LTD.
Children and Adult Services,Education,Transport,230008,Contract Hire,10-Jul-2015,2925099-159,"2,565.20",I CLYDESDALE T/A BURNOPFIELD TAXIS.
Children and Adult Services,Education,Transport,230008,Contract Hire,10-Jul-2015,2925099-161,"1,540.00",I CLYDESDALE T/A BURNOPFIELD TAXIS.
Children and Adult Services,Education,Construction Work,908105,Construction work,10-Jul-2015,2925109-DURH/0632A,"279,725.29",INSPIREDSPACES DURHAM LTD.
Neighbourhood Services,Technical Services,Employees,040149,Recruitment Instruction and Training,10-Jul-2015,2925110-IOSINV006513,598.00,INSTITUTE OF SWIMMING.
Regeneration & Economic Development,Spatial Policy Planning Assets & Environment,Supplies and Services,377015,County Durham Development,10-Jul-2015,2925126-15001,"1,000.00",JOAN CRUMP T/A SMALL BROWN DOG.
Neighbourhood Services,Technical Services,Stock,926900,Stock in hand-Inventory system,10-Jul-2015,2925131-00000509,"1,840.00",JP MATERIALS & PLANT HIRE LTD.
Neighbourhood Services,Technical Services,Supplies and Services,304221,Equipment and Materials,10-Jul-2015,2925133-BII165035,628.00,JT DOVE LTD.
Neighbourhood Services,Direct Services,Supplies and Services,304221,Equipment and Materials,10-Jul-2015,2925133-CN122216/D,"18,230.68",JT DOVE LTD.
Neighbourhood Services,Direct Services,Supplies and Services,304221,Equipment and Materials,10-Jul-2015,2925133-CNI22199/D,"3,790.00",JT DOVE LTD.
Neighbourhood Services,Direct Services,Supplies and Services,304221,Equipment and Materials,10-Jul-2015,2925133-CNI22215/D,"9,376.78",JT DOVE LTD.
Neighbourhood Services,Direct Services,Supplies and Services,304221,Equipment and Materials,10-Jul-2015,2925133-CNI22229/D,"1,386.55",JT DOVE LTD.
Neighbourhood Services,Direct Services,Supplies and Services,304221,Equipment and Materials,10-Jul-2015,2925133-NOI76676,"1,337.60",JT DOVE LTD.
Neighbourhood Services,Direct Services,Supplies and Services,304221,Equipment and Materials,10-Jul-2015,2925133-PHBII24561,752.44,JT DOVE LTD.
Neighbourhood Services,Direct Services,Supplies and Services,304221,Equipment and Materials,10-Jul-2015,2925133-STI420189,914.40,JT DOVE LTD.
Neighbourhood Services,Technical Services,Stock,926900,Stock in hand-Inventory system,10-Jul-2015,2925133-STI421518,549.26,JT DOVE LTD.
Neighbourhood Services,Direct Services,Transport,230005,Contract Hire,10-Jul-2015,2925142-4368649,"1,293.00",LEEDS COMMERCIAL LTD.
Resources,Legal & Democratic Services,Supplies and Services,372009,Subscriptions,10-Jul-2015,2925146-DI5L68104,997.00,LEXISNEXIS BUTTERWORTHS.
Neighbourhood Services,Direct Services,Supplies and Services,304221,Equipment and Materials,10-Jul-2015,2925152-NE148544,875.00,LLOYD WORRALL (NEWCASTLE UPON TYNE) LTD.
Neighbourhood Services,Culture & Sport,Supplies and Services,304252,Equipment and Materials,10-Jul-2015,2925170-SIN146660,"2,464.00",MAUDESPORT LTD.
Regeneration & Economic Development,Economic Development and Housing,Premises,135005,Water Services,10-Jul-2015,2925204-316301840017004,620.52,NORTHUMBRIAN WATER LTD.
Neighbourhood Services,Technical Services,Premises,120009,Energy Costs,10-Jul-2015,2925207-NNO7P3H7,"448,829.01",NPOWER.
Regeneration & Economic Development,Transport and Contracted Services,Third Party Payments,430100,Rendered by Private Contractors,10-Jul-2015,2925208-032343,"26,584.11",NSL LTD.
Regeneration & Economic Development,Transport and Contracted Services,Third Party Payments,430100,Rendered by Private Contractors,10-Jul-2015,2925208-032346,"1,373.07",NSL LTD.
Regeneration & Economic Development,Transport and Contracted Services,Third Party Payments,430100,Rendered by Private Contractors,10-Jul-2015,2925208-032352,"47,558.84",NSL LTD.
Regeneration & Economic Development,Transport and Contracted Services,Third Party Payments,430100,Rendered by Private Contractors,10-Jul-2015,2925208-032353,"2,992.37",NSL LTD.
Regeneration & Economic Development,Transport and Contracted Services,Third Party Payments,430100,Rendered by Private Contractors,10-Jul-2015,2925208-032355,"5,966.14",NSL LTD.
Regeneration & Economic Development,Transport and Contracted Services,Third Party Payments,430100,Rendered by Private Contractors,10-Jul-2015,2925208-032356,"16,073.35",NSL LTD.
Regeneration & Economic Development,Transport and Contracted Services,Third Party Payments,430100,Rendered by Private Contractors,10-Jul-2015,2925208-032559,"1,000.00",NSL LTD.
Regeneration & Economic Development,Transport and Contracted Services,Third Party Payments,430100,Rendered by Private Contractors,10-Jul-2015,2925208-032560,"5,591.06",NSL LTD.
Regeneration & Economic Development,Transport and Contracted Services,Third Party Payments,430100,Rendered by Private Contractors,10-Jul-2015,2925208-032561,"1,908.24",NSL LTD.
Neighbourhood Services,Direct Services,Third Party Payments,430100,Rendered by Private Contractors,10-Jul-2015,2925219-557587,860.00,P & N ASSOCIATES LTD.
Neighbourhood Services,Technical Services,Stock,926900,Stock in hand-Inventory system,10-Jul-2015,2925222-XL145794,"2,100.00",PARK ELECTRICAL DISTRIBUTORS LTD.
Neighbourhood Services,Technical Services,Stock,926900,Stock in hand-Inventory system,10-Jul-2015,2925222-XL145814,555.00,PARK ELECTRICAL DISTRIBUTORS LTD.
Neighbourhood Services,Technical Services,Stock,926900,Stock in hand-Inventory system,10-Jul-2015,2925222-XL145862,588.00,PARK ELECTRICAL DISTRIBUTORS LTD.
Neighbourhood Services,Culture & Sport,Supplies and Services,384700,Miscellaneous Expenses,10-Jul-2015,2925229-C1369,"4,915.00",PETERLEE TOWN COUNCIL.
Resources,I.C.T. Services,Supplies and Services,342053,Computers and Communications,10-Jul-2015,2925233-OP/I755387,"2,639.52",PHOENIX SOFTWARE LTD.
Resources,I.C.T. Services,Supplies and Services,342053,Computers and Communications,10-Jul-2015,2925233-OP/I755390,"2,639.52",PHOENIX SOFTWARE LTD.
Neighbourhood Services,Direct Services,Third Party Payments,430100,Rendered by Private Contractors,10-Jul-2015,2925239-INV212480,"1,525.84",POINTER FIRE LTD.
Children and Adult Services,Education,Transport,230008,Contract Hire,10-Jul-2015,2925243-150609,"2,314.63",PRATTS TAXIS.
Neighbourhood Services,Technical Services,Third Party Payments,430100,Rendered by Private Contractors,10-Jul-2015,2925249-78274,550.00,PROTECTOR SECURITY GROUP LTD.
Neighbourhood Services,Technical Services,Supplies and Services,304221,Equipment and Materials,10-Jul-2015,2925249-78276,550.00,PROTECTOR SECURITY GROUP LTD.
Neighbourhood Services,Culture & Sport,Supplies and Services,384199,Miscellaneous Expenses,10-Jul-2015,2925254-0000002551,"2,617.90",RAMSIDE ESTATES LTD T/A RAMSIDE HALL HOTEL.
Neighbourhood Services,Culture & Sport,Supplies and Services,338047,Services,10-Jul-2015,2925270-8,"1,000.00",ROBERTS & JOHN PRODUCTIONS LTD.
Children and Adult Services,Education,Transport,230008,Contract Hire,10-Jul-2015,2925276-WO43/10,"2,750.00",S & S TRAVEL LTD.
Children and Adult Services,Education,Premises,106099,Centrally Controlled Rep and Maint,10-Jul-2015,2925279-TEE1213,500.00,SANDERSON WEATHERALL LLP.
Regeneration & Economic Development,Transport and Contracted Services,Third Party Payments,430100,Rendered by Private Contractors,10-Jul-2015,2925292-110/16,"5,412.00",SHILDON COMMUNITY BUS.
Regeneration & Economic Development,Transport and Contracted Services,Third Party Payments,430100,Rendered by Private Contractors,10-Jul-2015,2925301-CT20/7/15,"1,566.00",SLAM COMMUNITY DEVELOPMENT TRUST (CDT).
Resources,I.C.T. Services,Construction Work,908105,Construction work,10-Jul-2015,2925307-INV01168926,"45,610.65",SOFTCAT LTD.
Resources,I.C.T. Services,Stock,926900,Stock in hand-Inventory system,10-Jul-2015,2925310-OP/M014732,"1,595.00",SPECIALIST COMPUTER CENTRES PLC.
Resources,I.C.T. Services,Vehicles Equipment Furniture and Fittings,912701,Computer equipment,10-Jul-2015,2925310-OP/M016434,"2,596.76",SPECIALIST COMPUTER CENTRES PLC.
Children and Adult Services,Education,Supplies and Services,338027,Services,10-Jul-2015,2925316-0000000609,"1,800.00",ST JOHN`S SCHOOL & SIXTH FORM COLLEGE A CATHOLIC ACADEMY.
Children and Adult Services,Education,Supplies and Services,338027,Services,10-Jul-2015,2925316-0000000616,600.00,ST JOHN`S SCHOOL & SIXTH FORM COLLEGE A CATHOLIC ACADEMY.
Neighbourhood Services,Technical Services,Supplies and Services,304221,Equipment and Materials,10-Jul-2015,2925322-072987,546.08,STONEGRAVE AGGREGATES LTD.
Neighbourhood Services,Direct Services,Supplies and Services,304221,Equipment and Materials,10-Jul-2015,2925329-1608792,"2,467.00",T CROSSLING & CO LTD.
Neighbourhood Services,Direct Services,Third Party Payments,430100,Rendered by Private Contractors,10-Jul-2015,2925335-6978,"58,318.37",TEAMS ROOFING LTD.
Regeneration & Economic Development,Transport and Contracted Services,Third Party Payments,430100,Rendered by Private Contractors,10-Jul-2015,2925337-919,"1,478.00",TEESDALE COMMUNITY RESOURCES (TCR) LTD.
Regeneration & Economic Development,Transport and Contracted Services,Third Party Payments,440999,Other Third Party Payments,10-Jul-2015,2925360-INV/30030009,"131,207.45",TUNSTALL HEALTHCARE (UK) LTD.
Neighbourhood Services,Technical Services,Supplies and Services,304221,Equipment and Materials,10-Jul-2015,2925361-150062,734.38,TYNEDALE ROADSTONE LTD.
Neighbourhood Services,Direct Services,Supplies and Services,304221,Equipment and Materials,10-Jul-2015,2925364-2449,697.42,UPNORTH FOODSERVICE EQUIPMENT LTD.
Regeneration & Economic Development,Transport and Contracted Services,Third Party Payments,430100,Rendered by Private Contractors,10-Jul-2015,2925379-13009,"10,952.00",WEARDALE COMMUNITY TRANSPORT LTD.
Regeneration & Economic Development,Transport and Contracted Services,Third Party Payments,430106,Rendered by Private Contractors,10-Jul-2015,2925380-0453A,"35,592.99",WEARDALE MOTOR SERVICES LTD.
Neighbourhood Services,Direct Services,Supplies and Services,304221,Equipment and Materials,10-Jul-2015,2925383-23252094,"1,207.00",WOLSELEY UK LTD.
Resources,I.C.T. Services,Stock,926900,Stock in hand-Inventory system,10-Jul-2015,2925388-Y338066,"1,224.00",XMA LTD.
Children and Adult Services,Education,Transport,230008,Contract Hire,13-Jul-2015,2925397-A220765,"1,714.70",A MURRAY TRAVEL.
Neighbourhood Services,Technical Services,Supplies and Services,304221,Equipment and Materials,13-Jul-2015,2925402-21511215,"1,396.68",AGGREGATE INDUSTRIES UK LTD.
Neighbourhood Services,Technical Services,Supplies and Services,304221,Equipment and Materials,13-Jul-2015,2925402-21611214,"1,245.22",AGGREGATE INDUSTRIES UK LTD.
Neighbourhood Services,Technical Services,Supplies and Services,304221,Equipment and Materials,13-Jul-2015,2925402-21611217,909.18,AGGREGATE INDUSTRIES UK LTD.
Neighbourhood Services,Technical Services,Supplies and Services,304221,Equipment and Materials,13-Jul-2015,2925402-21617884,613.02,AGGREGATE INDUSTRIES UK LTD.
Neighbourhood Services,Technical Services,Supplies and Services,304221,Equipment and Materials,13-Jul-2015,2925402-21617885,649.64,AGGREGATE INDUSTRIES UK LTD.
Neighbourhood Services,Technical Services,Supplies and Services,304221,Equipment and Materials,13-Jul-2015,2925402-21617979,651.01,AGGREGATE INDUSTRIES UK LTD.
Neighbourhood Services,Technical Services,Supplies and Services,304221,Equipment and Materials,13-Jul-2015,2925402-21617980,"1,217.94",AGGREGATE INDUSTRIES UK LTD.
Resources,I.C.T. Services,Supplies and Services,332029,Printing Stationery and Gen Off Exps,13-Jul-2015,2925403-210368,"2,393.00",AGNE LTD T/A ALPHAGRAPHICS.
Regeneration & Economic Development,Spatial Policy Planning Assets & Environment,Supplies and Services,384540,Miscellaneous Expenses,13-Jul-2015,2925404-1067,868.00,AHA DISTRIBUTION LTD.
Neighbourhood Services,Direct Services,Third Party Payments,430100,Rendered by Private Contractors,13-Jul-2015,2925405-47862,"1,191.47",ALAN REED LTD.
Neighbourhood Services,Direct Services,Third Party Payments,430100,Rendered by Private Contractors,13-Jul-2015,2925407-15198,"4,900.00",AMBIC LTD.
Regeneration & Economic Development,Economic Development and Housing,Supplies and Services,384700,Miscellaneous Expenses,13-Jul-2015,2925408-RED-07-2015-068,"1,000.00",ANDREW JAMES UK LTD.
Neighbourhood Services,Technical Services,Stock,926900,Stock in hand-Inventory system,13-Jul-2015,2925411-924910732,637.60,ARCO LTD.
Children and Adult Services,Head of Adults,Supplies and Services,308013,Furniture,13-Jul-2015,2925416-555330,"1,263.60",BAILEYS BLINDS CO LTD.
Neighbourhood Services,Direct Services,Supplies and Services,304221,Equipment and Materials,13-Jul-2015,2925426-9302239335,753.00,BRADY CORP LTD T/A SETON.
Neighbourhood Services,Direct Services,Transport,230005,Contract Hire,13-Jul-2015,2925432-8121231,"1,135.50",BURNT TREE GROUP LTD.
Neighbourhood Services,Direct Services,Transport,230005,Contract Hire,13-Jul-2015,2925432-8121240,"1,135.50",BURNT TREE GROUP LTD.
Neighbourhood Services,Direct Services,Transport,230005,Contract Hire,13-Jul-2015,2925432-8121251,"1,135.50",BURNT TREE GROUP LTD.
Neighbourhood Services,Direct Services,Transport,230005,Contract Hire,13-Jul-2015,2925432-8121259,870.55,BURNT TREE GROUP LTD.
Neighbourhood Services,Direct Services,Transport,230005,Contract Hire,13-Jul-2015,2925432-8121282,578.56,BURNT TREE GROUP LTD.
Children and Adult Services,Education,Supplies and Services,342051,Computers and Communications,13-Jul-2015,2925434-417206,764.13,BYTES SOFTWARE SERVICES LTD.
Neighbourhood Services,Direct Services,Supplies and Services,304221,Equipment and Materials,13-Jul-2015,2925436-851501682,"3,470.00",CARLISLE CONSTRUCTION MATERIALS LTD.
Neighbourhood Services,Culture & Sport,Supplies and Services,324001,Provisions,13-Jul-2015,2925437-841380961,"7,226.70",CARLSBERG UK LTD.
Dedicated Schools Grant,Dedicated Schools Grant,Third Party Payments,410037,Rendered by Other Local Authorities,13-Jul-2015,2925438-1003389,"8,208.00",CARMEL COLLEGE.
Neighbourhood Services,Direct Services,Transport,210057,Repair and Maintenance of Vehicles,13-Jul-2015,2925440-201812,907.25,CARRS BILLINGTON AGRICULTURE.
Regeneration & Economic Development,Spatial Policy Planning Assets & Environment,Supplies and Services,338099,Services,13-Jul-2015,2925442-LANDSCAPES1,"3,500.00",CASSOP ENVIRONMENTAL EXTRA.
Regeneration & Economic Development,Spatial Policy Planning Assets & Environment,Supplies and Services,304221,Equipment and Materials,13-Jul-2015,2925444-4007,"5,682.00",CELSIUS DESIGN LTD.
Regeneration & Economic Development,Spatial Policy Planning Assets & Environment,Supplies and Services,304221,Equipment and Materials,13-Jul-2015,2925444-4009,"7,503.00",CELSIUS DESIGN LTD.
Neighbourhood Services,Direct Services,Supplies and Services,304221,Equipment and Materials,13-Jul-2015,2925444-5152,865.00,CELSIUS DESIGN LTD.
Neighbourhood Services,Technical Services,Premises,150015,Apportioned Exps of Operational Blds,13-Jul-2015,2925449-21699,903.54,CLEE HILL PLANT LTD.
Children and Adult Services,Childrens Services,Third Party Payments,486044,Service Level Agreements,13-Jul-2015,2925451-3980012090,"2,456.00",CO DURHAM & DARLINGTON NHS FOUNDATION TRUST.
Children and Adult Services,Public Health,Third Party Payments,460803,Contract Payments,13-Jul-2015,2925451-3980012123,"938,264.00",CO DURHAM & DARLINGTON NHS FOUNDATION TRUST.
Regeneration & Economic Development,Transport and Contracted Services,Third Party Payments,430100,Rendered by Private Contractors,13-Jul-2015,2925455-749,718.00,CONSETT CHURCHES DETACHED YOUTH PROJECT.
Regeneration & Economic Development,Economic Development and Housing,Cap Exp on Grants & Other Financial Assistance (REFCUS),918401,Capital grants,13-Jul-2015,2925458-RED-07-2015-081,"4,950.00",CUMMINGS CONTRACTORS.
Neighbourhood Services,Technical Services,Third Party Payments,430100,Rendered by Private Contractors,13-Jul-2015,2925465-N519410,925.00,D DRILL (MASTER DRILLERS) LTD.
Neighbourhood Services,Technical Services,Third Party Payments,430100,Rendered by Private Contractors,13-Jul-2015,2925465-N519411,925.00,D DRILL (MASTER DRILLERS) LTD.
Regeneration & Economic Development,Economic Development and Housing,Cap Exp on Grants & Other Financial Assistance (REFCUS),918401,Capital grants,13-Jul-2015,2925467-RED-07-2015-086,"22,653.60",DAVE BOYD BUILDERS & CONTRACTORS.
Regeneration & Economic Development,Economic Development and Housing,Cap Exp on Grants & Other Financial Assistance (REFCUS),918401,Capital grants,13-Jul-2015,2925469-RED-07-2015-082,"3,460.00",DAVID RYAN PLUMBING & MERRYBENT BATHROOMS LTD.
Children and Adult Services,Commissioning inc Supporting People,Third Party Payments,479111,Purchase of Care,13-Jul-2015,2925474-SLA2015-16Q2,"3,294.00",DERWENTSIDE MIND.
Regeneration & Economic Development,Economic Development and Housing,Supplies and Services,384999,Miscellaneous Expenses,13-Jul-2015,2925485-RED-07-2015-093,651.51,EAST DURHAM HOMES.
Children and Adult Services,Education,Supplies and Services,338089,Services,13-Jul-2015,2925488-4616,"1,313.33",ELIZABETH JARMAN TRAINING LTD.
Neighbourhood Services,Direct Services,Transport,210057,Repair and Maintenance of Vehicles,13-Jul-2015,2925494-112842,"2,524.50",FABRIKAT (NOTTINGHAM) LTD.
Regeneration & Economic Development,Economic Development and Housing,Supplies and Services,384871,Miscellaneous Expenses,13-Jul-2015,2925495-FTL0259,568.00,FINCHALE TRADING LTD.
Children and Adult Services,Childrens Services,Third Party Payments,425040,Rendered by Voluntary Organisations,13-Jul-2015,2925496-630158085,"4,180.58",FOSTER CARE ASSOCIATES LTD.
Children and Adult Services,Childrens Services,Third Party Payments,425040,Rendered by Voluntary Organisations,13-Jul-2015,2925496-630158203,"4,292.69",FOSTER CARE ASSOCIATES LTD.
Children and Adult Services,Childrens Services,Third Party Payments,425040,Rendered by Voluntary Organisations,13-Jul-2015,2925496-630158215,"4,079.43",FOSTER CARE ASSOCIATES LTD.
Children and Adult Services,Childrens Services,Third Party Payments,425040,Rendered by Voluntary Organisations,13-Jul-2015,2925496-630158359,"4,079.43",FOSTER CARE ASSOCIATES LTD.
Children and Adult Services,Childrens Services,Third Party Payments,425040,Rendered by Voluntary Organisations,13-Jul-2015,2925496-630158433,"4,079.43",FOSTER CARE ASSOCIATES LTD.
Children and Adult Services,Childrens Services,Third Party Payments,425040,Rendered by Voluntary Organisations,13-Jul-2015,2925496-630158947,"4,079.43",FOSTER CARE ASSOCIATES LTD.
Children and Adult Services,Head of Adults,Supplies and Services,384616,Miscellaneous Expenses,13-Jul-2015,2925497-SH071516,786.75,FOUR HOUSING GROUP.
Neighbourhood Services,Direct Services,Supplies and Services,304221,Equipment and Materials,13-Jul-2015,2925498-627535,503.04,FRED WILLIAMSON & SONS LTD.
Regeneration & Economic Development,Economic Development and Housing,Cap Exp on Grants & Other Financial Assistance (REFCUS),918401,Capital grants,13-Jul-2015,2925502-RED-07-2015-084,925.00,G CUMMINGS.
Regeneration & Economic Development,Economic Development and Housing,Cap Exp on Grants & Other Financial Assistance (REFCUS),918401,Capital grants,13-Jul-2015,2925502-RED-07-2015-090,520.00,G CUMMINGS.
Neighbourhood Services,Direct Services,Third Party Payments,430100,Rendered by Private Contractors,13-Jul-2015,2925505-93405016,635.52,GARDNER DENVER LTD.
Dedicated Schools Grant,Dedicated Schools Grant,Central Support and Capital,689997,Unclassified,13-Jul-2015,2925508-CAS-07-2015-029,"55,534.00",GLENDENE ARTS ACADEMY.
Neighbourhood Services,Technical Services,Stock,926900,Stock in hand-Inventory system,13-Jul-2015,2925510-06/560262,702.15,GREENHAM TRADING LTD.
Neighbourhood Services,Direct Services,Supplies and Services,304221,Equipment and Materials,13-Jul-2015,2925511-J4956,"1,598.00",GROVE REED.
Neighbourhood Services,Direct Services,Supplies and Services,304221,Equipment and Materials,13-Jul-2015,2925511-J4967,"1,060.84",GROVE REED.
Neighbourhood Services,Direct Services,Supplies and Services,304221,Equipment and Materials,13-Jul-2015,2925511-J4969,"2,643.39",GROVE REED.
Neighbourhood Services,Technical Services,Supplies and Services,304221,Equipment and Materials,13-Jul-2015,2925513-24300,"4,000.93",HARDSCAPE PRODUCTS LTD.
Children and Adult Services,Education,Transport,230008,Contract Hire,13-Jul-2015,2925515-HT175,"2,786.07",HARRY`S TAXI`S.
Children and Adult Services,Education,Transport,230007,Contract Hire,13-Jul-2015,2925515-HT176,880.00,HARRY`S TAXI`S.
Children and Adult Services,Education,Transport,230008,Contract Hire,13-Jul-2015,2925515-HT177,"2,640.00",HARRY`S TAXI`S.
Children and Adult Services,Education,Transport,230007,Contract Hire,13-Jul-2015,2925515-HT178,"2,200.00",HARRY`S TAXI`S.
Neighbourhood Services,Direct Services,Transport,215005,Running Costs of Vehicles,13-Jul-2015,2925516-540356,"6,628.28",HARVEST ENERGY LTD.
Neighbourhood Services,Direct Services,Transport,215022,Running Costs of Vehicles,13-Jul-2015,2925516-540357,"1,423.50",HARVEST ENERGY LTD.
Children and Adult Services,Education,Transport,230008,Contract Hire,13-Jul-2015,2925518-228,"1,657.92",HEPWORTHS LUXURY TRAVEL.
Children and Adult Services,Education,Transport,230008,Contract Hire,13-Jul-2015,2925518-229,"1,326.82",HEPWORTHS LUXURY TRAVEL.
Regeneration & Economic Development,Economic Development and Housing,Cap Exp on Grants & Other Financial Assistance (REFCUS),918401,Capital grants,13-Jul-2015,2925519-RED-07-2015-077,"3,390.00",HES GROUP UK LTD.
Neighbourhood Services,Culture & Sport,Supplies and Services,384199,Miscellaneous Expenses,13-Jul-2015,2925521-HBBATH43,700.00,HILARITY BITES COMEDY CLUB.
Children and Adult Services,Education,Transport,230007,Contract Hire,13-Jul-2015,2925523-012767,"1,500.00",HODGSONS COACH OPERATORS LTD.
Children and Adult Services,Education,Transport,230007,Contract Hire,13-Jul-2015,2925523-012768,750.00,HODGSONS COACH OPERATORS LTD.
Children and Adult Services,Education,Transport,230007,Contract Hire,13-Jul-2015,2925523-012769,"1,492.50",HODGSONS COACH OPERATORS LTD.
Children and Adult Services,Education,Transport,230007,Contract Hire,13-Jul-2015,2925523-012770,810.00,HODGSONS COACH OPERATORS LTD.
Children and Adult Services,Education,Transport,230007,Contract Hire,13-Jul-2015,2925523-012771,900.00,HODGSONS COACH OPERATORS LTD.
Children and Adult Services,Education,Transport,230007,Contract Hire,13-Jul-2015,2925523-012773,750.00,HODGSONS COACH OPERATORS LTD.
Children and Adult Services,Education,Transport,230007,Contract Hire,13-Jul-2015,2925523-012774,"1,470.00",HODGSONS COACH OPERATORS LTD.
Children and Adult Services,Education,Transport,230007,Contract Hire,13-Jul-2015,2925526-F1308,"2,178.00",HUNTER BROTHERS (TANTOBIE) LTD.
Children and Adult Services,Education,Transport,230007,Contract Hire,13-Jul-2015,2925526-F1309,"1,757.80",HUNTER BROTHERS (TANTOBIE) LTD.
Children and Adult Services,Education,Transport,230007,Contract Hire,13-Jul-2015,2925526-F1310,846.56,HUNTER BROTHERS (TANTOBIE) LTD.
Neighbourhood Services,Technical Services,Stock,926900,Stock in hand-Inventory system,13-Jul-2015,2925527-091420,"4,778.00",HYDRAM ENGINEERING LTD.
Neighbourhood Services,Technical Services,Stock,926900,Stock in hand-Inventory system,13-Jul-2015,2925534-26258,"2,384.40",INTERPLAN SIGN SYSTEMS LTD.
Children and Adult Services,Education,Transport,230008,Contract Hire,13-Jul-2015,2925537-A046/JUNE,"1,057.50",JAMY`S TAXIS.
Children and Adult Services,Education,Transport,230008,Contract Hire,13-Jul-2015,2925537-M1113/JUNE,"1,276.00",JAMY`S TAXIS.
Neighbourhood Services,Direct Services,Supplies and Services,304221,Equipment and Materials,13-Jul-2015,2925541-8,565.00,JH ORGANICS T/A P HUTCHINSON & SONS
Children and Adult Services,Education,Transport,230008,Contract Hire,13-Jul-2015,2925542-022,"1,760.00",JK TAXIS.
Children and Adult Services,Education,Supplies and Services,304259,Equipment and Materials,13-Jul-2015,2925544-0000097376,555.00,JOHN PACKER LTD.
Children and Adult Services,Education,Supplies and Services,304259,Equipment and Materials,13-Jul-2015,2925544-0000097377,555.00,JOHN PACKER LTD.
Neighbourhood Services,Direct Services,Supplies and Services,304221,Equipment and Materials,13-Jul-2015,2925548-CNI22192/D,"1,365.13",JT DOVE LTD.
Neighbourhood Services,Direct Services,Supplies and Services,304221,Equipment and Materials,13-Jul-2015,2925548-STI421130,"2,964.00",JT DOVE LTD.
Neighbourhood Services,Direct Services,Supplies and Services,304221,Equipment and Materials,13-Jul-2015,2925548-STI421427,"2,028.49",JT DOVE LTD.
Regeneration & Economic Development,Spatial Policy Planning Assets & Environment,Supplies and Services,384199,Miscellaneous Expenses,13-Jul-2015,2925549-568,"1,027.00",JW BAINBRIDGE CONTRACTORS LTD.
Children and Adult Services,Education,Transfer Payments,510026,School Children,13-Jul-2015,2925553-MAR/JUN15,"1,241.50",KIDS 1ST NURSERIES DURHAM.
Neighbourhood Services,Direct Services,Supplies and Services,304259,Equipment and Materials,13-Jul-2015,2925554-SI02-0069020,719.30,KILLGERM CHEMICALS LTD.
Neighbourhood Services,Technical Services,Supplies and Services,304221,Equipment and Materials,13-Jul-2015,2925557-9032838988,658.80,TARMAC TRADING LTD.
Neighbourhood Services,Technical Services,Stock,926900,Stock in hand-Inventory system,13-Jul-2015,2925557-9032838991,702.45,TARMAC TRADING LTD.
Neighbourhood Services,Technical Services,Supplies and Services,304221,Equipment and Materials,13-Jul-2015,2925557-9032844274,878.98,TARMAC TRADING LTD.
Neighbourhood Services,Direct Services,Transport,210057,Repair and Maintenance of Vehicles,13-Jul-2015,2925566-118094,656.53,LONDONDERRY GARAGE (S.E) LTD.
Children and Adult Services,Head of Adults,Supplies and Services,338365,Services,13-Jul-2015,2925567-4424,600.00,LYNCH HEALTHCARE LTD.
Neighbourhood Services,Direct Services,Stock,926004,Stock,13-Jul-2015,2925568-579363,807.00,MACHINE MART LTD.
Children and Adult Services,Education,Supplies and Services,338089,Services,13-Jul-2015,2925569-0332015,656.70,MADDISON EDUCATION CONSULTANCY LTD.
Neighbourhood Services,Technical Services,Supplies and Services,304221,Equipment and Materials,13-Jul-2015,2925572-ZBB0840648,898.27,MARSHALLS MONO LTD.
Neighbourhood Services,Technical Services,Stock,926900,Stock in hand-Inventory system,13-Jul-2015,2925573-225476,"18,931.66",MARWOOD ELECTRICAL CO LTD.
Resources,I.C.T. Services,Stock,926900,Stock in hand-Inventory system,13-Jul-2015,2925575-0000086409,"3,140.00",MILLENNIUM BUSINESS SYSTEMS LTD.
Neighbourhood Services,Direct Services,Third Party Payments,430100,Rendered by Private Contractors,13-Jul-2015,2925576-1353846465,"2,388.86",MITCHELL POWERSYSTEMS.
Neighbourhood Services,Direct Services,Third Party Payments,430100,Rendered by Private Contractors,13-Jul-2015,2925576-1353847159,"2,470.64",MITCHELL POWERSYSTEMS.
Neighbourhood Services,Technical Services,Premises,150015,Apportioned Exps of Operational Blds,13-Jul-2015,2925577-718123955,548.70,MOBILE MINI UK LTD.
Children and Adult Services,Education,Transport,230006,Contract Hire,13-Jul-2015,2925580-715,836.00,MR DEREK HENDERSON.
Regeneration & Economic Development,Economic Development and Housing,Supplies and Services,340001,Postages,13-Jul-2015,2925586-RED-07-2015-072,"2,000.00",NEOPOST CREDIFON.
Regeneration & Economic Development,Economic Development and Housing,Cap Exp on Grants & Other Financial Assistance (REFCUS),918401,Capital grants,13-Jul-2015,2925587-RED-07-2015-075,"3,995.00",NEW AGE PLUMBING & HEATING SERVICES.
Regeneration & Economic Development,Economic Development and Housing,Cap Exp on Grants & Other Financial Assistance (REFCUS),918401,Capital grants,13-Jul-2015,2925587-RED-07-2015-076,"5,530.00",NEW AGE PLUMBING & HEATING SERVICES.
Neighbourhood Services,Direct Services,Supplies and Services,304221,Equipment and Materials,13-Jul-2015,2925589-133670194,"1,380.66",NEWEY & EYRE LTD.
Resources,Corporate Finance,Supplies and Services,336005,Advertising,13-Jul-2015,2925590-11537877,579.53,NEWSQUEST (YORKSHIRE & NORTH EAST) LTD.
Children and Adult Services,Education,Third Party Payments,440999,Other Third Party Payments,13-Jul-2015,2925592-1-2015,"3,221.84",NIGEL BROUGH T/A BESPOKE TRAINING SOLUTIONS LTD.
RED HRA,HRA Capital,Construction Work,908105,Construction work,13-Jul-2015,2925595-90019419,583.00,NORTHERN GAS NETWORKS LTD.
Neighbourhood Services,Direct Services,Supplies and Services,304221,Equipment and Materials,13-Jul-2015,2925596-50247,"6,817.24",NORTHERN HOUSING CONSORTIUM LTD.
Neighbourhood Services,Technical Services,Stock,926900,Stock in hand-Inventory system,13-Jul-2015,2925597-1625761,819.00,NORTHERN TOOLS & ACCESSORIES.
Children and Adult Services,Childrens Services,Supplies and Services,338035,Services,13-Jul-2015,2925602-21174,600.00,ONE AWARDS.
Regeneration & Economic Development,Economic Development and Housing,Supplies and Services,384437,Miscellaneous Expenses,13-Jul-2015,2925604-F20652748/1,646.00,P & O FERRIES HOLDINGS LTD.
Neighbourhood Services,Direct Services,Supplies and Services,304221,Equipment and Materials,13-Jul-2015,2925606-BR523680,730.00,PARK ELECTRICAL DISTRIBUTORS LTD.
Neighbourhood Services,Direct Services,Supplies and Services,304221,Equipment and Materials,13-Jul-2015,2925606-XL145356,"18,342.85",PARK ELECTRICAL DISTRIBUTORS LTD.
Neighbourhood Services,Direct Services,Supplies and Services,304221,Equipment and Materials,13-Jul-2015,2925606-XL145517,872.64,PARK ELECTRICAL DISTRIBUTORS LTD.
Neighbourhood Services,Direct Services,Supplies and Services,304221,Equipment and Materials,13-Jul-2015,2925606-XL145791,"17,857.07",PARK ELECTRICAL DISTRIBUTORS LTD.
Neighbourhood Services,Direct Services,Supplies and Services,304221,Equipment and Materials,13-Jul-2015,2925606-XL145793,"1,162.78",PARK ELECTRICAL DISTRIBUTORS LTD.
Neighbourhood Services,Direct Services,Supplies and Services,304221,Equipment and Materials,13-Jul-2015,2925606-XL146109,"1,270.94",PARK ELECTRICAL DISTRIBUTORS LTD.
Regeneration & Economic Development,Economic Development and Housing,Supplies and Services,384700,Miscellaneous Expenses,13-Jul-2015,2925607-RED-07-2015-070,"1,000.00",PARK HEAD HOTEL.
Children and Adult Services,Education,Construction Work,908105,Construction work,13-Jul-2015,2925609-4467,750.00,PAUL EVANS SURVEYING LTD.
Regeneration & Economic Development,Economic Development and Housing,Cap Exp on Grants & Other Financial Assistance (REFCUS),918401,Capital grants,13-Jul-2015,2925613-RED-07-2015-085,"1,516.00",PEART ACCESS RAMPS.
Children and Adult Services,Childrens Services,Third Party Payments,425019,Rendered by Voluntary Organisations,13-Jul-2015,2925614-260314,"14,048.40",PEARTREE PROJECTS LTD.
